Organisation Code,Organisation Label,Effective Date,Organisational Unit,Service Division Label,Category Internal Name,Purpose,Detailed Expenditure Code,Payment Date,Transaction Number,Irrecoverable VAT Amount,Amount,Capital Or Revenue,Benificiary Name,Procurement Card
Http://opendatacommunities.org/id/metropolitan-district-council/leeds,Leeds City Council,31/10/2018,Resources and Housing,Leeds Building Services,Supplies and Services,Operational Materials,205,12/10/2018,1810-00001,0.00,318.61,R,A & A Electrical Distributors Ltd,No
Http://opendatacommunities.org/id/metropolitan-district-council/leeds,Leeds City Council,31/10/2018,Resources and Housing,Leeds Building Services,Supplies and Services,Operational Materials,205,01/10/2018,1810-00002,0.00,31.94,R,A Andrews & Sons (Marbles & Tiles),No
Http://opendatacommunities.org/id/metropolitan-district-council/leeds,Leeds City Council,31/10/2018,Resources and Housing,Leeds Building Services,Supplies and Services,Operational Materials,205,15/10/2018,1810-00003,0.00,22.29,R,A Andrews & Sons (Marbles & Tiles),No
Http://opendatacommunities.org/id/metropolitan-district-council/leeds,Leeds City Council,31/10/2018,Resources and Housing,Leeds Building Services,Supplies and Services,Operational Materials,205,15/10/2018,1810-00004,0.00,3.51,R,A Andrews & Sons (Marbles & Tiles),No
Http://opendatacommunities.org/id/metropolitan-district-council/leeds,Leeds City Council,31/10/2018,Resources and Housing,Leeds Building Services,Supplies and Services,Operational Materials,205,19/10/2018,1810-00005,0.00,18.06,R,A Andrews & Sons (Marbles & Tiles),No
Http://opendatacommunities.org/id/metropolitan-district-council/leeds,Leeds City Council,31/10/2018,Resources and Housing,Leeds Building Services,Supplies and Services,Operational Materials,205,19/10/2018,1810-00006,0.00,16.05,R,A Andrews & Sons (Marbles & Tiles),No
Http://opendatacommunities.org/id/metropolitan-district-council/leeds,Leeds City Council,31/10/2018,Resources and Housing,Leeds Building Services,Supplies and Services,Operational Materials,205,31/10/2018,1810-00007,0.00,63.90,R,A Andrews & Sons (Marbles & Tiles),No
Http://opendatacommunities.org/id/metropolitan-district-council/leeds,Leeds City Council,31/10/2018,Communities and Environment,Waste Management,Supplies and Services,Publication And Promotion,267,01/10/2018,1810-00008,0.00,30.00,R,REDACTED PERSONAL DATA,No
Http://opendatacommunities.org/id/metropolitan-district-council/leeds,Leeds City Council,31/10/2018,Resources and Housing,Leeds Building Services,Supplies and Services,Other Hired And Contracted Services,265,12/10/2018,1810-00009,0.00,15275.00,R,A Buckler (Haulage) Ltd,No
Http://opendatacommunities.org/id/metropolitan-district-council/leeds,Leeds City Council,31/10/2018,City Development,Libraries  Arts & Heritage,Supplies and Services,Operational Materials,205,02/10/2018,1810-00010,0.00,119.00,R,A C Entertainment Technologies Ltd,No
Http://opendatacommunities.org/id/metropolitan-district-council/leeds,Leeds City Council,31/10/2018,City Development,Libraries  Arts & Heritage,Supplies and Services,Operational Furniture And Equipment,203,19/10/2018,1810-00011,0.00,1161.59,R,A C Entertainment Technologies Ltd,No
Http://opendatacommunities.org/id/metropolitan-district-council/leeds,Leeds City Council,31/10/2018,City Development,Libraries  Arts & Heritage,Supplies and Services,Operational Furniture And Equipment,203,26/10/2018,1810-00012,0.00,38.52,R,A C Entertainment Technologies Ltd,No
Http://opendatacommunities.org/id/metropolitan-district-council/leeds,Leeds City Council,31/10/2018,City Development,Libraries  Arts & Heritage,Supplies and Services,Operational Furniture And Equipment,203,26/10/2018,1810-00013,0.00,260.60,R,A C Entertainment Technologies Ltd,No
Http://opendatacommunities.org/id/metropolitan-district-council/leeds,Leeds City Council,31/10/2018,Children and Families,Social Care,Third Party Payments,Services Rendered By Other Organisations,511,19/10/2018,1810-00014,0.00,119.00,R,REDACTED PERSONAL DATA,No
Http://opendatacommunities.org/id/metropolitan-district-council/leeds,Leeds City Council,31/10/2018,Children and Families,Social Care,Third Party Payments,Services Rendered By Other Organisations,511,19/10/2018,1810-00015,0.00,446.25,R,REDACTED PERSONAL DATA,No
Http://opendatacommunities.org/id/metropolitan-district-council/leeds,Leeds City Council,31/10/2018,Resources and Housing,HRA Housing Leeds,Capital,Construction,3,01/10/2018,1810-00016,0.00,31769.15,C,A Connolly Limited,No
Http://opendatacommunities.org/id/metropolitan-district-council/leeds,Leeds City Council,31/10/2018,Resources and Housing,HRA Housing Leeds,Capital,Construction,3,04/10/2018,1810-00017,0.00,272371.80,C,A Connolly Limited,No
Http://opendatacommunities.org/id/metropolitan-district-council/leeds,Leeds City Council,31/10/2018,Resources and Housing,HRA Housing Leeds,Capital,Other Costs,7,25/10/2018,1810-00018,0.00,170.09,C,REDACTED PERSONAL DATA,No
Http://opendatacommunities.org/id/metropolitan-district-council/leeds,Leeds City Council,31/10/2018,Children and Families,Social Care,Third Party Payments,Services Rendered By Voluntary Sector,505,17/10/2018,1810-00019,0.00,2142.00,R,REDACTED PERSONAL DATA,No
Http://opendatacommunities.org/id/metropolitan-district-council/leeds,Leeds City Council,31/10/2018,Children and Families,Social Care,Third Party Payments,Services Rendered By Voluntary Sector,505,19/10/2018,1810-00020,0.00,3748.50,R,REDACTED PERSONAL DATA,No
Http://opendatacommunities.org/id/metropolitan-district-council/leeds,Leeds City Council,31/10/2018,City Development,Highways,Capital,Construction,3,08/10/2018,1810-00021,0.00,33074.78,C,A E Yates Ltd,No
Http://opendatacommunities.org/id/metropolitan-district-council/leeds,Leeds City Council,31/10/2018,City Development,Highways,Capital,Construction,3,24/10/2018,1810-00022,0.00,216229.69,C,A E Yates Ltd,No
Http://opendatacommunities.org/id/metropolitan-district-council/leeds,Leeds City Council,31/10/2018,Resources and Housing,Commercial Services  ,Supplies and Services,Catering Service,233,11/09/2018,1810-00023,0.00,248.25,R,A F Blakemore & Son Ltd,Yes
Http://opendatacommunities.org/id/metropolitan-district-council/leeds,Leeds City Council,31/10/2018,City Development,Highways,Income,Licences  Registry & Land Charges,932,01/10/2018,1810-00024,0.00,90.90,R,A F Connell Ltd,No
Http://opendatacommunities.org/id/metropolitan-district-council/leeds,Leeds City Council,31/10/2018,Children and Families,Social Care,Third Party Payments,Services Rendered By Other Organisations,511,19/10/2018,1810-00025,0.00,1011.50,R,REDACTED PERSONAL DATA,No
Http://opendatacommunities.org/id/metropolitan-district-council/leeds,Leeds City Council,31/10/2018,Children and Families,Social Care,Third Party Payments,Services Rendered By Other Organisations,511,19/10/2018,1810-00026,0.00,520.62,R,REDACTED PERSONAL DATA,No
Http://opendatacommunities.org/id/metropolitan-district-council/leeds,Leeds City Council,31/10/2018,Children and Families,Social Care,Third Party Payments,Services Rendered By Other Organisations,511,19/10/2018,1810-00027,0.00,223.12,R,REDACTED PERSONAL DATA,No
Http://opendatacommunities.org/id/metropolitan-district-council/leeds,Leeds City Council,31/10/2018,Children and Families,Social Care,Third Party Payments,Services Rendered By Other Organisations,511,19/10/2018,1810-00028,0.00,223.12,R,REDACTED PERSONAL DATA,No
Http://opendatacommunities.org/id/metropolitan-district-council/leeds,Leeds City Council,31/10/2018,Children and Families,Social Care,Third Party Payments,Services Rendered By Other Organisations,511,19/10/2018,1810-00029,0.00,446.25,R,REDACTED PERSONAL DATA,No
Http://opendatacommunities.org/id/metropolitan-district-council/leeds,Leeds City Council,31/10/2018,City Development,Libraries  Arts & Heritage,Supplies and Services,Other Hired And Contracted Services,265,11/10/2018,1810-00030,0.00,615.00,R,REDACTED COMMERCIAL CONFIDENTIALITY,No
Http://opendatacommunities.org/id/metropolitan-district-council/leeds,Leeds City Council,31/10/2018,Resources and Housing,Leeds Building Services,Supplies and Services,Operational Materials,205,01/10/2018,1810-00031,0.00,34.75,R,A J H  Pump Supply & Repair Ltd,No
Http://opendatacommunities.org/id/metropolitan-district-council/leeds,Leeds City Council,31/10/2018,Resources and Housing,Leeds Building Services,Supplies and Services,Operational Materials,205,01/10/2018,1810-00032,0.00,251.00,R,A J H  Pump Supply & Repair Ltd,No
Http://opendatacommunities.org/id/metropolitan-district-council/leeds,Leeds City Council,31/10/2018,Resources and Housing,Leeds Building Services,Supplies and Services,Operational Materials,205,01/10/2018,1810-00033,0.00,200.00,R,A J H  Pump Supply & Repair Ltd,No
Http://opendatacommunities.org/id/metropolitan-district-council/leeds,Leeds City Council,31/10/2018,Resources and Housing,Leeds Building Services,Supplies and Services,Operational Materials,205,01/10/2018,1810-00034,0.00,826.00,R,A J H  Pump Supply & Repair Ltd,No
Http://opendatacommunities.org/id/metropolitan-district-council/leeds,Leeds City Council,31/10/2018,Resources and Housing,Leeds Building Services,Supplies and Services,Operational Materials,205,01/10/2018,1810-00035,0.00,36.00,R,A J H  Pump Supply & Repair Ltd,No
Http://opendatacommunities.org/id/metropolitan-district-council/leeds,Leeds City Council,31/10/2018,Resources and Housing,Leeds Building Services,Supplies and Services,Operational Materials,205,01/10/2018,1810-00036,0.00,521.00,R,A J H  Pump Supply & Repair Ltd,No
Http://opendatacommunities.org/id/metropolitan-district-council/leeds,Leeds City Council,31/10/2018,Resources and Housing,Leeds Building Services,Supplies and Services,Operational Materials,205,01/10/2018,1810-00037,0.00,16.32,R,A J H  Pump Supply & Repair Ltd,No
Http://opendatacommunities.org/id/metropolitan-district-council/leeds,Leeds City Council,31/10/2018,Resources and Housing,Leeds Building Services,Supplies and Services,Operational Materials,205,01/10/2018,1810-00038,0.00,67.11,R,A J H  Pump Supply & Repair Ltd,No
Http://opendatacommunities.org/id/metropolitan-district-council/leeds,Leeds City Council,31/10/2018,Resources and Housing,Leeds Building Services,Supplies and Services,Operational Materials,205,01/10/2018,1810-00039,0.00,727.00,R,A J H  Pump Supply & Repair Ltd,No
Http://opendatacommunities.org/id/metropolitan-district-council/leeds,Leeds City Council,31/10/2018,Resources and Housing,Leeds Building Services,Supplies and Services,Operational Materials,205,01/10/2018,1810-00040,0.00,40.72,R,A J H  Pump Supply & Repair Ltd,No
Http://opendatacommunities.org/id/metropolitan-district-council/leeds,Leeds City Council,31/10/2018,Resources and Housing,Leeds Building Services,Supplies and Services,Operational Materials,205,01/10/2018,1810-00041,0.00,169.33,R,A J H  Pump Supply & Repair Ltd,No
Http://opendatacommunities.org/id/metropolitan-district-council/leeds,Leeds City Council,31/10/2018,Resources and Housing,Leeds Building Services,Supplies and Services,Operational Materials,205,01/10/2018,1810-00042,0.00,125.00,R,A J H  Pump Supply & Repair Ltd,No
Http://opendatacommunities.org/id/metropolitan-district-council/leeds,Leeds City Council,31/10/2018,Resources and Housing,Leeds Building Services,Supplies and Services,Operational Materials,205,01/10/2018,1810-00043,0.00,220.00,R,A J H  Pump Supply & Repair Ltd,No
Http://opendatacommunities.org/id/metropolitan-district-council/leeds,Leeds City Council,31/10/2018,Resources and Housing,Leeds Building Services,Supplies and Services,Operational Materials,205,01/10/2018,1810-00044,0.00,970.75,R,A J H  Pump Supply & Repair Ltd,No
Http://opendatacommunities.org/id/metropolitan-district-council/leeds,Leeds City Council,31/10/2018,Resources and Housing,Leeds Building Services,Supplies and Services,Operational Materials,205,01/10/2018,1810-00045,0.00,950.00,R,A J H  Pump Supply & Repair Ltd,No
Http://opendatacommunities.org/id/metropolitan-district-council/leeds,Leeds City Council,31/10/2018,Resources and Housing,Leeds Building Services,Supplies and Services,Operational Materials,205,01/10/2018,1810-00046,0.00,216.00,R,A J H  Pump Supply & Repair Ltd,No
Http://opendatacommunities.org/id/metropolitan-district-council/leeds,Leeds City Council,31/10/2018,Resources and Housing,Leeds Building Services,Supplies and Services,Operational Materials,205,01/10/2018,1810-00047,0.00,904.64,R,A J H  Pump Supply & Repair Ltd,No
Http://opendatacommunities.org/id/metropolitan-district-council/leeds,Leeds City Council,31/10/2018,Resources and Housing,Leeds Building Services,Supplies and Services,Operational Materials,205,01/10/2018,1810-00048,0.00,275.00,R,A J H  Pump Supply & Repair Ltd,No
Http://opendatacommunities.org/id/metropolitan-district-council/leeds,Leeds City Council,31/10/2018,Resources and Housing,Leeds Building Services,Supplies and Services,Operational Materials,205,01/10/2018,1810-00049,0.00,376.25,R,A J H  Pump Supply & Repair Ltd,No
Http://opendatacommunities.org/id/metropolitan-district-council/leeds,Leeds City Council,31/10/2018,Resources and Housing,Leeds Building Services,Supplies and Services,Operational Materials,205,03/10/2018,1810-00050,0.00,24.75,R,A J H  Pump Supply & Repair Ltd,No
Http://opendatacommunities.org/id/metropolitan-district-council/leeds,Leeds City Council,31/10/2018,Resources and Housing,Leeds Building Services,Supplies and Services,Operational Materials,205,03/10/2018,1810-00051,0.00,26.75,R,A J H  Pump Supply & Repair Ltd,No
Http://opendatacommunities.org/id/metropolitan-district-council/leeds,Leeds City Council,31/10/2018,Resources and Housing,Leeds Building Services,Supplies and Services,Operational Materials,205,03/10/2018,1810-00052,0.00,24.50,R,A J H  Pump Supply & Repair Ltd,No
Http://opendatacommunities.org/id/metropolitan-district-council/leeds,Leeds City Council,31/10/2018,Resources and Housing,Leeds Building Services,Supplies and Services,Operational Materials,205,03/10/2018,1810-00053,0.00,150.00,R,A J H  Pump Supply & Repair Ltd,No
Http://opendatacommunities.org/id/metropolitan-district-council/leeds,Leeds City Council,31/10/2018,Resources and Housing,Leeds Building Services,Supplies and Services,Operational Materials,205,03/10/2018,1810-00054,0.00,60.99,R,A J H  Pump Supply & Repair Ltd,No
Http://opendatacommunities.org/id/metropolitan-district-council/leeds,Leeds City Council,31/10/2018,Resources and Housing,Leeds Building Services,Supplies and Services,Operational Materials,205,05/10/2018,1810-00055,0.00,92.90,R,A J H  Pump Supply & Repair Ltd,No
Http://opendatacommunities.org/id/metropolitan-district-council/leeds,Leeds City Council,31/10/2018,Resources and Housing,Leeds Building Services,Supplies and Services,Operational Materials,205,09/10/2018,1810-00056,0.00,134.30,R,A J H  Pump Supply & Repair Ltd,No
Http://opendatacommunities.org/id/metropolitan-district-council/leeds,Leeds City Council,31/10/2018,Resources and Housing,Leeds Building Services,Supplies and Services,Operational Materials,205,09/10/2018,1810-00057,0.00,15.00,R,A J H  Pump Supply & Repair Ltd,No
Http://opendatacommunities.org/id/metropolitan-district-council/leeds,Leeds City Council,31/10/2018,Resources and Housing,Leeds Building Services,Supplies and Services,Operational Materials,205,09/10/2018,1810-00058,0.00,64.29,R,A J H  Pump Supply & Repair Ltd,No
Http://opendatacommunities.org/id/metropolitan-district-council/leeds,Leeds City Council,31/10/2018,Resources and Housing,Leeds Building Services,Supplies and Services,Operational Materials,205,09/10/2018,1810-00059,0.00,59.00,R,A J H  Pump Supply & Repair Ltd,No
Http://opendatacommunities.org/id/metropolitan-district-council/leeds,Leeds City Council,31/10/2018,Resources and Housing,Leeds Building Services,Supplies and Services,Operational Materials,205,10/10/2018,1810-00060,0.00,301.00,R,A J H  Pump Supply & Repair Ltd,No
Http://opendatacommunities.org/id/metropolitan-district-council/leeds,Leeds City Council,31/10/2018,Resources and Housing,Leeds Building Services,Supplies and Services,Operational Materials,205,12/10/2018,1810-00061,0.00,3444.00,R,A J H  Pump Supply & Repair Ltd,No
Http://opendatacommunities.org/id/metropolitan-district-council/leeds,Leeds City Council,31/10/2018,Resources and Housing,Leeds Building Services,Supplies and Services,Operational Materials,205,15/10/2018,1810-00062,0.00,129.90,R,A J H  Pump Supply & Repair Ltd,No
Http://opendatacommunities.org/id/metropolitan-district-council/leeds,Leeds City Council,31/10/2018,Resources and Housing,Leeds Building Services,Supplies and Services,Operational Materials,205,15/10/2018,1810-00063,0.00,200.00,R,A J H  Pump Supply & Repair Ltd,No
Http://opendatacommunities.org/id/metropolitan-district-council/leeds,Leeds City Council,31/10/2018,Resources and Housing,Leeds Building Services,Supplies and Services,Operational Materials,205,15/10/2018,1810-00064,0.00,1039.00,R,A J H  Pump Supply & Repair Ltd,No
Http://opendatacommunities.org/id/metropolitan-district-council/leeds,Leeds City Council,31/10/2018,Resources and Housing,Leeds Building Services,Supplies and Services,Operational Materials,205,15/10/2018,1810-00065,0.00,73.00,R,A J H  Pump Supply & Repair Ltd,No
Http://opendatacommunities.org/id/metropolitan-district-council/leeds,Leeds City Council,31/10/2018,Resources and Housing,Leeds Building Services,Supplies and Services,Operational Materials,205,15/10/2018,1810-00066,0.00,20.90,R,A J H  Pump Supply & Repair Ltd,No
Http://opendatacommunities.org/id/metropolitan-district-council/leeds,Leeds City Council,31/10/2018,Resources and Housing,Leeds Building Services,Supplies and Services,Operational Materials,205,15/10/2018,1810-00067,0.00,38.10,R,A J H  Pump Supply & Repair Ltd,No
Http://opendatacommunities.org/id/metropolitan-district-council/leeds,Leeds City Council,31/10/2018,Resources and Housing,Leeds Building Services,Supplies and Services,Operational Materials,205,15/10/2018,1810-00068,0.00,49.09,R,A J H  Pump Supply & Repair Ltd,No
Http://opendatacommunities.org/id/metropolitan-district-council/leeds,Leeds City Council,31/10/2018,Resources and Housing,Leeds Building Services,Supplies and Services,Operational Materials,205,15/10/2018,1810-00069,0.00,706.17,R,A J H  Pump Supply & Repair Ltd,No
Http://opendatacommunities.org/id/metropolitan-district-council/leeds,Leeds City Council,31/10/2018,Resources and Housing,Leeds Building Services,Supplies and Services,Operational Materials,205,15/10/2018,1810-00070,0.00,14.75,R,A J H  Pump Supply & Repair Ltd,No
Http://opendatacommunities.org/id/metropolitan-district-council/leeds,Leeds City Council,31/10/2018,Resources and Housing,Leeds Building Services,Supplies and Services,Operational Materials,205,15/10/2018,1810-00071,0.00,63.80,R,A J H  Pump Supply & Repair Ltd,No
Http://opendatacommunities.org/id/metropolitan-district-council/leeds,Leeds City Council,31/10/2018,Resources and Housing,Leeds Building Services,Supplies and Services,Operational Materials,205,15/10/2018,1810-00072,0.00,32.95,R,A J H  Pump Supply & Repair Ltd,No
Http://opendatacommunities.org/id/metropolitan-district-council/leeds,Leeds City Council,31/10/2018,Resources and Housing,Leeds Building Services,Supplies and Services,Operational Materials,205,15/10/2018,1810-00073,0.00,167.20,R,A J H  Pump Supply & Repair Ltd,No
Http://opendatacommunities.org/id/metropolitan-district-council/leeds,Leeds City Council,31/10/2018,Resources and Housing,Leeds Building Services,Supplies and Services,Operational Materials,205,19/10/2018,1810-00074,0.00,4.50,R,A J H  Pump Supply & Repair Ltd,No
Http://opendatacommunities.org/id/metropolitan-district-council/leeds,Leeds City Council,31/10/2018,Resources and Housing,Leeds Building Services,Supplies and Services,Operational Materials,205,19/10/2018,1810-00075,0.00,563.00,R,A J H  Pump Supply & Repair Ltd,No
Http://opendatacommunities.org/id/metropolitan-district-council/leeds,Leeds City Council,31/10/2018,Resources and Housing,Leeds Building Services,Supplies and Services,Operational Materials,205,19/10/2018,1810-00076,0.00,32.50,R,A J H  Pump Supply & Repair Ltd,No
Http://opendatacommunities.org/id/metropolitan-district-council/leeds,Leeds City Council,31/10/2018,Resources and Housing,Leeds Building Services,Supplies and Services,Operational Materials,205,19/10/2018,1810-00077,0.00,349.80,R,A J H  Pump Supply & Repair Ltd,No
Http://opendatacommunities.org/id/metropolitan-district-council/leeds,Leeds City Council,31/10/2018,Resources and Housing,Leeds Building Services,Supplies and Services,Operational Materials,205,19/10/2018,1810-00078,0.00,420.75,R,A J H  Pump Supply & Repair Ltd,No
Http://opendatacommunities.org/id/metropolitan-district-council/leeds,Leeds City Council,31/10/2018,Resources and Housing,Leeds Building Services,Supplies and Services,Operational Materials,205,19/10/2018,1810-00079,0.00,37.39,R,A J H  Pump Supply & Repair Ltd,No
Http://opendatacommunities.org/id/metropolitan-district-council/leeds,Leeds City Council,31/10/2018,Resources and Housing,Leeds Building Services,Supplies and Services,Operational Materials,205,19/10/2018,1810-00080,0.00,22.44,R,A J H  Pump Supply & Repair Ltd,No
Http://opendatacommunities.org/id/metropolitan-district-council/leeds,Leeds City Council,31/10/2018,Resources and Housing,Leeds Building Services,Supplies and Services,Operational Materials,205,19/10/2018,1810-00081,0.00,198.00,R,A J H  Pump Supply & Repair Ltd,No
Http://opendatacommunities.org/id/metropolitan-district-council/leeds,Leeds City Council,31/10/2018,Resources and Housing,Leeds Building Services,Supplies and Services,Operational Materials,205,19/10/2018,1810-00082,0.00,146.92,R,A J H  Pump Supply & Repair Ltd,No
Http://opendatacommunities.org/id/metropolitan-district-council/leeds,Leeds City Council,31/10/2018,Resources and Housing,Leeds Building Services,Supplies and Services,Operational Materials,205,19/10/2018,1810-00083,0.00,134.00,R,A J H  Pump Supply & Repair Ltd,No
Http://opendatacommunities.org/id/metropolitan-district-council/leeds,Leeds City Council,31/10/2018,Resources and Housing,Leeds Building Services,Supplies and Services,Operational Materials,205,19/10/2018,1810-00084,0.00,29.95,R,A J H  Pump Supply & Repair Ltd,No
Http://opendatacommunities.org/id/metropolitan-district-council/leeds,Leeds City Council,31/10/2018,Resources and Housing,Leeds Building Services,Supplies and Services,Operational Materials,205,26/10/2018,1810-00085,0.00,1216.50,R,A J H  Pump Supply & Repair Ltd,No
Http://opendatacommunities.org/id/metropolitan-district-council/leeds,Leeds City Council,31/10/2018,Resources and Housing,Leeds Building Services,Supplies and Services,Operational Materials,205,29/10/2018,1810-00086,0.00,329.95,R,A J H  Pump Supply & Repair Ltd,No
Http://opendatacommunities.org/id/metropolitan-district-council/leeds,Leeds City Council,31/10/2018,Resources and Housing,Leeds Building Services,Supplies and Services,Operational Materials,205,29/10/2018,1810-00087,0.00,339.52,R,A J H  Pump Supply & Repair Ltd,No
Http://opendatacommunities.org/id/metropolitan-district-council/leeds,Leeds City Council,31/10/2018,Resources and Housing,Leeds Building Services,Supplies and Services,Operational Materials,205,29/10/2018,1810-00088,0.00,295.00,R,A J H  Pump Supply & Repair Ltd,No
Http://opendatacommunities.org/id/metropolitan-district-council/leeds,Leeds City Council,31/10/2018,Resources and Housing,Leeds Building Services,Supplies and Services,Operational Materials,205,29/10/2018,1810-00089,0.00,250.00,R,A J H  Pump Supply & Repair Ltd,No
Http://opendatacommunities.org/id/metropolitan-district-council/leeds,Leeds City Council,31/10/2018,Resources and Housing,Leeds Building Services,Supplies and Services,Operational Materials,205,29/10/2018,1810-00090,0.00,590.00,R,A J H  Pump Supply & Repair Ltd,No
Http://opendatacommunities.org/id/metropolitan-district-council/leeds,Leeds City Council,31/10/2018,Resources and Housing,Leeds Building Services,Supplies and Services,Operational Materials,205,29/10/2018,1810-00091,0.00,25.00,R,A J H  Pump Supply & Repair Ltd,No
Http://opendatacommunities.org/id/metropolitan-district-council/leeds,Leeds City Council,31/10/2018,Resources and Housing,Leeds Building Services,Supplies and Services,Operational Materials,205,29/10/2018,1810-00092,0.00,159.10,R,A J H  Pump Supply & Repair Ltd,No
Http://opendatacommunities.org/id/metropolitan-district-council/leeds,Leeds City Council,31/10/2018,Resources and Housing,Leeds Building Services,Supplies and Services,Operational Materials,205,29/10/2018,1810-00093,0.00,217.00,R,A J H  Pump Supply & Repair Ltd,No
Http://opendatacommunities.org/id/metropolitan-district-council/leeds,Leeds City Council,31/10/2018,Resources and Housing,Leeds Building Services,Supplies and Services,Operational Materials,205,29/10/2018,1810-00094,0.00,9.95,R,A J H  Pump Supply & Repair Ltd,No
Http://opendatacommunities.org/id/metropolitan-district-council/leeds,Leeds City Council,31/10/2018,Resources and Housing,Leeds Building Services,Supplies and Services,Operational Materials,205,29/10/2018,1810-00095,0.00,45.12,R,A J H  Pump Supply & Repair Ltd,No
Http://opendatacommunities.org/id/metropolitan-district-council/leeds,Leeds City Council,31/10/2018,Resources and Housing,Leeds Building Services,Supplies and Services,Operational Materials,205,29/10/2018,1810-00096,0.00,315.00,R,A J H  Pump Supply & Repair Ltd,No
Http://opendatacommunities.org/id/metropolitan-district-council/leeds,Leeds City Council,31/10/2018,Resources and Housing,Leeds Building Services,Supplies and Services,Operational Materials,205,29/10/2018,1810-00097,0.00,979.71,R,A J H  Pump Supply & Repair Ltd,No
Http://opendatacommunities.org/id/metropolitan-district-council/leeds,Leeds City Council,31/10/2018,Resources and Housing,Leeds Building Services,Supplies and Services,Operational Materials,205,30/10/2018,1810-00098,0.00,94.00,R,A J H  Pump Supply & Repair Ltd,No
Http://opendatacommunities.org/id/metropolitan-district-council/leeds,Leeds City Council,31/10/2018,Resources and Housing,Leeds Building Services,Supplies and Services,Operational Materials,205,30/10/2018,1810-00099,0.00,233.45,R,A J H  Pump Supply & Repair Ltd,No
Http://opendatacommunities.org/id/metropolitan-district-council/leeds,Leeds City Council,31/10/2018,Resources and Housing,Leeds Building Services,Supplies and Services,Operational Materials,205,30/10/2018,1810-00100,0.00,81.07,R,A J H  Pump Supply & Repair Ltd,No
Http://opendatacommunities.org/id/metropolitan-district-council/leeds,Leeds City Council,31/10/2018,Resources and Housing,Leeds Building Services,Supplies and Services,Operational Materials,205,31/10/2018,1810-00101,0.00,79.50,R,A J H  Pump Supply & Repair Ltd,No
Http://opendatacommunities.org/id/metropolitan-district-council/leeds,Leeds City Council,31/10/2018,Resources and Housing,Leeds Building Services,Supplies and Services,Operational Materials,205,31/10/2018,1810-00102,0.00,77.49,R,A J H  Pump Supply & Repair Ltd,No
Http://opendatacommunities.org/id/metropolitan-district-council/leeds,Leeds City Council,31/10/2018,Resources and Housing,Leeds Building Services,Supplies and Services,Operational Materials,205,31/10/2018,1810-00103,0.00,524.00,R,A J H  Pump Supply & Repair Ltd,No
Http://opendatacommunities.org/id/metropolitan-district-council/leeds,Leeds City Council,31/10/2018,Resources and Housing,Leeds Building Services,Supplies and Services,Operational Materials,205,31/10/2018,1810-00104,0.00,945.00,R,A J H  Pump Supply & Repair Ltd,No
Http://opendatacommunities.org/id/metropolitan-district-council/leeds,Leeds City Council,31/10/2018,Resources and Housing,Leeds Building Services,Supplies and Services,Operational Materials,205,31/10/2018,1810-00105,0.00,63.89,R,A J H  Pump Supply & Repair Ltd,No
Http://opendatacommunities.org/id/metropolitan-district-council/leeds,Leeds City Council,31/10/2018,Resources and Housing,Leeds Building Services,Supplies and Services,Operational Materials,205,31/10/2018,1810-00106,0.00,84.00,R,A J H  Pump Supply & Repair Ltd,No
Http://opendatacommunities.org/id/metropolitan-district-council/leeds,Leeds City Council,31/10/2018,Resources and Housing,Leeds Building Services,Supplies and Services,Operational Materials,205,31/10/2018,1810-00107,0.00,283.00,R,A J H  Pump Supply & Repair Ltd,No
Http://opendatacommunities.org/id/metropolitan-district-council/leeds,Leeds City Council,31/10/2018,Resources and Housing,Leeds Building Services,Supplies and Services,Operational Furniture And Equipment,203,31/10/2018,1810-00108,0.00,95.00,R,A J H  Pump Supply & Repair Ltd,No
Http://opendatacommunities.org/id/metropolitan-district-council/leeds,Leeds City Council,31/10/2018,Communities and Environment,Customer Access,Supplies and Services,Other Hired And Contracted Services,265,05/10/2018,1810-00109,0.00,133.20,R,A J Promotions,No
Http://opendatacommunities.org/id/metropolitan-district-council/leeds,Leeds City Council,31/10/2018,City Development,Libraries  Arts & Heritage,Supplies and Services,Art Galleries Total Stores,003,05/10/2018,1810-00110,0.00,376.60,R,A J Promotions,No
Http://opendatacommunities.org/id/metropolitan-district-council/leeds,Leeds City Council,31/10/2018,City Development,Libraries  Arts & Heritage,Supplies and Services,Art Galleries Total Stores,003,12/10/2018,1810-00111,0.00,215.55,R,A J Promotions,No
Http://opendatacommunities.org/id/metropolitan-district-council/leeds,Leeds City Council,31/10/2018,City Development,Libraries  Arts & Heritage,Supplies and Services,Art Galleries Total Stores,003,17/10/2018,1810-00112,0.00,89.40,R,A J Promotions,No
Http://opendatacommunities.org/id/metropolitan-district-council/leeds,Leeds City Council,31/10/2018,Children and Families,Social Care,Third Party Payments,Services Rendered By Other Organisations,511,17/10/2018,1810-00113,0.00,535.50,R,REDACTED PERSONAL DATA,No
Http://opendatacommunities.org/id/metropolitan-district-council/leeds,Leeds City Council,31/10/2018,Children and Families,Social Care,Third Party Payments,Services Rendered By Other Organisations,511,19/10/2018,1810-00114,0.00,297.50,R,REDACTED PERSONAL DATA,No
Http://opendatacommunities.org/id/metropolitan-district-council/leeds,Leeds City Council,31/10/2018,Children and Families,Social Care,Third Party Payments,Services Rendered By Voluntary Sector,505,23/10/2018,1810-00115,0.00,1050.00,R,A Little Something Extra Ltd,No
Http://opendatacommunities.org/id/metropolitan-district-council/leeds,Leeds City Council,31/10/2018,Children and Families,Social Care,Third Party Payments,Services Rendered By Other Organisations,511,23/10/2018,1810-00116,0.00,700.00,R,A Little Something Extra Ltd,No
Http://opendatacommunities.org/id/metropolitan-district-council/leeds,Leeds City Council,31/10/2018,Children and Families,Social Care,Third Party Payments,Services Rendered By Voluntary Sector,505,23/10/2018,1810-00117,0.00,1050.00,R,A Little Something Extra Ltd,No
Http://opendatacommunities.org/id/metropolitan-district-council/leeds,Leeds City Council,31/10/2018,Resources and Housing,HRA Housing Leeds,Capital,Other Costs,7,04/10/2018,1810-00118,0.00,150.00,C,REDACTED PERSONAL DATA,No
Http://opendatacommunities.org/id/metropolitan-district-council/leeds,Leeds City Council,31/10/2018,Communities and Environment,Customer Access,Supplies and Services,Other Hired And Contracted Services,265,03/10/2018,1810-00119,0.00,400.50,R,A Mohammed,No
Http://opendatacommunities.org/id/metropolitan-district-council/leeds,Leeds City Council,31/10/2018,Communities and Environment,Customer Access,Supplies and Services,Other Hired And Contracted Services,265,03/10/2018,1810-00120,0.00,233.75,R,A Namaki,No
Http://opendatacommunities.org/id/metropolitan-district-council/leeds,Leeds City Council,31/10/2018,Communities and Environment,Parks and Countryside,Supplies and Services,Operational Materials,205,05/10/2018,1810-00121,0.00,500.00,R,A Newton,No
Http://opendatacommunities.org/id/metropolitan-district-council/leeds,Leeds City Council,31/10/2018,Communities and Environment,Parks and Countryside,Supplies and Services,Operational Materials,205,15/10/2018,1810-00122,0.00,920.00,R,A Newton,No
Http://opendatacommunities.org/id/metropolitan-district-council/leeds,Leeds City Council,31/10/2018,Resources and Housing,HRA Housing Leeds,Capital,Other Costs,7,25/10/2018,1810-00123,0.00,249.22,C,REDACTED PERSONAL DATA,No
Http://opendatacommunities.org/id/metropolitan-district-council/leeds,Leeds City Council,31/10/2018,Communities and Environment,Parks and Countryside,Supplies and Services,Other Hired And Contracted Services,265,19/10/2018,1810-00124,0.00,218.00,R,A R Twigg & Son Limited,No
Http://opendatacommunities.org/id/metropolitan-district-council/leeds,Leeds City Council,31/10/2018,Children and Families,Social Care,Third Party Payments,Services Rendered By Other Organisations,511,19/10/2018,1810-00125,0.00,111.56,R,A Spivey,No
Http://opendatacommunities.org/id/metropolitan-district-council/leeds,Leeds City Council,31/10/2018,Children and Families,Social Care,Third Party Payments,Services Rendered By Other Organisations,511,26/10/2018,1810-00126,0.00,37.19,R,A Spivey,No
Http://opendatacommunities.org/id/metropolitan-district-council/leeds,Leeds City Council,31/10/2018,Resources and Housing,Shared Services,Supplies and Services,Other Hired And Contracted Services,265,03/10/2018,1810-00127,0.00,46.25,R,A Star Couriers Ltd,No
Http://opendatacommunities.org/id/metropolitan-district-council/leeds,Leeds City Council,31/10/2018,Resources and Housing,Shared Services,Supplies and Services,Other Hired And Contracted Services,265,03/10/2018,1810-00128,0.00,46.25,R,A Star Couriers Ltd,No
Http://opendatacommunities.org/id/metropolitan-district-council/leeds,Leeds City Council,31/10/2018,Resources and Housing,Shared Services,Supplies and Services,Other Hired And Contracted Services,265,16/10/2018,1810-00129,0.00,88.00,R,A Star Couriers Ltd,No
Http://opendatacommunities.org/id/metropolitan-district-council/leeds,Leeds City Council,31/10/2018,Resources and Housing,Shared Services,Supplies and Services,Other Hired And Contracted Services,265,16/10/2018,1810-00130,0.00,85.00,R,A Star Couriers Ltd,No
Http://opendatacommunities.org/id/metropolitan-district-council/leeds,Leeds City Council,31/10/2018,City Development,Markets & City Centre Management,Supplies and Services,Publication And Promotion,267,26/10/2018,1810-00131,0.00,250.00,R,A T Graphics Limited,No
Http://opendatacommunities.org/id/metropolitan-district-council/leeds,Leeds City Council,31/10/2018,Communities and Environment,Waste Management,Employees,Training & Development,70,02/10/2018,1810-00132,0.00,105.00,R,A T Nerac Ltd,No
Http://opendatacommunities.org/id/metropolitan-district-council/leeds,Leeds City Council,31/10/2018,Children and Families,Social Care,Third Party Payments,Services Rendered By Other Organisations,511,17/10/2018,1810-00133,0.00,116.02,R,REDACTED PERSONAL DATA,No
Http://opendatacommunities.org/id/metropolitan-district-council/leeds,Leeds City Council,31/10/2018,Children and Families,Social Care,Third Party Payments,Services Rendered By Other Organisations,511,19/10/2018,1810-00134,0.00,42.50,R,REDACTED PERSONAL DATA,No
Http://opendatacommunities.org/id/metropolitan-district-council/leeds,Leeds City Council,31/10/2018,Children and Families,Social Care,Third Party Payments,Services Rendered By Other Organisations,511,17/10/2018,1810-00135,0.00,267.75,R,REDACTED PERSONAL DATA,No
Http://opendatacommunities.org/id/metropolitan-district-council/leeds,Leeds City Council,31/10/2018,Children and Families,Social Care,Third Party Payments,Services Rendered By Other Organisations,511,19/10/2018,1810-00136,0.00,223.12,R,REDACTED PERSONAL DATA,No
Http://opendatacommunities.org/id/metropolitan-district-council/leeds,Leeds City Council,31/10/2018,City Development,Libraries  Arts & Heritage,Supplies and Services,Other Hired And Contracted Services,265,10/10/2018,1810-00137,0.00,240.00,R,A Wells,No
Http://opendatacommunities.org/id/metropolitan-district-council/leeds,Leeds City Council,31/10/2018,Children and Families,Social Care,Third Party Payments,Services Rendered By Other Organisations,511,19/10/2018,1810-00138,0.00,471.75,R,REDACTED PERSONAL DATA,No
Http://opendatacommunities.org/id/metropolitan-district-council/leeds,Leeds City Council,31/10/2018,Children and Families,Social Care,Third Party Payments,General External Residential Placements,507,10/10/2018,1810-00139,0.00,17828.57,R,A Wilderness Way Ltd,No
Http://opendatacommunities.org/id/metropolitan-district-council/leeds,Leeds City Council,31/10/2018,Communities and Environment,Waste Management,Capital,Furniture And Equipment,5,19/10/2018,1810-00140,0.00,-266.10,C,A&C Weber Uk Ltd,No
Http://opendatacommunities.org/id/metropolitan-district-council/leeds,Leeds City Council,31/10/2018,Communities and Environment,Waste Management,Capital,Furniture And Equipment,5,19/10/2018,1810-00141,0.00,266.10,C,A&C Weber Uk Ltd,No
Http://opendatacommunities.org/id/metropolitan-district-council/leeds,Leeds City Council,31/10/2018,Resources and Housing,Leeds Building Services,Supplies and Services,Other Hired And Contracted Services,265,12/10/2018,1810-00142,0.00,383.00,R,A1 Bridge Flue Systems,No
Http://opendatacommunities.org/id/metropolitan-district-council/leeds,Leeds City Council,31/10/2018,Adults and Health,Services For Older People - 65 And Over,Third Party Payments,Residential Care Dementia,571,17/10/2018,1810-00143,0.00,3565.97,R,Aaron Court Care Home,No
Http://opendatacommunities.org/id/metropolitan-district-council/leeds,Leeds City Council As Accountable Body,31/10/2018,Social Services Pooled Budgets,Leeds Community Equip Store Pooled Budgt,Supplies and Services,Other Equipment,203,31/10/2018,1810-00144,0.00,458.00,R,Aat (Gb) Ltd,No
Http://opendatacommunities.org/id/metropolitan-district-council/leeds,Leeds City Council,31/10/2018,Resources and Housing,Strategic Housing Partnership & Support,Supplies and Services,Other Hired And Contracted Services,265,04/10/2018,1810-00145,0.00,50.00,R,Aatsham Ul'Haq,No
Http://opendatacommunities.org/id/metropolitan-district-council/leeds,Leeds City Council,31/10/2018,Adults and Health,Social Services Support Services,Transport,Public Transport Expenses,310,16/10/2018,1810-00146,0.00,-0.70,R,Ab Cars,No
Http://opendatacommunities.org/id/metropolitan-district-council/leeds,Leeds City Council,31/10/2018,Adults and Health,Social Services Support Services,Transport,Public Transport Expenses,310,16/10/2018,1810-00147,0.00,442.70,R,Ab Cars,No
Http://opendatacommunities.org/id/metropolitan-district-council/leeds,Leeds City Council,31/10/2018,Communities and Environment,Parks And Countryside  ,Supplies and Services,Resaleable Materials,204,05/09/2018,1810-00148,0.00,324.88,R,Abacus Cards Ltd,Yes
Http://opendatacommunities.org/id/metropolitan-district-council/leeds,Leeds City Council,31/10/2018,Resources and Housing,Legal Services,Supplies and Sevices,Genl Legal - Miscellaneous,733,03/10/2018,1810-00149,0.00,25.70,R,Abacus Express Limited,No
Http://opendatacommunities.org/id/metropolitan-district-council/leeds,Leeds City Council,31/10/2018,Children and Families,Social Care,Support Services,Legal Disbursements,411,10/10/2018,1810-00150,0.00,24.19,R,Abacus Express Limited,No
Http://opendatacommunities.org/id/metropolitan-district-council/leeds,Leeds City Council,31/10/2018,Children and Families,Social Care,Support Services,Legal Disbursements,411,10/10/2018,1810-00151,0.00,24.19,R,Abacus Express Limited,No
Http://opendatacommunities.org/id/metropolitan-district-council/leeds,Leeds City Council,31/10/2018,Children and Families,Social Care,Support Services,Legal Disbursements,411,10/10/2018,1810-00152,0.00,16.66,R,Abacus Express Limited,No
Http://opendatacommunities.org/id/metropolitan-district-council/leeds,Leeds City Council,31/10/2018,Children and Families,Social Care,Support Services,Legal Disbursements,411,10/10/2018,1810-00153,0.00,17.74,R,Abacus Express Limited,No
Http://opendatacommunities.org/id/metropolitan-district-council/leeds,Leeds City Council,31/10/2018,City Development,Planning & Sustainable Development,Supplies and Services,Postages,212,10/10/2018,1810-00154,0.00,15.59,R,Abacus Express Limited,No
Http://opendatacommunities.org/id/metropolitan-district-council/leeds,Leeds City Council,31/10/2018,Strategic Landlord,Property and Contracts,Support Services,Legal Disbursements,411,19/10/2018,1810-00155,0.00,10.75,R,Abacus Express Limited,No
Http://opendatacommunities.org/id/metropolitan-district-council/leeds,Leeds City Council,31/10/2018,Strategic Landlord,Property and Contracts,Support Services,Legal Disbursements,411,19/10/2018,1810-00156,0.00,10.75,R,Abacus Express Limited,No
Http://opendatacommunities.org/id/metropolitan-district-council/leeds,Leeds City Council,31/10/2018,Children and Families,Social Care,Support Services,Legal Disbursements,411,19/10/2018,1810-00157,0.00,31.02,R,Abacus Express Limited,No
Http://opendatacommunities.org/id/metropolitan-district-council/leeds,Leeds City Council,31/10/2018,Strategic Landlord,Property and Contracts,Support Services,Legal Disbursements,411,19/10/2018,1810-00158,0.00,10.75,R,Abacus Express Limited,No
Http://opendatacommunities.org/id/metropolitan-district-council/leeds,Leeds City Council,31/10/2018,Strategic Landlord,Property and Contracts,Support Services,Legal Disbursements,411,19/10/2018,1810-00159,0.00,10.75,R,Abacus Express Limited,No
Http://opendatacommunities.org/id/metropolitan-district-council/leeds,Leeds City Council,31/10/2018,Children and Families,Social Care,Support Services,Legal Disbursements,411,31/10/2018,1810-00160,0.00,15.59,R,Abacus Express Limited,No
Http://opendatacommunities.org/id/metropolitan-district-council/leeds,Leeds City Council,31/10/2018,Adults and Health,Services For Adults Under 65 Mental/Dis,Third Party Payments,Nursing Home,570,17/10/2018,1810-00161,0.00,1852.00,R,Abbey Grange Nursing Home,No
Http://opendatacommunities.org/id/metropolitan-district-council/leeds,Leeds City Council,31/10/2018,Communities and Environment,Environmental Health,Supplies and Services,Bought In Professional Services,277,10/10/2018,1810-00162,0.00,38.45,R,Abbey House Veterinary Hospital,No
Http://opendatacommunities.org/id/metropolitan-district-council/leeds,Leeds City Council,31/10/2018,Communities and Environment,Environmental Health,Supplies and Services,Bought In Professional Services,277,10/10/2018,1810-00163,0.00,26.24,R,Abbey House Veterinary Hospital,No
Http://opendatacommunities.org/id/metropolitan-district-council/leeds,Leeds City Council,31/10/2018,Communities and Environment,Environmental Health,Supplies and Services,Bought In Professional Services,277,10/10/2018,1810-00164,0.00,33.13,R,Abbey House Veterinary Hospital,No
Http://opendatacommunities.org/id/metropolitan-district-council/leeds,Leeds City Council,31/10/2018,Communities and Environment,Environmental Health,Supplies and Services,Bought In Professional Services,277,10/10/2018,1810-00165,0.00,33.13,R,Abbey House Veterinary Hospital,No
Http://opendatacommunities.org/id/metropolitan-district-council/leeds,Leeds City Council,31/10/2018,Communities and Environment,Environmental Health,Supplies and Services,Bought In Professional Services,277,10/10/2018,1810-00166,0.00,12.62,R,Abbey House Veterinary Hospital,No
Http://opendatacommunities.org/id/metropolitan-district-council/leeds,Leeds City Council,31/10/2018,Communities and Environment,Environmental Health,Supplies and Services,Bought In Professional Services,277,31/10/2018,1810-00167,0.00,125.00,R,Abbey House Veterinary Hospital,No
Http://opendatacommunities.org/id/metropolitan-district-council/leeds,Leeds City Council,31/10/2018,Children and Families,Learning,Supplies and Services,Other Hired And Contracted Services,265,18/10/2018,1810-00168,0.00,525.00,R,Abbey Multi Academy Trust,No
Http://opendatacommunities.org/id/metropolitan-district-council/leeds,Leeds City Council,31/10/2018,Children and Families,Learning,Supplies and Services,Other Hired And Contracted Services,265,23/10/2018,1810-00169,0.00,450.00,R,Abbey Multi Academy Trust,No
Http://opendatacommunities.org/id/metropolitan-district-council/leeds,Leeds City Council,31/10/2018,Children and Families,Social Care,Third Party Payments,Services Rendered By Other Organisations,511,17/10/2018,1810-00170,0.00,2428.87,R,Abc Daycare And Ozone Out Of School,No
Http://opendatacommunities.org/id/metropolitan-district-council/leeds,Leeds City Council,31/10/2018,Children and Families,Social Care,Third Party Payments,Services Rendered By Other Organisations,511,19/10/2018,1810-00171,0.00,6815.94,R,Abc Daycare And Ozone Out Of School,No
Http://opendatacommunities.org/id/metropolitan-district-council/leeds,Leeds City Council,31/10/2018,Children and Families,Social Care,Third Party Payments,Services Rendered By Other Organisations,511,17/10/2018,1810-00172,0.00,1338.75,R,Abc Nursery At Lufc,No
Http://opendatacommunities.org/id/metropolitan-district-council/leeds,Leeds City Council,31/10/2018,Children and Families,Social Care,Third Party Payments,Services Rendered By Other Organisations,511,19/10/2018,1810-00173,0.00,5131.87,R,Abc Nursery At Lufc,No
Http://opendatacommunities.org/id/metropolitan-district-council/leeds,Leeds City Council,31/10/2018,Children and Families,Social Care,Third Party Payments,Services Rendered By Other Organisations,511,17/10/2018,1810-00174,0.00,1071.00,R,Abc@D'S Childcare Services,No
Http://opendatacommunities.org/id/metropolitan-district-council/leeds,Leeds City Council,31/10/2018,Children and Families,Social Care,Third Party Payments,Services Rendered By Other Organisations,511,19/10/2018,1810-00175,0.00,6024.37,R,Abc@D'S Childcare Services,No
Http://opendatacommunities.org/id/metropolitan-district-council/leeds,Leeds City Council,31/10/2018,Communities and Environment,Customer Access,Supplies and Services,Other Hired And Contracted Services,265,03/10/2018,1810-00176,0.00,84.50,R,Abdul Wadood Kazizadha,No
Http://opendatacommunities.org/id/metropolitan-district-council/leeds,Leeds City Council,31/10/2018,Communities and Environment,Customer Access,Supplies and Services,Other Hired And Contracted Services,265,03/10/2018,1810-00177,0.00,146.75,R,Abdulahad Denha,No
Http://opendatacommunities.org/id/metropolitan-district-council/leeds,Leeds City Council,31/10/2018,Adults and Health,Services For Older People - 65 And Over,Third Party Payments,Nursing Home,570,17/10/2018,1810-00178,0.00,24998.25,R,Aberford Hall,No
Http://opendatacommunities.org/id/metropolitan-district-council/leeds,Leeds City Council,31/10/2018,Adults and Health,Services For Older People - 65 And Over,Third Party Payments,Nursing Care Dementia,574,17/10/2018,1810-00179,0.00,3517.84,R,Aberford Hall,No
Http://opendatacommunities.org/id/metropolitan-district-council/leeds,Leeds City Council,31/10/2018,Adults and Health,Services For Older People - 65 And Over,Third Party Payments,Residential,580,17/10/2018,1810-00180,0.00,1531.12,R,Aberford Hall,No
Http://opendatacommunities.org/id/metropolitan-district-council/leeds,Leeds City Council,31/10/2018,Resources and Housing,Leeds Building Services,Supplies and Services,Operational Materials,205,05/10/2018,1810-00181,0.00,260.45,R,Abi Garage Doors Ltd,No
Http://opendatacommunities.org/id/metropolitan-district-council/leeds,Leeds City Council,31/10/2018,Resources and Housing,Leeds Building Services,Supplies and Services,Operational Materials,205,05/10/2018,1810-00182,0.00,15.00,R,Abi Garage Doors Ltd,No
Http://opendatacommunities.org/id/metropolitan-district-council/leeds,Leeds City Council,31/10/2018,Resources and Housing,Leeds Building Services,Supplies and Services,Operational Materials,205,05/10/2018,1810-00183,0.00,15.00,R,Abi Garage Doors Ltd,No
Http://opendatacommunities.org/id/metropolitan-district-council/leeds,Leeds City Council,31/10/2018,Resources and Housing,Leeds Building Services,Supplies and Services,Operational Materials,205,05/10/2018,1810-00184,0.00,15.00,R,Abi Garage Doors Ltd,No
Http://opendatacommunities.org/id/metropolitan-district-council/leeds,Leeds City Council,31/10/2018,Resources and Housing,Leeds Building Services,Supplies and Services,Operational Materials,205,18/10/2018,1810-00185,0.00,260.45,R,Abi Garage Doors Ltd,No
Http://opendatacommunities.org/id/metropolitan-district-council/leeds,Leeds City Council,31/10/2018,Resources and Housing,Leeds Building Services,Supplies and Services,Operational Materials,205,19/10/2018,1810-00186,0.00,6.67,R,Abi Garage Doors Ltd,No
Http://opendatacommunities.org/id/metropolitan-district-council/leeds,Leeds City Council,31/10/2018,City Development,Libraries  Arts & Heritage  ,Supplies and Services,Operational Furniture And Equipment,203,12/09/2018,1810-00187,0.00,75.07,R,Absoluteproduct.Co,Yes
Http://opendatacommunities.org/id/metropolitan-district-council/leeds,Leeds City Council,31/10/2018,Children and Families,Social Care,Employees,Agency Staff,8,10/10/2018,1810-00188,0.00,1269.00,R,Academic Appointments Ltd,No
Http://opendatacommunities.org/id/metropolitan-district-council/leeds,Leeds City Council,31/10/2018,Children and Families,Social Care,Employees,Agency Staff,8,11/10/2018,1810-00189,0.00,-63.00,R,Academic Appointments Ltd,No
Http://opendatacommunities.org/id/metropolitan-district-council/leeds,Leeds City Council,31/10/2018,Children and Families,Social Care,Employees,Agency Staff,8,11/10/2018,1810-00190,0.00,987.00,R,Academic Appointments Ltd,No
Http://opendatacommunities.org/id/metropolitan-district-council/leeds,Leeds City Council,31/10/2018,Children and Families,Social Care,Employees,Agency Staff,8,11/10/2018,1810-00191,0.00,1410.00,R,Academic Appointments Ltd,No
Http://opendatacommunities.org/id/metropolitan-district-council/leeds,Leeds City Council,31/10/2018,Children and Families,Social Care,Employees,Agency Staff,8,11/10/2018,1810-00192,0.00,1128.00,R,Academic Appointments Ltd,No
Http://opendatacommunities.org/id/metropolitan-district-council/leeds,Leeds City Council,31/10/2018,Children and Families,Social Care,Employees,Agency Staff,8,12/10/2018,1810-00193,0.00,1610.00,R,Academic Appointments Ltd,No
Http://opendatacommunities.org/id/metropolitan-district-council/leeds,Leeds City Council,31/10/2018,Children and Families,Social Care,Employees,Agency Staff,8,17/10/2018,1810-00194,0.00,1134.00,R,Academic Appointments Ltd,No
Http://opendatacommunities.org/id/metropolitan-district-council/leeds,Leeds City Council,31/10/2018,Children and Families,Social Care,Employees,Agency Staff,8,19/10/2018,1810-00195,0.00,2923.00,R,Academic Appointments Ltd,No
Http://opendatacommunities.org/id/metropolitan-district-council/leeds,Leeds City Council,31/10/2018,Children and Families,Social Care,Employees,Agency Staff,8,26/10/2018,1810-00196,0.00,3170.00,R,Academic Appointments Ltd,No
Http://opendatacommunities.org/id/metropolitan-district-council/leeds,Leeds City Council,31/10/2018,Communities and Environment,Community Safety,Transport,Hire Of Movable Plant & Machinery,315,26/10/2018,1810-00197,0.00,1268.57,R,Access Hire Nationwide Ltd,No
Http://opendatacommunities.org/id/metropolitan-district-council/leeds,Leeds City Council,31/10/2018,Communities and Environment,Community Safety,Transport,Hire Of Movable Plant & Machinery,315,30/10/2018,1810-00198,0.00,1310.86,R,Access Hire Nationwide Ltd,No
Http://opendatacommunities.org/id/metropolitan-district-council/leeds,Leeds City Council,31/10/2018,Resources and Housing,Leeds Building Services,Supplies and Services,Operational Materials,205,19/10/2018,1810-00199,0.00,2169.80,R,Access Lift Consultants Ltd,No
Http://opendatacommunities.org/id/metropolitan-district-council/leeds,Leeds City Council,31/10/2018,Communities and Environment,Parks And Countryside  ,Supplies and Services,Operational Materials,205,04/09/2018,1810-00200,0.00,46.66,R,Access Locksmiths,Yes
Http://opendatacommunities.org/id/metropolitan-district-council/leeds,Leeds City Council,31/10/2018,Resources and Housing,Commercial Services  ,Supplies and Services,Operational Materials,205,24/09/2018,1810-00201,0.00,53.77,R,Access Locksmiths,Yes
Http://opendatacommunities.org/id/metropolitan-district-council/leeds,Leeds City Council,31/10/2018,Resources and Housing,Leeds Building Services,Supplies and Services,Operational Materials,205,01/10/2018,1810-00202,0.00,155.84,R,Access Locksmiths (Leeds) Limited,No
Http://opendatacommunities.org/id/metropolitan-district-council/leeds,Leeds City Council,31/10/2018,Resources and Housing,Leeds Building Services,Supplies and Services,Operational Materials,205,01/10/2018,1810-00203,0.00,28.94,R,Access Locksmiths (Leeds) Limited,No
Http://opendatacommunities.org/id/metropolitan-district-council/leeds,Leeds City Council,31/10/2018,Resources and Housing,Leeds Building Services,Supplies and Services,Operational Materials,205,01/10/2018,1810-00204,0.00,18.10,R,Access Locksmiths (Leeds) Limited,No
Http://opendatacommunities.org/id/metropolitan-district-council/leeds,Leeds City Council,31/10/2018,Strategic Landlord,Property and Contracts,Premises,General Maintenance,104,02/10/2018,1810-00205,0.00,103.00,R,Access Locksmiths (Leeds) Limited,No
Http://opendatacommunities.org/id/metropolitan-district-council/leeds,Leeds City Council,31/10/2018,Strategic Landlord,Property and Contracts,Premises,General Maintenance,104,02/10/2018,1810-00206,0.00,151.65,R,Access Locksmiths (Leeds) Limited,No
Http://opendatacommunities.org/id/metropolitan-district-council/leeds,Leeds City Council,31/10/2018,Strategic Landlord,Property and Contracts,Premises,General Maintenance,104,02/10/2018,1810-00207,0.00,180.40,R,Access Locksmiths (Leeds) Limited,No
Http://opendatacommunities.org/id/metropolitan-district-council/leeds,Leeds City Council,31/10/2018,Strategic Landlord,Property and Contracts,Premises,General Maintenance,104,02/10/2018,1810-00208,0.00,242.16,R,Access Locksmiths (Leeds) Limited,No
Http://opendatacommunities.org/id/metropolitan-district-council/leeds,Leeds City Council,31/10/2018,Resources and Housing,Leeds Building Services,Supplies and Services,Operational Materials,205,05/10/2018,1810-00209,0.00,21.02,R,Access Locksmiths (Leeds) Limited,No
Http://opendatacommunities.org/id/metropolitan-district-council/leeds,Leeds City Council,31/10/2018,Resources and Housing,Leeds Building Services,Supplies and Services,Operational Materials,205,05/10/2018,1810-00210,0.00,27.36,R,Access Locksmiths (Leeds) Limited,No
Http://opendatacommunities.org/id/metropolitan-district-council/leeds,Leeds City Council,31/10/2018,Resources and Housing,Leeds Building Services,Supplies and Services,Operational Materials,205,05/10/2018,1810-00211,0.00,6.75,R,Access Locksmiths (Leeds) Limited,No
Http://opendatacommunities.org/id/metropolitan-district-council/leeds,Leeds City Council,31/10/2018,Resources and Housing,Leeds Building Services,Supplies and Services,Operational Materials,205,05/10/2018,1810-00212,0.00,43.58,R,Access Locksmiths (Leeds) Limited,No
Http://opendatacommunities.org/id/metropolitan-district-council/leeds,Leeds City Council,31/10/2018,Resources and Housing,Leeds Building Services,Supplies and Services,Operational Materials,205,05/10/2018,1810-00213,0.00,2.70,R,Access Locksmiths (Leeds) Limited,No
Http://opendatacommunities.org/id/metropolitan-district-council/leeds,Leeds City Council,31/10/2018,Resources and Housing,Leeds Building Services,Supplies and Services,Operational Materials,205,05/10/2018,1810-00214,0.00,29.44,R,Access Locksmiths (Leeds) Limited,No
Http://opendatacommunities.org/id/metropolitan-district-council/leeds,Leeds City Council,31/10/2018,Strategic Landlord,Property and Contracts,Premises,General Maintenance,104,05/10/2018,1810-00215,0.00,207.43,R,Access Locksmiths (Leeds) Limited,No
Http://opendatacommunities.org/id/metropolitan-district-council/leeds,Leeds City Council,31/10/2018,Strategic Landlord,Housing Management,Premises,General Maintenance,104,05/10/2018,1810-00216,0.00,1197.00,R,Access Locksmiths (Leeds) Limited,No
Http://opendatacommunities.org/id/metropolitan-district-council/leeds,Leeds City Council,31/10/2018,Resources and Housing,Leeds Building Services,Supplies and Services,Operational Materials,205,05/10/2018,1810-00217,0.00,70.53,R,Access Locksmiths (Leeds) Limited,No
Http://opendatacommunities.org/id/metropolitan-district-council/leeds,Leeds City Council,31/10/2018,Resources and Housing,Leeds Building Services,Supplies and Services,Operational Materials,205,05/10/2018,1810-00218,0.00,84.24,R,Access Locksmiths (Leeds) Limited,No
Http://opendatacommunities.org/id/metropolitan-district-council/leeds,Leeds City Council,31/10/2018,Resources and Housing,Leeds Building Services,Supplies and Services,Operational Materials,205,05/10/2018,1810-00219,0.00,16.83,R,Access Locksmiths (Leeds) Limited,No
Http://opendatacommunities.org/id/metropolitan-district-council/leeds,Leeds City Council,31/10/2018,Resources and Housing,Leeds Building Services,Supplies and Services,Operational Materials,205,05/10/2018,1810-00220,0.00,207.56,R,Access Locksmiths (Leeds) Limited,No
Http://opendatacommunities.org/id/metropolitan-district-council/leeds,Leeds City Council,31/10/2018,Resources and Housing,Leeds Building Services,Supplies and Services,Operational Materials,205,05/10/2018,1810-00221,0.00,1829.00,R,Access Locksmiths (Leeds) Limited,No
Http://opendatacommunities.org/id/metropolitan-district-council/leeds,Leeds City Council,31/10/2018,Strategic Landlord,Property and Contracts,Premises,General Maintenance,104,05/10/2018,1810-00222,0.00,184.63,R,Access Locksmiths (Leeds) Limited,No
Http://opendatacommunities.org/id/metropolitan-district-council/leeds,Leeds City Council,31/10/2018,Resources and Housing,Leeds Building Services,Supplies and Services,Operational Materials,205,19/10/2018,1810-00223,0.00,33.72,R,Access Locksmiths (Leeds) Limited,No
Http://opendatacommunities.org/id/metropolitan-district-council/leeds,Leeds City Council,31/10/2018,Resources and Housing,Leeds Building Services,Supplies and Services,Operational Materials,205,19/10/2018,1810-00224,0.00,20.56,R,Access Locksmiths (Leeds) Limited,No
Http://opendatacommunities.org/id/metropolitan-district-council/leeds,Leeds City Council,31/10/2018,Resources and Housing,Leeds Building Services,Supplies and Services,Operational Materials,205,19/10/2018,1810-00225,0.00,149.84,R,Access Locksmiths (Leeds) Limited,No
Http://opendatacommunities.org/id/metropolitan-district-council/leeds,Leeds City Council,31/10/2018,Resources and Housing,Leeds Building Services,Supplies and Services,Operational Materials,205,19/10/2018,1810-00226,0.00,16.43,R,Access Locksmiths (Leeds) Limited,No
Http://opendatacommunities.org/id/metropolitan-district-council/leeds,Leeds City Council,31/10/2018,Resources and Housing,Leeds Building Services,Supplies and Services,Operational Materials,205,19/10/2018,1810-00227,0.00,40.90,R,Access Locksmiths (Leeds) Limited,No
Http://opendatacommunities.org/id/metropolitan-district-council/leeds,Leeds City Council,31/10/2018,Resources and Housing,Leeds Building Services,Supplies and Services,Operational Materials,205,19/10/2018,1810-00228,0.00,103.21,R,Access Locksmiths (Leeds) Limited,No
Http://opendatacommunities.org/id/metropolitan-district-council/leeds,Leeds City Council,31/10/2018,Resources and Housing,Leeds Building Services,Supplies and Services,Operational Materials,205,19/10/2018,1810-00229,0.00,17.55,R,Access Locksmiths (Leeds) Limited,No
Http://opendatacommunities.org/id/metropolitan-district-council/leeds,Leeds City Council,31/10/2018,Resources and Housing,HRA Housing Leeds,Capital,Other Costs,7,24/10/2018,1810-00230,0.00,180.54,C,Access Locksmiths (Leeds) Limited,No
Http://opendatacommunities.org/id/metropolitan-district-council/leeds,Leeds City Council,31/10/2018,Communities and Environment,Cleaner Neighbourhood Teams,Supplies and Services,Clothing & Uniforms,241,24/10/2018,1810-00231,0.00,47.16,R,Access Locksmiths (Leeds) Limited,No
Http://opendatacommunities.org/id/metropolitan-district-council/leeds,Leeds City Council,31/10/2018,Resources and Housing,HRA Housing Leeds,Capital,Other Costs,7,24/10/2018,1810-00232,0.00,34.20,C,Access Locksmiths (Leeds) Limited,No
Http://opendatacommunities.org/id/metropolitan-district-council/leeds,Leeds City Council,31/10/2018,Strategic Landlord,Housing Management,Supplies and Services,Resaleable Materials,204,24/10/2018,1810-00233,0.00,228.00,R,Access Locksmiths (Leeds) Limited,No
Http://opendatacommunities.org/id/metropolitan-district-council/leeds,Leeds City Council,31/10/2018,Resources and Housing,Leeds Building Services,Supplies and Services,Office Furniture & Equipment,201,24/10/2018,1810-00234,0.00,24.00,R,Access Locksmiths (Leeds) Limited,No
Http://opendatacommunities.org/id/metropolitan-district-council/leeds,Leeds City Council,31/10/2018,Communities and Environment,Cleaner Neighbourhood Teams,Supplies and Services,Other Hired And Contracted Services,265,24/10/2018,1810-00235,0.00,18.30,R,Access Locksmiths (Leeds) Limited,No
Http://opendatacommunities.org/id/metropolitan-district-council/leeds,Leeds City Council,31/10/2018,Resources and Housing,HRA Housing Leeds,Capital,Construction,3,24/10/2018,1810-00236,0.00,100.90,C,Access Locksmiths (Leeds) Limited,No
Http://opendatacommunities.org/id/metropolitan-district-council/leeds,Leeds City Council,31/10/2018,Strategic Landlord,Housing Management,Supplies and Services,Resaleable Materials,204,24/10/2018,1810-00237,0.00,34.20,R,Access Locksmiths (Leeds) Limited,No
Http://opendatacommunities.org/id/metropolitan-district-council/leeds,Leeds City Council,31/10/2018,Strategic Landlord,Property and Contracts,Premises,General Maintenance,104,29/10/2018,1810-00238,0.00,124.02,R,Access Locksmiths (Leeds) Limited,No
Http://opendatacommunities.org/id/metropolitan-district-council/leeds,Leeds City Council,31/10/2018,Resources and Housing,Leeds Building Services,Supplies and Services,Operational Materials,205,31/10/2018,1810-00239,0.00,38.75,R,Access Locksmiths (Leeds) Limited,No
Http://opendatacommunities.org/id/metropolitan-district-council/leeds,Leeds City Council,31/10/2018,Resources and Housing,Leeds Building Services,Supplies and Services,Operational Materials,205,31/10/2018,1810-00240,0.00,17.10,R,Access Locksmiths (Leeds) Limited,No
Http://opendatacommunities.org/id/metropolitan-district-council/leeds,Leeds City Council,31/10/2018,City Development,Libraries  Arts & Heritage,Supplies and Services,Bought In Professional Services,277,19/10/2018,1810-00241,0.00,7000.00,R,Access Moving Image Ltd,No
Http://opendatacommunities.org/id/metropolitan-district-council/leeds,Leeds City Council,31/10/2018,Resources and Housing,Leeds Building Services,Supplies and Services,Operational Materials,205,08/10/2018,1810-00242,0.00,625.00,R,Access Opening Systems,No
Http://opendatacommunities.org/id/metropolitan-district-council/leeds,Leeds City Council,31/10/2018,Resources and Housing,Leeds Building Services,Supplies and Services,Operational Materials,205,08/10/2018,1810-00243,0.00,58.25,R,Access Opening Systems,No
Http://opendatacommunities.org/id/metropolitan-district-council/leeds,Leeds City Council,31/10/2018,Resources and Housing,Leeds Building Services,Supplies and Services,Other Hired And Contracted Services,265,08/10/2018,1810-00244,0.00,390.00,R,Access Opening Systems,No
Http://opendatacommunities.org/id/metropolitan-district-council/leeds,Leeds City Council,31/10/2018,Resources and Housing,Leeds Building Services,Supplies and Services,Operational Materials,205,12/10/2018,1810-00245,0.00,713.62,R,Access Opening Systems,No
Http://opendatacommunities.org/id/metropolitan-district-council/leeds,Leeds City Council,31/10/2018,Resources and Housing,Leeds Building Services,Supplies and Services,Other Hired And Contracted Services,265,12/10/2018,1810-00246,0.00,920.00,R,Access Opening Systems,No
Http://opendatacommunities.org/id/metropolitan-district-council/leeds,Leeds City Council,31/10/2018,Resources and Housing,Leeds Building Services,Supplies and Services,Other Hired And Contracted Services,265,15/10/2018,1810-00247,0.00,6511.00,R,Access Solutions Northern Ltd,No
Http://opendatacommunities.org/id/metropolitan-district-council/leeds,Leeds City Council,31/10/2018,Communities and Environment,Communities,Capital,Furniture And Equipment,5,16/10/2018,1810-00248,0.00,95.00,C,Access Solutions Northern Ltd,No
Http://opendatacommunities.org/id/metropolitan-district-council/leeds,Leeds City Council,31/10/2018,Insurance,Insurance,Supplies and Services,Insurance Claims,248,19/10/2018,1810-00249,0.00,1250.00,R,Accountant General Of The Senior Courts,No
Http://opendatacommunities.org/id/metropolitan-district-council/leeds,Leeds City Council,31/10/2018,City Development,Recreation,Supplies and Services,Other Hired And Contracted Services,265,05/10/2018,1810-00250,0.00,90.00,R,Ace Container Services Limited,No
Http://opendatacommunities.org/id/metropolitan-district-council/leeds,Leeds City Council,31/10/2018,City Development,Libraries  Arts & Heritage,Supplies and Services,Other Hired And Contracted Services,265,30/10/2018,1810-00251,0.00,45.00,R,Ace Container Services Limited,No
Http://opendatacommunities.org/id/metropolitan-district-council/leeds,Leeds City Council,31/10/2018,City Development,Libraries  Arts & Heritage,Supplies and Services,Other Hired And Contracted Services,265,30/10/2018,1810-00252,0.00,45.00,R,Ace Container Services Limited,No
Http://opendatacommunities.org/id/metropolitan-district-council/leeds,Leeds City Council,31/10/2018,City Development,Libraries  Arts & Heritage,Supplies and Services,Other Hired And Contracted Services,265,30/10/2018,1810-00253,0.00,46.50,R,Ace Container Services Limited,No
Http://opendatacommunities.org/id/metropolitan-district-council/leeds,Leeds City Council,31/10/2018,City Development,Libraries  Arts & Heritage,Supplies and Services,Other Hired And Contracted Services,265,30/10/2018,1810-00254,0.00,46.50,R,Ace Container Services Limited,No
Http://opendatacommunities.org/id/metropolitan-district-council/leeds,Leeds City Council,31/10/2018,City Development,Libraries  Arts & Heritage,Supplies and Services,Other Hired And Contracted Services,265,30/10/2018,1810-00255,0.00,45.00,R,Ace Container Services Limited,No
Http://opendatacommunities.org/id/metropolitan-district-council/leeds,Leeds City Council,31/10/2018,Resources and Housing,Strategic Housing Partnership & Support,Supplies and Services,Other Hired And Contracted Services,265,04/10/2018,1810-00256,0.00,562.50,R,Ackroyd Dent & Co,No
Http://opendatacommunities.org/id/metropolitan-district-council/leeds,Leeds City Council,31/10/2018,Children and Families,Partnerships & Health,Third Party Payments,SEN Placements,566,18/10/2018,1810-00257,0.00,34952.94,R,Ackworth School,No
Http://opendatacommunities.org/id/metropolitan-district-council/leeds,Leeds City Council,31/10/2018,Adults and Health,Services For Older People - 65 And Over,Third Party Payments,Nursing Care Dementia,574,17/10/2018,1810-00258,0.00,1625.64,R,Acorn Nursing Home,No
Http://opendatacommunities.org/id/metropolitan-district-council/leeds,Leeds City Council,31/10/2018,City Development,Libraries  Arts & Heritage,Supplies and Services,Other Hired And Contracted Services,265,03/10/2018,1810-00259,0.00,2433.00,R,Acorn Scaffolding (Yorkshire) Ltd,No
Http://opendatacommunities.org/id/metropolitan-district-council/leeds,Leeds City Council,31/10/2018,City Development,Libraries  Arts & Heritage,Supplies and Services,Other Hired And Contracted Services,265,04/10/2018,1810-00260,0.00,1861.00,R,Acorn Scaffolding (Yorkshire) Ltd,No
Http://opendatacommunities.org/id/metropolitan-district-council/leeds,Leeds City Council,31/10/2018,Children and Families,Social Care,Third Party Payments,Services Rendered By Other Organisations,511,19/10/2018,1810-00261,0.00,6113.62,R,Acorns Nursery,No
Http://opendatacommunities.org/id/metropolitan-district-council/leeds,Leeds City Council,31/10/2018,City Development,Highways  ,Supplies and Services,Computer Software & Equipment,214,03/09/2018,1810-00262,0.00,282.92,R,Acp* Black Box Network Se,Yes
Http://opendatacommunities.org/id/metropolitan-district-council/leeds,Leeds City Council,31/10/2018,Adults and Health,Services For Older People - 65 And Over,Third Party Payments,Nursing Home,570,17/10/2018,1810-00263,0.00,54330.61,R,Acre Green,No
Http://opendatacommunities.org/id/metropolitan-district-council/leeds,Leeds City Council,31/10/2018,Adults and Health,Services For Older People - 65 And Over,Third Party Payments,Residential,580,17/10/2018,1810-00264,0.00,3631.60,R,Acre Green,No
Http://opendatacommunities.org/id/metropolitan-district-council/leeds,Leeds City Council,31/10/2018,Adults and Health,Services For Older People Under 65 P/Dis,Third Party Payments,Nursing Home,570,17/10/2018,1810-00265,0.00,2200.00,R,Acre Green,No
Http://opendatacommunities.org/id/metropolitan-district-council/leeds,Leeds City Council,31/10/2018,Adults and Health,Services For Older People Under 65 P/Dis,Third Party Payments,Residential,580,17/10/2018,1810-00266,0.00,1898.80,R,Acre Green,No
Http://opendatacommunities.org/id/metropolitan-district-council/leeds,Leeds City Council,31/10/2018,Children and Families,Social Care,Third Party Payments,Services Rendered By Other Organisations,511,17/10/2018,1810-00267,0.00,4284.00,R,Acre Wood Day Nursery,No
Http://opendatacommunities.org/id/metropolitan-district-council/leeds,Leeds City Council,31/10/2018,Children and Families,Social Care,Third Party Payments,Services Rendered By Other Organisations,511,19/10/2018,1810-00268,0.00,8478.75,R,Acre Wood Day Nursery,No
Http://opendatacommunities.org/id/metropolitan-district-council/leeds,Leeds City Council,31/10/2018,Insurance,Insurance,Supplies and Services,Insurance Claims,248,04/10/2018,1810-00269,0.00,1374.00,R,Acromas Insurance Company Ltd,No
Http://opendatacommunities.org/id/metropolitan-district-council/leeds,Leeds City Council,31/10/2018,Resources and Housing,Leeds Building Services,Supplies and Services,Other Hired And Contracted Services,265,10/10/2018,1810-00270,0.00,12554.00,R,Acs (Uk) Ltd,No
Http://opendatacommunities.org/id/metropolitan-district-council/leeds,Leeds City Council,31/10/2018,Resources and Housing,Leeds Building Services,Supplies and Services,Other Hired And Contracted Services,265,10/10/2018,1810-00271,0.00,6427.93,R,Acs (Uk) Ltd,No
Http://opendatacommunities.org/id/metropolitan-district-council/leeds,Leeds City Council,31/10/2018,Resources and Housing,Technology  ,Supplies and Services,Computer Software & Equipment,214,31/08/2018,1810-00272,0.00,16.76,R,Acsbusinesssupplies,Yes
Http://opendatacommunities.org/id/metropolitan-district-council/leeds,Leeds City Council,31/10/2018,Resources and Housing,Technology  ,Employees,Best Value Training,70,05/09/2018,1810-00273,0.00,2450.00,R,Act Now Training Limit,Yes
Http://opendatacommunities.org/id/metropolitan-district-council/leeds,Leeds City Council,31/10/2018,Resources and Housing,Technology  ,Employees,Best Value Training,70,05/09/2018,1810-00274,0.00,2450.00,R,Act Now Training Limit,Yes
Http://opendatacommunities.org/id/metropolitan-district-council/leeds,Leeds City Council,31/10/2018,City Development,Highways,Supplies and Services,Operational Materials,205,04/10/2018,1810-00275,0.00,420.00,R,Actavo (Leeds H & S),No
Http://opendatacommunities.org/id/metropolitan-district-council/leeds,Leeds City Council As Accountable Body,31/10/2018,Social Services Pooled Budgets,Leeds Community Equip Store Pooled Budgt,Supplies and Services,Other Equipment,203,19/10/2018,1810-00276,0.00,410.00,R,Action Assist Ltd,No
Http://opendatacommunities.org/id/metropolitan-district-council/leeds,Leeds City Council,31/10/2018,Adults and Health,Services For Adults Under 65 Mental/Dis,Third Party Payments,Fees - Level 4,520,01/10/2018,1810-00277,0.00,220.00,R,Action First Recruitment Ltd,No
Http://opendatacommunities.org/id/metropolitan-district-council/leeds,Leeds City Council,31/10/2018,Adults and Health,Services For Adults Under 65 Mental/Dis,Third Party Payments,Fees - Level 4,520,01/10/2018,1810-00278,0.00,220.00,R,Action First Recruitment Ltd,No
Http://opendatacommunities.org/id/metropolitan-district-council/leeds,Leeds City Council,31/10/2018,Adults and Health,Services For Adults Under 65 Mental/Dis,Third Party Payments,Fees - Level 4,520,01/10/2018,1810-00279,0.00,220.00,R,Action First Recruitment Ltd,No
Http://opendatacommunities.org/id/metropolitan-district-council/leeds,Leeds City Council,31/10/2018,Children and Families,Social Care,Third Party Payments,Independent Fostering Agencies,509,18/10/2018,1810-00280,0.00,4622.40,R,Action For Children,No
Http://opendatacommunities.org/id/metropolitan-district-council/leeds,Leeds City Council,31/10/2018,Children and Families,Social Care,Third Party Payments,Independent Fostering Agencies,509,18/10/2018,1810-00281,0.00,4622.40,R,Action For Children,No
Http://opendatacommunities.org/id/metropolitan-district-council/leeds,Leeds City Council,31/10/2018,Children and Families,Social Care,Third Party Payments,Independent Fostering Agencies,509,18/10/2018,1810-00282,0.00,4622.40,R,Action For Children,No
Http://opendatacommunities.org/id/metropolitan-district-council/leeds,Leeds City Council,31/10/2018,Children and Families,Social Care,Third Party Payments,Independent Fostering Agencies,509,18/10/2018,1810-00283,0.00,4622.40,R,Action For Children,No
Http://opendatacommunities.org/id/metropolitan-district-council/leeds,Leeds City Council,31/10/2018,Children and Families,Social Care,Third Party Payments,Services Rendered By Other Organisations,511,17/10/2018,1810-00284,0.00,803.25,R,Active Kids Yeadon Llp,No
Http://opendatacommunities.org/id/metropolitan-district-council/leeds,Leeds City Council,31/10/2018,Children and Families,Social Care  ,Supplies and Services,Operational Materials,205,18/09/2018,1810-00285,0.00,21.00,R,Active Workwear,Yes
Http://opendatacommunities.org/id/metropolitan-district-council/leeds,Leeds City Council,31/10/2018,Children and Families,Social Care  ,Supplies and Services,Operational Materials,205,20/09/2018,1810-00286,0.00,10.00,R,Active Workwear,Yes
Http://opendatacommunities.org/id/metropolitan-district-council/leeds,Leeds City Council,31/10/2018,Adults and Health,Public Health  ,Supplies and Services,Teaching Materials,202,13/09/2018,1810-00287,0.00,74.94,R,Activitytoshare,Yes
Http://opendatacommunities.org/id/metropolitan-district-council/leeds,Leeds City Council,31/10/2018,Adults and Health,Public Health  ,Supplies and Services,Postages,212,13/09/2018,1810-00288,0.00,6.25,R,Activitytoshare,Yes
Http://opendatacommunities.org/id/metropolitan-district-council/leeds,Leeds City Council,31/10/2018,Communities and Environment,Waste Management,Supplies and Services,Recycling & Reuse Charges,234,02/10/2018,1810-00289,0.00,3931.56,R,Acumen Waste Services Ltd,No
Http://opendatacommunities.org/id/metropolitan-district-council/leeds,Leeds City Council,31/10/2018,Communities and Environment,Cleaner Neighbourhood Teams,Premises,Removal Of Workplace Waste,126,02/10/2018,1810-00290,0.00,110.00,R,Acumen Waste Services Ltd,No
Http://opendatacommunities.org/id/metropolitan-district-council/leeds,Leeds City Council,31/10/2018,Communities and Environment,Cleaner Neighbourhood Teams,Premises,Removal Of Workplace Waste,126,02/10/2018,1810-00291,0.00,110.00,R,Acumen Waste Services Ltd,No
Http://opendatacommunities.org/id/metropolitan-district-council/leeds,Leeds City Council,31/10/2018,Communities and Environment,Cleaner Neighbourhood Teams,Premises,Removal Of Workplace Waste,126,02/10/2018,1810-00292,0.00,110.00,R,Acumen Waste Services Ltd,No
Http://opendatacommunities.org/id/metropolitan-district-council/leeds,Leeds City Council,31/10/2018,Communities and Environment,Cleaner Neighbourhood Teams,Premises,Removal Of Workplace Waste,126,02/10/2018,1810-00293,0.00,110.00,R,Acumen Waste Services Ltd,No
Http://opendatacommunities.org/id/metropolitan-district-council/leeds,Leeds City Council,31/10/2018,Communities and Environment,Cleaner Neighbourhood Teams,Premises,Removal Of Workplace Waste,126,02/10/2018,1810-00294,0.00,110.00,R,Acumen Waste Services Ltd,No
Http://opendatacommunities.org/id/metropolitan-district-council/leeds,Leeds City Council,31/10/2018,Communities and Environment,Waste Management,Supplies and Services,Recycling & Reuse Charges,234,08/10/2018,1810-00295,0.00,4879.61,R,Acumen Waste Services Ltd,No
Http://opendatacommunities.org/id/metropolitan-district-council/leeds,Leeds City Council,31/10/2018,Communities and Environment,Waste Management,Supplies and Services,Recycling & Reuse Charges,234,12/10/2018,1810-00296,0.00,3802.92,R,Acumen Waste Services Ltd,No
Http://opendatacommunities.org/id/metropolitan-district-council/leeds,Leeds City Council,31/10/2018,Communities and Environment,Cleaner Neighbourhood Teams,Premises,Removal Of Workplace Waste,126,12/10/2018,1810-00297,0.00,110.00,R,Acumen Waste Services Ltd,No
Http://opendatacommunities.org/id/metropolitan-district-council/leeds,Leeds City Council,31/10/2018,Communities and Environment,Cleaner Neighbourhood Teams,Premises,Removal Of Workplace Waste,126,12/10/2018,1810-00298,0.00,110.00,R,Acumen Waste Services Ltd,No
Http://opendatacommunities.org/id/metropolitan-district-council/leeds,Leeds City Council,31/10/2018,Communities and Environment,Cleaner Neighbourhood Teams,Premises,Removal Of Workplace Waste,126,12/10/2018,1810-00299,0.00,110.00,R,Acumen Waste Services Ltd,No
Http://opendatacommunities.org/id/metropolitan-district-council/leeds,Leeds City Council,31/10/2018,Communities and Environment,Waste Management,Supplies and Services,Recycling & Reuse Charges,234,17/10/2018,1810-00300,0.00,4866.88,R,Acumen Waste Services Ltd,No
Http://opendatacommunities.org/id/metropolitan-district-council/leeds,Leeds City Council,31/10/2018,Communities and Environment,Waste Management,Supplies and Services,Recycling & Reuse Charges,234,24/10/2018,1810-00301,0.00,5727.16,R,Acumen Waste Services Ltd,No
Http://opendatacommunities.org/id/metropolitan-district-council/leeds,Leeds City Council,31/10/2018,Communities and Environment,Cleaner Neighbourhood Teams,Premises,Removal Of Workplace Waste,126,24/10/2018,1810-00302,0.00,110.00,R,Acumen Waste Services Ltd,No
Http://opendatacommunities.org/id/metropolitan-district-council/leeds,Leeds City Council,31/10/2018,Communities and Environment,Cleaner Neighbourhood Teams,Premises,Removal Of Workplace Waste,126,24/10/2018,1810-00303,0.00,110.00,R,Acumen Waste Services Ltd,No
Http://opendatacommunities.org/id/metropolitan-district-council/leeds,Leeds City Council,31/10/2018,Communities and Environment,Cleaner Neighbourhood Teams,Premises,Removal Of Workplace Waste,126,24/10/2018,1810-00304,0.00,110.00,R,Acumen Waste Services Ltd,No
Http://opendatacommunities.org/id/metropolitan-district-council/leeds,Leeds City Council,31/10/2018,Communities and Environment,Cleaner Neighbourhood Teams,Premises,Removal Of Workplace Waste,126,26/10/2018,1810-00305,0.00,110.00,R,Acumen Waste Services Ltd,No
Http://opendatacommunities.org/id/metropolitan-district-council/leeds,Leeds City Council,31/10/2018,Communities and Environment,Waste Management,Supplies and Services,Recycling & Reuse Charges,234,31/10/2018,1810-00306,0.00,5666.19,R,Acumen Waste Services Ltd,No
Http://opendatacommunities.org/id/metropolitan-district-council/leeds,Leeds City Council,31/10/2018,Resources and Housing,Shared Services,Supplies and Services,Other Hired And Contracted Services,265,03/10/2018,1810-00307,0.00,96.44,R,Ad3 Envelope Printers Limited,No
Http://opendatacommunities.org/id/metropolitan-district-council/leeds,Leeds City Council,31/10/2018,Resources and Housing,Shared Services,Supplies and Services,Operational Materials,205,03/10/2018,1810-00308,0.00,705.00,R,Ad3 Envelope Printers Limited,No
Http://opendatacommunities.org/id/metropolitan-district-council/leeds,Leeds City Council,31/10/2018,Resources and Housing,Shared Services,Supplies and Services,Operational Materials,205,26/10/2018,1810-00309,0.00,705.00,R,Ad3 Envelope Printers Limited,No
Http://opendatacommunities.org/id/metropolitan-district-council/leeds,Leeds City Council,31/10/2018,City Development,Recreation,Employees,Training & Development,70,30/10/2018,1810-00310,0.00,150.00,R,REDACTED PERSONAL DATA,No
Http://opendatacommunities.org/id/metropolitan-district-council/leeds,Leeds City Council,31/10/2018,Adults and Health,Services For Older People - 65 And Over,Third Party Payments,Nursing Home,570,17/10/2018,1810-00311,0.00,3897.12,R,Adbolton Hall,No
Http://opendatacommunities.org/id/metropolitan-district-council/leeds,Leeds City Council As Accountable Body,31/10/2018,Social Services Pooled Budgets,Jcs For People With Learning Disabilitie,Transfer Payments,Direct Payments,626,08/10/2018,1810-00312,0.00,2899.35,R,REDACTED PERSONAL DATA,No
Http://opendatacommunities.org/id/metropolitan-district-council/leeds,Leeds City Council,31/10/2018,Resources and Housing,Technology  ,Employees,Agency Staff,8,05/09/2018,1810-00313,0.00,45497.42,R,Adecco Alfred Marks,Yes
Http://opendatacommunities.org/id/metropolitan-district-council/leeds,Leeds City Council,31/10/2018,Resources and Housing,Technology  ,Employees,Agency Staff,8,14/09/2018,1810-00314,0.00,51181.18,R,Adecco Alfred Marks,Yes
Http://opendatacommunities.org/id/metropolitan-district-council/leeds,Leeds City Council,31/10/2018,Strategic Landlord,Housing Management,Supplies and Services,Grants To Voluntary Organisations,293,29/10/2018,1810-00315,0.00,100.00,R,Adel Crag Community Association,No
Http://opendatacommunities.org/id/metropolitan-district-council/leeds,Leeds City Council,31/10/2018,Children and Families,Social Care,Third Party Payments,Services Rendered By Voluntary Sector,505,19/10/2018,1810-00316,0.00,3703.87,R,Adel Pre School,No
Http://opendatacommunities.org/id/metropolitan-district-council/leeds,Leeds City Council,31/10/2018,Communities and Environment,Parks And Countryside  ,Transport,Miscellaneous Transport Related Costs,324,25/09/2018,1810-00317,0.00,25.18,R,Adel Sf Connect,Yes
Http://opendatacommunities.org/id/metropolitan-district-council/leeds,Leeds City Council,31/10/2018,Children and Families,Social Care,Third Party Payments,Services Rendered By Other Organisations,511,19/10/2018,1810-00318,0.00,223.12,R,REDACTED PERSONAL DATA,No
Http://opendatacommunities.org/id/metropolitan-district-council/leeds,Leeds City Council,31/10/2018,Children and Families,Social Care,Third Party Payments,Services Rendered By Other Organisations,511,19/10/2018,1810-00319,0.00,148.75,R,REDACTED PERSONAL DATA,No
Http://opendatacommunities.org/id/metropolitan-district-council/leeds,Leeds City Council,31/10/2018,Children and Families,Social Care,Third Party Payments,Services Rendered By Other Organisations,511,19/10/2018,1810-00320,0.00,357.00,R,REDACTED PERSONAL DATA,No
Http://opendatacommunities.org/id/metropolitan-district-council/leeds,Leeds City Council,31/10/2018,Adults and Health,Services For Older People - 65 And Over,Third Party Payments,Nursing Home,570,17/10/2018,1810-00321,0.00,1184.76,R,Aden House,No
Http://opendatacommunities.org/id/metropolitan-district-council/leeds,Leeds City Council,31/10/2018,Resources and Housing,Leeds Building Services,Supplies and Services,Operational Materials,205,01/10/2018,1810-00322,0.00,796.95,R,Adi Global,No
Http://opendatacommunities.org/id/metropolitan-district-council/leeds,Leeds City Council,31/10/2018,Resources and Housing,Leeds Building Services,Supplies and Services,Operational Materials,205,01/10/2018,1810-00323,0.00,318.87,R,Adi Global,No
Http://opendatacommunities.org/id/metropolitan-district-council/leeds,Leeds City Council,31/10/2018,Resources and Housing,Leeds Building Services,Supplies and Services,Operational Materials,205,01/10/2018,1810-00324,0.00,47.39,R,Adi Global,No
Http://opendatacommunities.org/id/metropolitan-district-council/leeds,Leeds City Council,31/10/2018,Resources and Housing,Leeds Building Services,Supplies and Services,Operational Materials,205,01/10/2018,1810-00325,0.00,812.83,R,Adi Global,No
Http://opendatacommunities.org/id/metropolitan-district-council/leeds,Leeds City Council,31/10/2018,Resources and Housing,Leeds Building Services,Supplies and Services,Operational Materials,205,01/10/2018,1810-00326,0.00,70.42,R,Adi Global,No
Http://opendatacommunities.org/id/metropolitan-district-council/leeds,Leeds City Council,31/10/2018,Resources and Housing,Leeds Building Services,Supplies and Services,Operational Materials,205,01/10/2018,1810-00327,0.00,46.73,R,Adi Global,No
Http://opendatacommunities.org/id/metropolitan-district-council/leeds,Leeds City Council,31/10/2018,Resources and Housing,Leeds Building Services,Supplies and Services,Operational Materials,205,01/10/2018,1810-00328,0.00,18.72,R,Adi Global,No
Http://opendatacommunities.org/id/metropolitan-district-council/leeds,Leeds City Council,31/10/2018,Resources and Housing,Leeds Building Services,Supplies and Services,Operational Materials,205,08/10/2018,1810-00329,0.00,28.95,R,Adi Global,No
Http://opendatacommunities.org/id/metropolitan-district-council/leeds,Leeds City Council,31/10/2018,Resources and Housing,Leeds Building Services,Supplies and Services,Operational Materials,205,10/10/2018,1810-00330,0.00,26655.24,R,Adi Global,No
Http://opendatacommunities.org/id/metropolitan-district-council/leeds,Leeds City Council,31/10/2018,Resources and Housing,Leeds Building Services,Supplies and Services,Operational Materials,205,10/10/2018,1810-00331,0.00,1367.48,R,Adi Global,No
Http://opendatacommunities.org/id/metropolitan-district-council/leeds,Leeds City Council,31/10/2018,Resources and Housing,Leeds Building Services,Supplies and Services,Operational Materials,205,12/10/2018,1810-00332,0.00,2635.00,R,Adi Global,No
Http://opendatacommunities.org/id/metropolitan-district-council/leeds,Leeds City Council,31/10/2018,Resources and Housing,Leeds Building Services,Supplies and Services,Operational Materials,205,12/10/2018,1810-00333,0.00,162.00,R,Adi Global,No
Http://opendatacommunities.org/id/metropolitan-district-council/leeds,Leeds City Council,31/10/2018,Resources and Housing,Leeds Building Services,Supplies and Services,Operational Materials,205,12/10/2018,1810-00334,0.00,41.55,R,Adi Global,No
Http://opendatacommunities.org/id/metropolitan-district-council/leeds,Leeds City Council,31/10/2018,Resources and Housing,Leeds Building Services,Supplies and Services,Operational Materials,205,16/10/2018,1810-00335,0.00,32.19,R,Adi Global,No
Http://opendatacommunities.org/id/metropolitan-district-council/leeds,Leeds City Council,31/10/2018,Resources and Housing,Leeds Building Services,Supplies and Services,Operational Materials,205,18/10/2018,1810-00336,0.00,65.60,R,Adi Global,No
Http://opendatacommunities.org/id/metropolitan-district-council/leeds,Leeds City Council,31/10/2018,Resources and Housing,Leeds Building Services,Supplies and Services,Operational Materials,205,22/10/2018,1810-00337,0.00,520.31,R,Adi Global,No
Http://opendatacommunities.org/id/metropolitan-district-council/leeds,Leeds City Council,31/10/2018,Resources and Housing,Leeds Building Services,Supplies and Services,Operational Materials,205,22/10/2018,1810-00338,0.00,262.38,R,Adi Global,No
Http://opendatacommunities.org/id/metropolitan-district-council/leeds,Leeds City Council,31/10/2018,Resources and Housing,Leeds Building Services,Supplies and Services,Operational Materials,205,22/10/2018,1810-00339,0.00,221.20,R,Adi Global,No
Http://opendatacommunities.org/id/metropolitan-district-council/leeds,Leeds City Council,31/10/2018,Resources and Housing,Leeds Building Services,Supplies and Services,Operational Materials,205,22/10/2018,1810-00340,0.00,830.72,R,Adi Global,No
Http://opendatacommunities.org/id/metropolitan-district-council/leeds,Leeds City Council,31/10/2018,Resources and Housing,Leeds Building Services,Supplies and Services,Operational Materials,205,26/10/2018,1810-00341,0.00,10.80,R,Adi Global,No
Http://opendatacommunities.org/id/metropolitan-district-council/leeds,Leeds City Council,31/10/2018,Adults and Health,Services For Adults Under 65 Mental/Dis,Third Party Payments,Home Care,568,12/10/2018,1810-00342,0.00,-16.00,R,Adjuvo,No
Http://opendatacommunities.org/id/metropolitan-district-council/leeds,Leeds City Council,31/10/2018,Adults and Health,Services For Adults Under 65 Mental/Dis,Third Party Payments,Home Care,568,12/10/2018,1810-00343,0.00,352.00,R,Adjuvo,No
Http://opendatacommunities.org/id/metropolitan-district-council/leeds,Leeds City Council,31/10/2018,Adults and Health,Services For Adults Under 65 Mental/Dis,Third Party Payments,Home Care,568,12/10/2018,1810-00344,0.00,2352.00,R,Adjuvo,No
Http://opendatacommunities.org/id/metropolitan-district-council/leeds,Leeds City Council,31/10/2018,Adults and Health,Services For Older People - 65 And Over,Third Party Payments,Home Care,568,26/10/2018,1810-00345,0.00,5676.00,R,Adjuvo,No
Http://opendatacommunities.org/id/metropolitan-district-council/leeds,Leeds City Council,31/10/2018,City Development,Recreation  ,Supplies and Services,Licences,266,21/09/2018,1810-00346,0.00,298.02,R,Adobe Creative Cloud,Yes
Http://opendatacommunities.org/id/metropolitan-district-council/leeds,Leeds City Council,31/10/2018,Children and Families,Social Care,Third Party Payments,Independent Fostering Agencies,509,05/10/2018,1810-00347,0.00,2945.00,R,Adolescent And Childrens Trust,No
Http://opendatacommunities.org/id/metropolitan-district-council/leeds,Leeds City Council,31/10/2018,Children and Families,Social Care,Third Party Payments,Independent Fostering Agencies,509,05/10/2018,1810-00348,0.00,2755.00,R,Adolescent And Childrens Trust,No
Http://opendatacommunities.org/id/metropolitan-district-council/leeds,Leeds City Council,31/10/2018,Children and Families,Social Care,Third Party Payments,Independent Fostering Agencies,509,05/10/2018,1810-00349,0.00,2945.00,R,Adolescent And Childrens Trust,No
Http://opendatacommunities.org/id/metropolitan-district-council/leeds,Leeds City Council,31/10/2018,Children and Families,Social Care,Third Party Payments,Independent Fostering Agencies,509,05/10/2018,1810-00350,0.00,2945.00,R,Adolescent And Childrens Trust,No
Http://opendatacommunities.org/id/metropolitan-district-council/leeds,Leeds City Council,31/10/2018,Children and Families,Social Care,Third Party Payments,Independent Fostering Agencies,509,05/10/2018,1810-00351,0.00,208.00,R,Adolescent And Childrens Trust,No
Http://opendatacommunities.org/id/metropolitan-district-council/leeds,Leeds City Council,31/10/2018,Children and Families,Social Care,Third Party Payments,Independent Fostering Agencies,509,05/10/2018,1810-00352,0.00,3193.00,R,Adolescent And Childrens Trust,No
Http://opendatacommunities.org/id/metropolitan-district-council/leeds,Leeds City Council,31/10/2018,Children and Families,Social Care,Third Party Payments,Independent Fostering Agencies,509,05/10/2018,1810-00353,0.00,873.44,R,Adolescent And Childrens Trust,No
Http://opendatacommunities.org/id/metropolitan-district-council/leeds,Leeds City Council,31/10/2018,Children and Families,Social Care,Third Party Payments,Placement Support,550,05/10/2018,1810-00354,0.00,142.86,R,REDACTED PERSONAL DATA,No
Http://opendatacommunities.org/id/metropolitan-district-council/leeds,Leeds City Council,31/10/2018,Children and Families,Social Care,Third Party Payments,Placement Support,550,26/10/2018,1810-00355,0.00,428.58,R,REDACTED PERSONAL DATA,No
Http://opendatacommunities.org/id/metropolitan-district-council/leeds,Leeds City Council As Accountable Body,31/10/2018,Social Services Pooled Budgets,Jcs For People With Learning Disabilitie,Third Party Payments,Residential,580,18/10/2018,1810-00356,0.00,2609.36,R,Adrian House,No
Http://opendatacommunities.org/id/metropolitan-district-council/leeds,Leeds City Council As Accountable Body,31/10/2018,Social Services Pooled Budgets,Jcs For People With Learning Disabilitie,Third Party Payments,Residential,580,18/10/2018,1810-00357,0.00,2609.36,R,Adrian House,No
Http://opendatacommunities.org/id/metropolitan-district-council/leeds,Leeds City Council,31/10/2018,City Development,Libraries  Arts & Heritage,Supplies and Services,Other Hired And Contracted Services,265,04/10/2018,1810-00358,0.00,120.00,R,Adrian Knight,No
Http://opendatacommunities.org/id/metropolitan-district-council/leeds,Leeds City Council,31/10/2018,City Development,Libraries  Arts & Heritage,Supplies and Services,Other Hired And Contracted Services,265,12/10/2018,1810-00359,0.00,80.00,R,Adrian Knight,No
Http://opendatacommunities.org/id/metropolitan-district-council/leeds,Leeds City Council,31/10/2018,Strategic Landlord,Housing Management,Premises,Premises Security Services,162,10/10/2018,1810-00360,0.00,156.21,R,Adt Fire And Security Plc,No
Http://opendatacommunities.org/id/metropolitan-district-council/leeds,Leeds City Council,31/10/2018,Resources and Housing,Corporate Property Management,Premises,Maintenance Of Buildings,101,15/10/2018,1810-00361,0.00,1374.64,R,Adt Fire And Security Plc,No
Http://opendatacommunities.org/id/metropolitan-district-council/leeds,Leeds City Council,31/10/2018,Strategic Landlord,Housing Management,Premises,Premises Security Services,162,16/10/2018,1810-00362,0.00,148.35,R,Adt Fire And Security Plc,No
Http://opendatacommunities.org/id/metropolitan-district-council/leeds,Leeds City Council As Accountable Body,31/10/2018,Social Services Pooled Budgets,Jcs For People With Learning Disabilitie,Third Party Payments,Sheltered Accommodation,569,26/10/2018,1810-00363,0.00,1332.20,R,Adult Placement Services,No
Http://opendatacommunities.org/id/metropolitan-district-council/leeds,Leeds City Council,31/10/2018,City Development,Libraries  Arts & Heritage,Supplies and Services,External Audit Fees,261,04/10/2018,1810-00364,0.00,90.00,R,Advance Stocks Ltd,No
Http://opendatacommunities.org/id/metropolitan-district-council/leeds,Leeds City Council,31/10/2018,City Development,Recreation,Supplies and Services,External Audit Fees,261,05/10/2018,1810-00365,0.00,135.00,R,Advance Stocks Ltd,No
Http://opendatacommunities.org/id/metropolitan-district-council/leeds,Leeds City Council,31/10/2018,City Development,Recreation,Supplies and Services,External Audit Fees,261,05/10/2018,1810-00366,0.00,85.00,R,Advance Stocks Ltd,No
Http://opendatacommunities.org/id/metropolitan-district-council/leeds,Leeds City Council,31/10/2018,City Development,Libraries  Arts & Heritage,Supplies and Services,External Audit Fees,261,05/10/2018,1810-00367,0.00,85.00,R,Advance Stocks Ltd,No
Http://opendatacommunities.org/id/metropolitan-district-council/leeds,Leeds City Council,31/10/2018,City Development,Recreation,Supplies and Services,External Audit Fees,261,23/10/2018,1810-00368,0.00,85.00,R,Advance Stocks Ltd,No
Http://opendatacommunities.org/id/metropolitan-district-council/leeds,Leeds City Council,31/10/2018,City Development,Recreation,Supplies and Services,External Audit Fees,261,26/10/2018,1810-00369,0.00,135.00,R,Advance Stocks Ltd,No
Http://opendatacommunities.org/id/metropolitan-district-council/leeds,Leeds City Council,31/10/2018,City Development,Libraries  Arts & Heritage,Supplies and Services,External Audit Fees,261,31/10/2018,1810-00370,0.00,90.00,R,Advance Stocks Ltd,No
Http://opendatacommunities.org/id/metropolitan-district-council/leeds,Leeds City Council,31/10/2018,City Development,Libraries  Arts & Heritage,Supplies and Services,External Audit Fees,261,31/10/2018,1810-00371,0.00,90.00,R,Advance Stocks Ltd,No
Http://opendatacommunities.org/id/metropolitan-district-council/leeds,Leeds City Council,31/10/2018,Children and Families,Social Care,Support Services,Legal Disbursements,411,31/10/2018,1810-00372,0.00,405.37,R,Advanced Child Care Assessments Ltd,No
Http://opendatacommunities.org/id/metropolitan-district-council/leeds,Leeds City Council,31/10/2018,Resources and Housing,Corporate Property Management,Premises,Maintenance Of Buildings,101,19/10/2018,1810-00373,0.00,633.92,R,Advanced Diesel Engineering,No
Http://opendatacommunities.org/id/metropolitan-district-council/leeds,Leeds City Council,31/10/2018,City Development,Recreation  ,Supplies and Services,Office Furniture & Equipment,201,19/09/2018,1810-00374,0.00,66.55,R,Advanced Moulds Ltd,Yes
Http://opendatacommunities.org/id/metropolitan-district-council/leeds,Leeds City Council As Accountable Body,31/10/2018,Social Services Pooled Budgets,Jcs For People With Learning Disabilitie,Third Party Payments,Residential,580,17/10/2018,1810-00375,0.00,17782.08,R,Advitam Ltd,No
Http://opendatacommunities.org/id/metropolitan-district-council/leeds,Leeds City Council As Accountable Body,31/10/2018,Social Services Pooled Budgets,Jcs For People With Learning Disabilitie,Third Party Payments,Other Agency Services,561,04/10/2018,1810-00376,0.00,407.40,R,Advonet,No
Http://opendatacommunities.org/id/metropolitan-district-council/leeds,Leeds City Council,31/10/2018,Adults and Health,Services For Older People - 65 And Over,Third Party Payments,Payments To Voluntary Organisations,561,05/10/2018,1810-00377,0.00,103916.67,R,Advonet,No
Http://opendatacommunities.org/id/metropolitan-district-council/leeds,Leeds City Council As Accountable Body,31/10/2018,Social Services Pooled Budgets,Jcs For People With Learning Disabilitie,Third Party Payments,Other Agency Services,561,05/10/2018,1810-00378,0.00,92.40,R,Advonet,No
Http://opendatacommunities.org/id/metropolitan-district-council/leeds,Leeds City Council As Accountable Body,31/10/2018,Social Services Pooled Budgets,Jcs For People With Learning Disabilitie,Third Party Payments,Other Agency Services,561,05/10/2018,1810-00379,0.00,84.90,R,Advonet,No
Http://opendatacommunities.org/id/metropolitan-district-council/leeds,Leeds City Council As Accountable Body,31/10/2018,Social Services Pooled Budgets,Jcs For People With Learning Disabilitie,Third Party Payments,Other Agency Services,561,05/10/2018,1810-00380,0.00,7.50,R,Advonet,No
Http://opendatacommunities.org/id/metropolitan-district-council/leeds,Leeds City Council As Accountable Body,31/10/2018,Social Services Pooled Budgets,Jcs For People With Learning Disabilitie,Third Party Payments,Other Agency Services,561,05/10/2018,1810-00381,0.00,107.40,R,Advonet,No
Http://opendatacommunities.org/id/metropolitan-district-council/leeds,Leeds City Council As Accountable Body,31/10/2018,Social Services Pooled Budgets,Jcs For People With Learning Disabilitie,Third Party Payments,Other Agency Services,561,05/10/2018,1810-00382,0.00,65.10,R,Advonet,No
Http://opendatacommunities.org/id/metropolitan-district-council/leeds,Leeds City Council As Accountable Body,31/10/2018,Social Services Pooled Budgets,Jcs For People With Learning Disabilitie,Third Party Payments,Other Agency Services,561,05/10/2018,1810-00383,0.00,380.10,R,Advonet,No
Http://opendatacommunities.org/id/metropolitan-district-council/leeds,Leeds City Council As Accountable Body,31/10/2018,Social Services Pooled Budgets,Jcs For People With Learning Disabilitie,Third Party Payments,Other Agency Services,561,16/10/2018,1810-00384,0.00,11372.30,R,Advonet,No
Http://opendatacommunities.org/id/metropolitan-district-council/leeds,Leeds City Council As Accountable Body,31/10/2018,Social Services Pooled Budgets,Jcs For People With Learning Disabilitie,Third Party Payments,Other Agency Services,561,16/10/2018,1810-00385,0.00,6567.66,R,Advonet,No
Http://opendatacommunities.org/id/metropolitan-district-council/leeds,Leeds City Council,31/10/2018,Adults and Health,Services For Older People - 65 And Over,Third Party Payments,Payments To Voluntary Organisations,561,26/10/2018,1810-00386,0.00,103916.67,R,Advonet,No
Http://opendatacommunities.org/id/metropolitan-district-council/leeds,Leeds City Council As Accountable Body,31/10/2018,Social Services Pooled Budgets,Jcs For People With Learning Disabilitie,Third Party Payments,Other Agency Services,561,31/10/2018,1810-00387,0.00,12.60,R,Advonet,No
Http://opendatacommunities.org/id/metropolitan-district-council/leeds,Leeds City Council,31/10/2018,City Development,Asset Management Services,Supplies and Services,Other Hired And Contracted Services,265,18/10/2018,1810-00388,0.00,18505.00,R,Aecom Limited,No
Http://opendatacommunities.org/id/metropolitan-district-council/leeds,Leeds City Council,31/10/2018,City Development,Employment & Skills,Supplies and Services,Bought In Professional Services,277,10/10/2018,1810-00389,0.00,259.00,R,Aelp Association Of Employment,No
Http://opendatacommunities.org/id/metropolitan-district-council/leeds,Leeds City Council,31/10/2018,City Development,Libraries  Arts & Heritage,Supplies and Services,Advertising,211,31/10/2018,1810-00390,0.00,395.00,R,Aesthetica Magazine Ltd,No
Http://opendatacommunities.org/id/metropolitan-district-council/leeds,Leeds City Council,31/10/2018,Adults and Health,Services For Older People Under 65 P/Dis,Third Party Payments,Home Care,568,02/10/2018,1810-00391,0.00,526.68,R,Affinity Trust,No
Http://opendatacommunities.org/id/metropolitan-district-council/leeds,Leeds City Council,31/10/2018,Adults and Health,Services For Older People Under 65 P/Dis,Third Party Payments,Home Care,568,02/10/2018,1810-00392,0.00,526.68,R,Affinity Trust,No
Http://opendatacommunities.org/id/metropolitan-district-council/leeds,Leeds City Council,31/10/2018,Adults and Health,Services For Older People Under 65 P/Dis,Third Party Payments,Home Care,568,02/10/2018,1810-00393,0.00,526.68,R,Affinity Trust,No
Http://opendatacommunities.org/id/metropolitan-district-council/leeds,Leeds City Council,31/10/2018,Adults and Health,Services For Older People Under 65 P/Dis,Third Party Payments,Home Care,568,02/10/2018,1810-00394,0.00,526.68,R,Affinity Trust,No
Http://opendatacommunities.org/id/metropolitan-district-council/leeds,Leeds City Council,31/10/2018,Adults and Health,Services For Older People Under 65 P/Dis,Third Party Payments,Home Care,568,02/10/2018,1810-00395,0.00,526.68,R,Affinity Trust,No
Http://opendatacommunities.org/id/metropolitan-district-council/leeds,Leeds City Council,31/10/2018,Adults and Health,Services For Older People Under 65 P/Dis,Third Party Payments,Home Care,568,02/10/2018,1810-00396,0.00,526.68,R,Affinity Trust,No
Http://opendatacommunities.org/id/metropolitan-district-council/leeds,Leeds City Council,31/10/2018,Adults and Health,Services For Older People Under 65 P/Dis,Third Party Payments,Home Care,568,02/10/2018,1810-00397,0.00,526.68,R,Affinity Trust,No
Http://opendatacommunities.org/id/metropolitan-district-council/leeds,Leeds City Council,31/10/2018,Adults and Health,Services For Older People Under 65 P/Dis,Third Party Payments,Home Care,568,03/10/2018,1810-00398,0.00,526.68,R,Affinity Trust,No
Http://opendatacommunities.org/id/metropolitan-district-council/leeds,Leeds City Council As Accountable Body,31/10/2018,Social Services Pooled Budgets,Jcs For People With Learning Disabilitie,Third Party Payments,Home Care,568,04/10/2018,1810-00399,0.00,1261.50,R,Affinity Trust,No
Http://opendatacommunities.org/id/metropolitan-district-council/leeds,Leeds City Council As Accountable Body,31/10/2018,Social Services Pooled Budgets,Jcs For People With Learning Disabilitie,Third Party Payments,Home Care,568,17/10/2018,1810-00400,0.00,727.09,R,Affinity Trust,No
Http://opendatacommunities.org/id/metropolitan-district-council/leeds,Leeds City Council As Accountable Body,31/10/2018,Social Services Pooled Budgets,Jcs For People With Learning Disabilitie,Third Party Payments,Home Care,568,17/10/2018,1810-00401,0.00,1342.32,R,Affinity Trust,No
Http://opendatacommunities.org/id/metropolitan-district-council/leeds,Leeds City Council As Accountable Body,31/10/2018,Social Services Pooled Budgets,Jcs For People With Learning Disabilitie,Third Party Payments,Home Care,568,17/10/2018,1810-00402,0.00,639.20,R,Affinity Trust,No
Http://opendatacommunities.org/id/metropolitan-district-council/leeds,Leeds City Council,31/10/2018,Adults and Health,Services For Older People Under 65 P/Dis,Third Party Payments,Home Care,568,17/10/2018,1810-00403,0.00,319.60,R,Affinity Trust,No
Http://opendatacommunities.org/id/metropolitan-district-council/leeds,Leeds City Council As Accountable Body,31/10/2018,Social Services Pooled Budgets,Jcs For People With Learning Disabilitie,Third Party Payments,Day Centre,564,17/10/2018,1810-00404,0.00,364.56,R,Affinity Trust,No
Http://opendatacommunities.org/id/metropolitan-district-council/leeds,Leeds City Council As Accountable Body,31/10/2018,Social Services Pooled Budgets,Jcs For People With Learning Disabilitie,Third Party Payments,Home Care,568,17/10/2018,1810-00405,0.00,1452.00,R,Affinity Trust,No
Http://opendatacommunities.org/id/metropolitan-district-council/leeds,Leeds City Council As Accountable Body,31/10/2018,Social Services Pooled Budgets,Jcs For People With Learning Disabilitie,Third Party Payments,Home Care,568,17/10/2018,1810-00406,0.00,588.70,R,Affinity Trust,No
Http://opendatacommunities.org/id/metropolitan-district-council/leeds,Leeds City Council As Accountable Body,31/10/2018,Social Services Pooled Budgets,Jcs For People With Learning Disabilitie,Third Party Payments,Home Care,568,17/10/2018,1810-00407,0.00,511.36,R,Affinity Trust,No
Http://opendatacommunities.org/id/metropolitan-district-council/leeds,Leeds City Council As Accountable Body,31/10/2018,Social Services Pooled Budgets,Jcs For People With Learning Disabilitie,Third Party Payments,Home Care,568,17/10/2018,1810-00408,0.00,639.20,R,Affinity Trust,No
Http://opendatacommunities.org/id/metropolitan-district-council/leeds,Leeds City Council As Accountable Body,31/10/2018,Social Services Pooled Budgets,Jcs For People With Learning Disabilitie,Third Party Payments,Home Care,568,17/10/2018,1810-00409,0.00,1086.64,R,Affinity Trust,No
Http://opendatacommunities.org/id/metropolitan-district-council/leeds,Leeds City Council As Accountable Body,31/10/2018,Social Services Pooled Budgets,Jcs For People With Learning Disabilitie,Third Party Payments,Home Care,568,17/10/2018,1810-00410,0.00,2804.49,R,Affinity Trust,No
Http://opendatacommunities.org/id/metropolitan-district-council/leeds,Leeds City Council As Accountable Body,31/10/2018,Social Services Pooled Budgets,Jcs For People With Learning Disabilitie,Third Party Payments,Home Care,568,17/10/2018,1810-00411,0.00,204.32,R,Affinity Trust,No
Http://opendatacommunities.org/id/metropolitan-district-council/leeds,Leeds City Council As Accountable Body,31/10/2018,Social Services Pooled Budgets,Jcs For People With Learning Disabilitie,Third Party Payments,Home Care,568,17/10/2018,1810-00412,0.00,941.92,R,Affinity Trust,No
Http://opendatacommunities.org/id/metropolitan-district-council/leeds,Leeds City Council As Accountable Body,31/10/2018,Social Services Pooled Budgets,Jcs For People With Learning Disabilitie,Third Party Payments,Home Care,568,17/10/2018,1810-00413,0.00,958.80,R,Affinity Trust,No
Http://opendatacommunities.org/id/metropolitan-district-council/leeds,Leeds City Council As Accountable Body,31/10/2018,Social Services Pooled Budgets,Jcs For People With Learning Disabilitie,Third Party Payments,Home Care,568,17/10/2018,1810-00414,0.00,407.49,R,Affinity Trust,No
Http://opendatacommunities.org/id/metropolitan-district-council/leeds,Leeds City Council As Accountable Body,31/10/2018,Social Services Pooled Budgets,Jcs For People With Learning Disabilitie,Third Party Payments,Home Care,568,17/10/2018,1810-00415,0.00,255.68,R,Affinity Trust,No
Http://opendatacommunities.org/id/metropolitan-district-council/leeds,Leeds City Council As Accountable Body,31/10/2018,Social Services Pooled Budgets,Jcs For People With Learning Disabilitie,Third Party Payments,Home Care,568,17/10/2018,1810-00416,0.00,319.60,R,Affinity Trust,No
Http://opendatacommunities.org/id/metropolitan-district-council/leeds,Leeds City Council As Accountable Body,31/10/2018,Social Services Pooled Budgets,Jcs For People With Learning Disabilitie,Third Party Payments,Day Centre,564,17/10/2018,1810-00417,0.00,255.68,R,Affinity Trust,No
Http://opendatacommunities.org/id/metropolitan-district-council/leeds,Leeds City Council As Accountable Body,31/10/2018,Social Services Pooled Budgets,Jcs For People With Learning Disabilitie,Third Party Payments,Home Care,568,17/10/2018,1810-00418,0.00,511.36,R,Affinity Trust,No
Http://opendatacommunities.org/id/metropolitan-district-council/leeds,Leeds City Council As Accountable Body,31/10/2018,Social Services Pooled Budgets,Jcs For People With Learning Disabilitie,Third Party Payments,Home Care,568,17/10/2018,1810-00419,0.00,383.52,R,Affinity Trust,No
Http://opendatacommunities.org/id/metropolitan-district-council/leeds,Leeds City Council As Accountable Body,31/10/2018,Social Services Pooled Budgets,Jcs For People With Learning Disabilitie,Third Party Payments,Day Centre,564,17/10/2018,1810-00420,0.00,143.82,R,Affinity Trust,No
Http://opendatacommunities.org/id/metropolitan-district-council/leeds,Leeds City Council,31/10/2018,Adults and Health,Assessment And Care Management,Third Party Payments,Home Care,568,19/10/2018,1810-00421,0.00,463.42,R,Affinity Trust,No
Http://opendatacommunities.org/id/metropolitan-district-council/leeds,Leeds City Council,31/10/2018,Adults and Health,Services For Older People Under 65 P/Dis,Third Party Payments,Home Care,568,19/10/2018,1810-00422,0.00,437.32,R,Affinity Trust,No
Http://opendatacommunities.org/id/metropolitan-district-council/leeds,Leeds City Council,31/10/2018,Adults and Health,Services For Older People - 65 And Over,Third Party Payments,Home Care,568,19/10/2018,1810-00423,0.00,447.44,R,Affinity Trust,No
Http://opendatacommunities.org/id/metropolitan-district-council/leeds,Leeds City Council,31/10/2018,Adults and Health,Services For Older People Under 65 P/Dis,Third Party Payments,Home Care,568,19/10/2018,1810-00424,0.00,1805.74,R,Affinity Trust,No
Http://opendatacommunities.org/id/metropolitan-district-council/leeds,Leeds City Council As Accountable Body,31/10/2018,Social Services Pooled Budgets,Jcs For People With Learning Disabilitie,Third Party Payments,Home Care,568,25/10/2018,1810-00425,0.00,191.76,R,Affinity Trust,No
Http://opendatacommunities.org/id/metropolitan-district-council/leeds,Leeds City Council As Accountable Body,31/10/2018,Social Services Pooled Budgets,Jcs For People With Learning Disabilitie,Third Party Payments,Day Centre,564,25/10/2018,1810-00426,0.00,1350.00,R,Affinity Trust,No
Http://opendatacommunities.org/id/metropolitan-district-council/leeds,Leeds City Council As Accountable Body,31/10/2018,Social Services Pooled Budgets,Jcs For People With Learning Disabilitie,Third Party Payments,Day Centre,564,25/10/2018,1810-00427,0.00,960.66,R,Affinity Trust,No
Http://opendatacommunities.org/id/metropolitan-district-council/leeds,Leeds City Council As Accountable Body,31/10/2018,Social Services Pooled Budgets,Jcs For People With Learning Disabilitie,Third Party Payments,Home Care,568,25/10/2018,1810-00428,0.00,967.50,R,Affinity Trust,No
Http://opendatacommunities.org/id/metropolitan-district-council/leeds,Leeds City Council As Accountable Body,31/10/2018,Social Services Pooled Budgets,Jcs For People With Learning Disabilitie,Third Party Payments,Home Care,568,25/10/2018,1810-00429,0.00,558.63,R,Affinity Trust,No
Http://opendatacommunities.org/id/metropolitan-district-council/leeds,Leeds City Council As Accountable Body,31/10/2018,Social Services Pooled Budgets,Jcs For People With Learning Disabilitie,Third Party Payments,Home Care,568,25/10/2018,1810-00430,0.00,1170.00,R,Affinity Trust,No
Http://opendatacommunities.org/id/metropolitan-district-council/leeds,Leeds City Council As Accountable Body,31/10/2018,Social Services Pooled Budgets,Jcs For People With Learning Disabilitie,Third Party Payments,Home Care,568,25/10/2018,1810-00431,0.00,2512.80,R,Affinity Trust,No
Http://opendatacommunities.org/id/metropolitan-district-council/leeds,Leeds City Council As Accountable Body,31/10/2018,Social Services Pooled Budgets,Jcs For People With Learning Disabilitie,Third Party Payments,Home Care,568,25/10/2018,1810-00432,0.00,1830.84,R,Affinity Trust,No
Http://opendatacommunities.org/id/metropolitan-district-council/leeds,Leeds City Council As Accountable Body,31/10/2018,Social Services Pooled Budgets,Jcs For People With Learning Disabilitie,Third Party Payments,Home Care,568,25/10/2018,1810-00433,0.00,990.00,R,Affinity Trust,No
Http://opendatacommunities.org/id/metropolitan-district-council/leeds,Leeds City Council As Accountable Body,31/10/2018,Social Services Pooled Budgets,Jcs For People With Learning Disabilitie,Third Party Payments,Home Care,568,25/10/2018,1810-00434,0.00,3219.44,R,Affinity Trust,No
Http://opendatacommunities.org/id/metropolitan-district-council/leeds,Leeds City Council As Accountable Body,31/10/2018,Social Services Pooled Budgets,Jcs For People With Learning Disabilitie,Third Party Payments,Day Centre,564,25/10/2018,1810-00435,0.00,402.24,R,Affinity Trust,No
Http://opendatacommunities.org/id/metropolitan-district-council/leeds,Leeds City Council As Accountable Body,31/10/2018,Social Services Pooled Budgets,Jcs For People With Learning Disabilitie,Third Party Payments,Home Care,568,25/10/2018,1810-00436,0.00,454.95,R,Affinity Trust,No
Http://opendatacommunities.org/id/metropolitan-district-council/leeds,Leeds City Council As Accountable Body,31/10/2018,Social Services Pooled Budgets,Jcs For People With Learning Disabilitie,Third Party Payments,Day Centre,564,25/10/2018,1810-00437,0.00,1370.40,R,Affinity Trust,No
Http://opendatacommunities.org/id/metropolitan-district-council/leeds,Leeds City Council As Accountable Body,31/10/2018,Social Services Pooled Budgets,Jcs For People With Learning Disabilitie,Third Party Payments,Home Care,568,25/10/2018,1810-00438,0.00,754.20,R,Affinity Trust,No
Http://opendatacommunities.org/id/metropolitan-district-council/leeds,Leeds City Council As Accountable Body,31/10/2018,Social Services Pooled Budgets,Jcs For People With Learning Disabilitie,Third Party Payments,Home Care,568,25/10/2018,1810-00439,0.00,1270.08,R,Affinity Trust,No
Http://opendatacommunities.org/id/metropolitan-district-council/leeds,Leeds City Council As Accountable Body,31/10/2018,Social Services Pooled Budgets,Jcs For People With Learning Disabilitie,Third Party Payments,Home Care,568,25/10/2018,1810-00440,0.00,1695.33,R,Affinity Trust,No
Http://opendatacommunities.org/id/metropolitan-district-council/leeds,Leeds City Council As Accountable Body,31/10/2018,Social Services Pooled Budgets,Jcs For People With Learning Disabilitie,Third Party Payments,Home Care,568,25/10/2018,1810-00441,0.00,1005.60,R,Affinity Trust,No
Http://opendatacommunities.org/id/metropolitan-district-council/leeds,Leeds City Council As Accountable Body,31/10/2018,Social Services Pooled Budgets,Jcs For People With Learning Disabilitie,Third Party Payments,Home Care,568,25/10/2018,1810-00442,0.00,360.00,R,Affinity Trust,No
Http://opendatacommunities.org/id/metropolitan-district-council/leeds,Leeds City Council As Accountable Body,31/10/2018,Social Services Pooled Budgets,Jcs For People With Learning Disabilitie,Third Party Payments,Day Centre,564,25/10/2018,1810-00443,0.00,648.95,R,Affinity Trust,No
Http://opendatacommunities.org/id/metropolitan-district-council/leeds,Leeds City Council As Accountable Body,31/10/2018,Social Services Pooled Budgets,Jcs For People With Learning Disabilitie,Third Party Payments,Day Centre,564,25/10/2018,1810-00444,0.00,2229.08,R,Affinity Trust,No
Http://opendatacommunities.org/id/metropolitan-district-council/leeds,Leeds City Council As Accountable Body,31/10/2018,Social Services Pooled Budgets,Jcs For People With Learning Disabilitie,Third Party Payments,Day Centre,564,25/10/2018,1810-00445,0.00,1115.28,R,Affinity Trust,No
Http://opendatacommunities.org/id/metropolitan-district-council/leeds,Leeds City Council As Accountable Body,31/10/2018,Social Services Pooled Budgets,Jcs For People With Learning Disabilitie,Third Party Payments,Day Centre,564,25/10/2018,1810-00446,0.00,1909.22,R,Affinity Trust,No
Http://opendatacommunities.org/id/metropolitan-district-council/leeds,Leeds City Council As Accountable Body,31/10/2018,Social Services Pooled Budgets,Jcs For People With Learning Disabilitie,Third Party Payments,Home Care,568,25/10/2018,1810-00447,0.00,1522.83,R,Affinity Trust,No
Http://opendatacommunities.org/id/metropolitan-district-council/leeds,Leeds City Council,31/10/2018,Adults and Health,Services For Older People Under 65 P/Dis,Third Party Payments,Home Care,568,26/10/2018,1810-00448,0.00,526.68,R,Affinity Trust,No
Http://opendatacommunities.org/id/metropolitan-district-council/leeds,Leeds City Council As Accountable Body,31/10/2018,Social Services Pooled Budgets,Jcs For People With Learning Disabilitie,Third Party Payments,Day Centre,564,30/10/2018,1810-00449,0.00,288.65,R,Affinity Trust,No
Http://opendatacommunities.org/id/metropolitan-district-council/leeds,Leeds City Council As Accountable Body,31/10/2018,Social Services Pooled Budgets,Jcs For People With Learning Disabilitie,Third Party Payments,Sheltered Accommodation,569,17/10/2018,1810-00450,0.00,141798.04,R,Affinity Trust North Divisional Office,No
Http://opendatacommunities.org/id/metropolitan-district-council/leeds,Leeds City Council,31/10/2018,Communities and Environment,Parks And Countryside  ,Transport,External Hire -Occasional,304,07/09/2018,1810-00451,0.00,9.50,R,Afi Uplift Ltd,Yes
Http://opendatacommunities.org/id/metropolitan-district-council/leeds,Leeds City Council,31/10/2018,Communities and Environment,Parks And Countryside  ,Transport,External Hire -Occasional,304,07/09/2018,1810-00452,0.00,940.50,R,Afi Uplift Ltd,Yes
Http://opendatacommunities.org/id/metropolitan-district-council/leeds,Leeds City Council,31/10/2018,Communities and Environment,Parks And Countryside  ,Transport,External Hire -Occasional,304,14/09/2018,1810-00453,0.00,1900.00,R,Afi Uplift Ltd,Yes
Http://opendatacommunities.org/id/metropolitan-district-council/leeds,Leeds City Council,31/10/2018,City Development,Recreation,Supplies and Services,Other Hired And Contracted Services,265,30/10/2018,1810-00454,0.00,3275.11,R,Age Uk Leeds,No
Http://opendatacommunities.org/id/metropolitan-district-council/leeds,Leeds City Council,31/10/2018,Communities and Environment,Car Parking Services,Income,Penalties  Fines & Car Parking Charges,934,29/10/2018,1810-00455,0.00,113.00,R,REDACTED PERSONAL DATA,No
Http://opendatacommunities.org/id/metropolitan-district-council/leeds,Leeds City Council,31/10/2018,Communities and Environment,Elections  Licensing and Registration,Income,Admissions  Booking Fees & Ticket Sales,933,11/10/2018,1810-00456,0.00,55.00,R,REDACTED PERSONAL DATA,No
Http://opendatacommunities.org/id/metropolitan-district-council/leeds,Leeds City Council,31/10/2018,Children and Families,Learning,Supplies and Services,Teaching Materials,202,05/10/2018,1810-00457,0.00,180.00,R,Aid Training & Operations Ltd,No
Http://opendatacommunities.org/id/metropolitan-district-council/leeds,Leeds City Council,31/10/2018,Children and Families,Learning,Supplies and Services,Teaching Materials,202,10/10/2018,1810-00458,0.00,33.52,R,Aid Training & Operations Ltd,No
Http://opendatacommunities.org/id/metropolitan-district-council/leeds,Leeds City Council,31/10/2018,Children and Families,Learning,Supplies and Services,Teaching Materials,202,12/10/2018,1810-00459,0.00,3.22,R,Aid Training & Operations Ltd,No
Http://opendatacommunities.org/id/metropolitan-district-council/leeds,Leeds City Council As Accountable Body,31/10/2018,Social Services Pooled Budgets,Leeds Community Equip Store Pooled Budgt,Supplies and Services,Other Equipment,203,05/10/2018,1810-00460,0.00,549.70,R,Aidapt Bathrooms Ltd,No
Http://opendatacommunities.org/id/metropolitan-district-council/leeds,Leeds City Council As Accountable Body,31/10/2018,Social Services Pooled Budgets,Leeds Community Equip Store Pooled Budgt,Supplies and Services,Other Equipment,203,05/10/2018,1810-00461,0.00,3638.40,R,Aidapt Bathrooms Ltd,No
Http://opendatacommunities.org/id/metropolitan-district-council/leeds,Leeds City Council As Accountable Body,31/10/2018,Social Services Pooled Budgets,Leeds Community Equip Store Pooled Budgt,Supplies and Services,Other Equipment,203,05/10/2018,1810-00462,0.00,549.70,R,Aidapt Bathrooms Ltd,No
Http://opendatacommunities.org/id/metropolitan-district-council/leeds,Leeds City Council As Accountable Body,31/10/2018,Social Services Pooled Budgets,Leeds Community Equip Store Pooled Budgt,Supplies and Services,Other Equipment,203,05/10/2018,1810-00463,0.00,513.00,R,Aidapt Bathrooms Ltd,No
Http://opendatacommunities.org/id/metropolitan-district-council/leeds,Leeds City Council As Accountable Body,31/10/2018,Social Services Pooled Budgets,Leeds Community Equip Store Pooled Budgt,Supplies and Services,Other Equipment,203,19/10/2018,1810-00464,0.00,549.70,R,Aidapt Bathrooms Ltd,No
Http://opendatacommunities.org/id/metropolitan-district-council/leeds,Leeds City Council As Accountable Body,31/10/2018,Social Services Pooled Budgets,Leeds Community Equip Store Pooled Budgt,Supplies and Services,Other Equipment,203,24/10/2018,1810-00465,0.00,449.05,R,Aidapt Bathrooms Ltd,No
Http://opendatacommunities.org/id/metropolitan-district-council/leeds,Leeds City Council As Accountable Body,31/10/2018,Social Services Pooled Budgets,Leeds Community Equip Store Pooled Budgt,Supplies and Services,Other Equipment,203,30/10/2018,1810-00466,0.00,1528.90,R,Aidapt Bathrooms Ltd,No
Http://opendatacommunities.org/id/metropolitan-district-council/leeds,Leeds City Council As Accountable Body,31/10/2018,Social Services Pooled Budgets,Leeds Community Equip Store Pooled Budgt,Supplies and Services,Other Equipment,203,30/10/2018,1810-00467,0.00,167.40,R,Aidapt Bathrooms Ltd,No
Http://opendatacommunities.org/id/metropolitan-district-council/leeds,Leeds City Council As Accountable Body,31/10/2018,Social Services Pooled Budgets,Leeds Community Equip Store Pooled Budgt,Supplies and Services,Other Equipment,203,30/10/2018,1810-00468,0.00,403.95,R,Aidapt Bathrooms Ltd,No
Http://opendatacommunities.org/id/metropolitan-district-council/leeds,Leeds City Council As Accountable Body,31/10/2018,Social Services Pooled Budgets,Leeds Community Equip Store Pooled Budgt,Supplies and Services,Other Equipment,203,30/10/2018,1810-00469,0.00,171.20,R,Aidapt Bathrooms Ltd,No
Http://opendatacommunities.org/id/metropolitan-district-council/leeds,Leeds City Council As Accountable Body,31/10/2018,Social Services Pooled Budgets,Leeds Community Equip Store Pooled Budgt,Supplies and Services,Other Equipment,203,30/10/2018,1810-00470,0.00,549.70,R,Aidapt Bathrooms Ltd,No
Http://opendatacommunities.org/id/metropolitan-district-council/leeds,Leeds City Council,31/10/2018,City Development,Libraries  Arts & Heritage,Supplies and Services,Other Hired And Contracted Services,265,19/10/2018,1810-00471,0.00,120.00,R,Ainsley Johns,No
Http://opendatacommunities.org/id/metropolitan-district-council/leeds,Leeds City Council,31/10/2018,Resources and Housing,Leeds Building Services,Supplies and Services,Operational Materials,205,01/10/2018,1810-00472,0.00,80.00,R,Air Conditioning Accessories,No
Http://opendatacommunities.org/id/metropolitan-district-council/leeds,Leeds City Council,31/10/2018,Resources and Housing,Leeds Building Services,Supplies and Services,Operational Materials,205,01/10/2018,1810-00473,0.00,700.00,R,Air Conditioning Accessories,No
Http://opendatacommunities.org/id/metropolitan-district-council/leeds,Leeds City Council,31/10/2018,Resources and Housing,Leeds Building Services,Supplies and Services,Operational Materials,205,01/10/2018,1810-00474,0.00,64.26,R,Air Conditioning Accessories,No
Http://opendatacommunities.org/id/metropolitan-district-council/leeds,Leeds City Council,31/10/2018,Resources and Housing,Leeds Building Services,Supplies and Services,Operational Materials,205,01/10/2018,1810-00475,0.00,76.92,R,Air Conditioning Accessories,No
Http://opendatacommunities.org/id/metropolitan-district-council/leeds,Leeds City Council,31/10/2018,Resources and Housing,Leeds Building Services,Supplies and Services,Operational Materials,205,01/10/2018,1810-00476,0.00,83.52,R,Air Conditioning Accessories,No
Http://opendatacommunities.org/id/metropolitan-district-council/leeds,Leeds City Council,31/10/2018,Resources and Housing,Leeds Building Services,Supplies and Services,Operational Materials,205,08/10/2018,1810-00477,0.00,39.78,R,Air Conditioning Accessories,No
Http://opendatacommunities.org/id/metropolitan-district-council/leeds,Leeds City Council,31/10/2018,Resources and Housing,Leeds Building Services,Supplies and Services,Operational Materials,205,08/10/2018,1810-00478,0.00,14.23,R,Air Conditioning Accessories,No
Http://opendatacommunities.org/id/metropolitan-district-council/leeds,Leeds City Council,31/10/2018,Resources and Housing,Leeds Building Services,Supplies and Services,Other Hired And Contracted Services,265,10/10/2018,1810-00479,0.00,-72.00,R,Air Conditioning Accessories,No
Http://opendatacommunities.org/id/metropolitan-district-council/leeds,Leeds City Council,31/10/2018,Resources and Housing,Leeds Building Services,Supplies and Services,Operational Materials,205,10/10/2018,1810-00480,0.00,669.26,R,Air Conditioning Accessories,No
Http://opendatacommunities.org/id/metropolitan-district-council/leeds,Leeds City Council,31/10/2018,Resources and Housing,Leeds Building Services,Supplies and Services,Operational Materials,205,10/10/2018,1810-00481,0.00,98.15,R,Air Conditioning Accessories,No
Http://opendatacommunities.org/id/metropolitan-district-council/leeds,Leeds City Council,31/10/2018,Resources and Housing,Leeds Building Services,Supplies and Services,Operational Materials,205,12/10/2018,1810-00482,0.00,63.72,R,Air Conditioning Accessories,No
Http://opendatacommunities.org/id/metropolitan-district-council/leeds,Leeds City Council,31/10/2018,Resources and Housing,Leeds Building Services,Supplies and Services,Operational Materials,205,12/10/2018,1810-00483,0.00,70.61,R,Air Conditioning Accessories,No
Http://opendatacommunities.org/id/metropolitan-district-council/leeds,Leeds City Council,31/10/2018,Resources and Housing,Leeds Building Services,Supplies and Services,Operational Materials,205,16/10/2018,1810-00484,0.00,45.78,R,Air Conditioning Accessories,No
Http://opendatacommunities.org/id/metropolitan-district-council/leeds,Leeds City Council,31/10/2018,Resources and Housing,Leeds Building Services,Supplies and Services,Operational Materials,205,18/10/2018,1810-00485,0.00,66.00,R,Air Conditioning Accessories,No
Http://opendatacommunities.org/id/metropolitan-district-council/leeds,Leeds City Council,31/10/2018,Resources and Housing,Leeds Building Services,Supplies and Services,Operational Materials,205,19/10/2018,1810-00486,0.00,64.36,R,Air Conditioning Accessories,No
Http://opendatacommunities.org/id/metropolitan-district-council/leeds,Leeds City Council,31/10/2018,Resources and Housing,Leeds Building Services,Supplies and Services,Operational Materials,205,19/10/2018,1810-00487,0.00,35.36,R,Air Conditioning Accessories,No
Http://opendatacommunities.org/id/metropolitan-district-council/leeds,Leeds City Council,31/10/2018,Resources and Housing,Leeds Building Services,Supplies and Services,Operational Materials,205,19/10/2018,1810-00488,0.00,600.00,R,Air Conditioning Accessories,No
Http://opendatacommunities.org/id/metropolitan-district-council/leeds,Leeds City Council,31/10/2018,Resources and Housing,Leeds Building Services,Supplies and Services,Operational Materials,205,19/10/2018,1810-00489,0.00,20.00,R,Air Conditioning Accessories,No
Http://opendatacommunities.org/id/metropolitan-district-council/leeds,Leeds City Council,31/10/2018,Resources and Housing,Leeds Building Services,Supplies and Services,Operational Materials,205,19/10/2018,1810-00490,0.00,16.38,R,Air Conditioning Accessories,No
Http://opendatacommunities.org/id/metropolitan-district-council/leeds,Leeds City Council,31/10/2018,Resources and Housing,Leeds Building Services,Supplies and Services,Operational Materials,205,19/10/2018,1810-00491,0.00,11.54,R,Air Conditioning Accessories,No
Http://opendatacommunities.org/id/metropolitan-district-council/leeds,Leeds City Council,31/10/2018,Resources and Housing,Leeds Building Services,Supplies and Services,Operational Materials,205,19/10/2018,1810-00492,0.00,22.68,R,Air Conditioning Accessories,No
Http://opendatacommunities.org/id/metropolitan-district-council/leeds,Leeds City Council,31/10/2018,Resources and Housing,Leeds Building Services,Supplies and Services,Operational Materials,205,23/10/2018,1810-00493,0.00,43.79,R,Air Conditioning Accessories,No
Http://opendatacommunities.org/id/metropolitan-district-council/leeds,Leeds City Council,31/10/2018,Resources and Housing,Leeds Building Services,Supplies and Services,Operational Materials,205,01/10/2018,1810-00494,0.00,170.28,R,Air Liquide Uk,No
Http://opendatacommunities.org/id/metropolitan-district-council/leeds,Leeds City Council,31/10/2018,Resources and Housing,Leeds Building Services,Supplies and Services,Operational Materials,205,01/10/2018,1810-00495,0.00,189.71,R,Air Liquide Uk,No
Http://opendatacommunities.org/id/metropolitan-district-council/leeds,Leeds City Council,31/10/2018,Communities and Environment,Environmental Health,Supplies and Services,Other Hired And Contracted Services,265,01/10/2018,1810-00496,0.00,15.03,R,Air Liquide Uk,No
Http://opendatacommunities.org/id/metropolitan-district-council/leeds,Leeds City Council,31/10/2018,Resources and Housing,Leeds Building Services,Supplies and Services,Operational Materials,205,30/10/2018,1810-00497,0.00,189.71,R,Air Liquide Uk,No
Http://opendatacommunities.org/id/metropolitan-district-council/leeds,Leeds City Council,31/10/2018,Communities and Environment,Parks and Countryside,Supplies and Services,Other Hired And Contracted Services,265,08/10/2018,1810-00498,0.00,6170.00,R,Aire Valley Tree Services Ltd,No
Http://opendatacommunities.org/id/metropolitan-district-council/leeds,Leeds City Council,31/10/2018,Communities and Environment,Parks and Countryside,Supplies and Services,Other Hired And Contracted Services,265,23/10/2018,1810-00499,0.00,475.00,R,Aire Valley Tree Services Ltd,No
Http://opendatacommunities.org/id/metropolitan-district-council/leeds,Leeds City Council,31/10/2018,Adults and Health,Services For Older People - 65 And Over,Third Party Payments,Residential Care Dementia,571,17/10/2018,1810-00500,0.00,64311.70,R,Aire View Residential Home,No
Http://opendatacommunities.org/id/metropolitan-district-council/leeds,Leeds City Council,31/10/2018,Adults and Health,Services For Older People - 65 And Over,Third Party Payments,Residential,580,17/10/2018,1810-00501,0.00,-662.10,R,Aire View Residential Home,No
Http://opendatacommunities.org/id/metropolitan-district-council/leeds,Leeds City Council,31/10/2018,Adults and Health,Services For Older People - 65 And Over,Third Party Payments,Residential Care Dementia,571,17/10/2018,1810-00502,0.00,4160.12,R,Airedale Care Home,No
Http://opendatacommunities.org/id/metropolitan-district-council/leeds,Leeds City Council,31/10/2018,Adults and Health,Services For Older People - 65 And Over,Third Party Payments,Residential,580,17/10/2018,1810-00503,0.00,23226.72,R,Airedale Care Home,No
Http://opendatacommunities.org/id/metropolitan-district-council/leeds,Leeds City Council,31/10/2018,Resources and Housing,Commercial Services,Supplies and Services,Operational Furniture And Equipment,203,25/10/2018,1810-00504,0.00,1112.00,R,Airedale Catering Equipment Ltd,No
Http://opendatacommunities.org/id/metropolitan-district-council/leeds,Leeds City Council,31/10/2018,Resources and Housing,Commercial Services,Supplies and Services,Operational Furniture And Equipment,203,25/10/2018,1810-00505,0.00,355.00,R,Airedale Catering Equipment Ltd,No
Http://opendatacommunities.org/id/metropolitan-district-council/leeds,Leeds City Council,31/10/2018,Adults and Health,Assessment And Care Management,Employees,Training Costs,71,04/10/2018,1810-00506,0.00,150.00,R,Airedale Community Trading (Act) Ltd,No
Http://opendatacommunities.org/id/metropolitan-district-council/leeds,Leeds City Council,31/10/2018,City Development,Libraries  Arts & Heritage,Income,Arts/Sports Facility Hire,920,30/10/2018,1810-00507,0.00,-2470.00,R,Airedale Symphony Orchestra,No
Http://opendatacommunities.org/id/metropolitan-district-council/leeds,Leeds City Council,31/10/2018,City Development,Libraries  Arts & Heritage,Income,Other cultural & rec fees & charges,924,30/10/2018,1810-00508,0.00,-1152.00,R,Airedale Symphony Orchestra,No
Http://opendatacommunities.org/id/metropolitan-district-council/leeds,Leeds City Council,31/10/2018,City Development,Libraries  Arts & Heritage,Income,Admissions  Booking Fees & Ticket Sales,933,30/10/2018,1810-00509,0.00,5534.75,R,Airedale Symphony Orchestra,No
Http://opendatacommunities.org/id/metropolitan-district-council/leeds,Leeds City Council,31/10/2018,City Development,Libraries  Arts & Heritage,Income,Advertising,969,30/10/2018,1810-00510,0.00,-250.00,R,Airedale Symphony Orchestra,No
Http://opendatacommunities.org/id/metropolitan-district-council/leeds,Leeds City Council,31/10/2018,City Development,Libraries  Arts & Heritage,Income,Other Income,973,30/10/2018,1810-00511,0.00,-345.86,R,Airedale Symphony Orchestra,No
Http://opendatacommunities.org/id/metropolitan-district-council/leeds,Leeds City Council,31/10/2018,Resources and Housing,Commercial Services,Supplies and Services,Other Hired And Contracted Services,265,25/10/2018,1810-00512,0.00,360.00,R,Air-Weigh Europe Limited,No
Http://opendatacommunities.org/id/metropolitan-district-council/leeds,Leeds City Council,31/10/2018,Resources and Housing,Commercial Services,Supplies and Services,Other Hired And Contracted Services,265,25/10/2018,1810-00513,0.00,180.00,R,Air-Weigh Europe Limited,No
Http://opendatacommunities.org/id/metropolitan-district-council/leeds,Leeds City Council,31/10/2018,Adults and Health,Services For Adults Under 65 Mental/Dis,Third Party Payments,Services Provided By Other NHS Bodies,522,03/10/2018,1810-00514,0.00,230.90,R,Ait Mitra Limited,No
Http://opendatacommunities.org/id/metropolitan-district-council/leeds,Leeds City Council,31/10/2018,Adults and Health,Services For Adults Under 65 Mental/Dis,Third Party Payments,Services Provided By Other NHS Bodies,522,03/10/2018,1810-00515,0.00,175.00,R,Ait Mitra Limited,No
Http://opendatacommunities.org/id/metropolitan-district-council/leeds,Leeds City Council,31/10/2018,Adults and Health,Services For Adults Under 65 Mental/Dis,Third Party Payments,Services Provided By Other NHS Bodies,522,03/10/2018,1810-00516,0.00,175.00,R,Ait Mitra Limited,No
Http://opendatacommunities.org/id/metropolitan-district-council/leeds,Leeds City Council,31/10/2018,Adults and Health,Services For Adults Under 65 Mental/Dis,Third Party Payments,Services Provided By Other NHS Bodies,522,03/10/2018,1810-00517,0.00,175.00,R,Ait Mitra Limited,No
Http://opendatacommunities.org/id/metropolitan-district-council/leeds,Leeds City Council,31/10/2018,Adults and Health,Services For Adults Under 65 Mental/Dis,Third Party Payments,Services Provided By Other NHS Bodies,522,03/10/2018,1810-00518,0.00,175.00,R,Ait Mitra Limited,No
Http://opendatacommunities.org/id/metropolitan-district-council/leeds,Leeds City Council,31/10/2018,Adults and Health,Services For Adults Under 65 Mental/Dis,Third Party Payments,Services Provided By Other NHS Bodies,522,03/10/2018,1810-00519,0.00,175.00,R,Ait Mitra Limited,No
Http://opendatacommunities.org/id/metropolitan-district-council/leeds,Leeds City Council,31/10/2018,Adults and Health,Services For Adults Under 65 Mental/Dis,Third Party Payments,Services Provided By Other NHS Bodies,522,03/10/2018,1810-00520,0.00,175.00,R,Ait Mitra Limited,No
Http://opendatacommunities.org/id/metropolitan-district-council/leeds,Leeds City Council,31/10/2018,Adults and Health,Services For Adults Under 65 Mental/Dis,Third Party Payments,Services Provided By Other NHS Bodies,522,03/10/2018,1810-00521,0.00,175.00,R,Ait Mitra Limited,No
Http://opendatacommunities.org/id/metropolitan-district-council/leeds,Leeds City Council,31/10/2018,Adults and Health,Services For Adults Under 65 Mental/Dis,Third Party Payments,Services Provided By Other NHS Bodies,522,03/10/2018,1810-00522,0.00,175.00,R,Ait Mitra Limited,No
Http://opendatacommunities.org/id/metropolitan-district-council/leeds,Leeds City Council,31/10/2018,Adults and Health,Services For Adults Under 65 Mental/Dis,Third Party Payments,Services Provided By Other NHS Bodies,522,03/10/2018,1810-00523,0.00,175.00,R,Ait Mitra Limited,No
Http://opendatacommunities.org/id/metropolitan-district-council/leeds,Leeds City Council,31/10/2018,Adults and Health,Services For Adults Under 65 Mental/Dis,Third Party Payments,Services Provided By Other NHS Bodies,522,03/10/2018,1810-00524,0.00,175.00,R,Ait Mitra Limited,No
Http://opendatacommunities.org/id/metropolitan-district-council/leeds,Leeds City Council As Accountable Body,31/10/2018,Social Services Pooled Budgets,Jcs For People With Learning Disabilitie,Third Party Payments,Residential,580,17/10/2018,1810-00525,0.00,6173.24,R,Aitch Care Homes,No
Http://opendatacommunities.org/id/metropolitan-district-council/leeds,Leeds City Council,31/10/2018,Adults and Health,Services For Older People - 65 And Over,Third Party Payments,Home Care,568,17/10/2018,1810-00526,0.00,3614.75,R,Aj Community Care Ltd,No
Http://opendatacommunities.org/id/metropolitan-district-council/leeds,Leeds City Council,31/10/2018,Adults and Health,Services For Older People Under 65 P/Dis,Third Party Payments,Home Care,568,17/10/2018,1810-00527,0.00,3359.69,R,Aj Community Care Ltd,No
Http://opendatacommunities.org/id/metropolitan-district-council/leeds,Leeds City Council,31/10/2018,Adults and Health,Services For Older People - 65 And Over,Third Party Payments,Home Care,568,19/10/2018,1810-00528,0.00,17952.27,R,Aj Community Care Ltd,No
Http://opendatacommunities.org/id/metropolitan-district-council/leeds,Leeds City Council,31/10/2018,Adults and Health,Services For Older People Under 65 P/Dis,Third Party Payments,Home Care,568,19/10/2018,1810-00529,0.00,7651.20,R,Aj Community Care Ltd,No
Http://opendatacommunities.org/id/metropolitan-district-council/leeds,Leeds City Council,31/10/2018,Resources and Housing,Leeds Building Services,Supplies and Services,Operational Furniture And Equipment,203,01/10/2018,1810-00530,0.00,1790.00,R,Ajm Fixings & Power Tools Ltd,No
Http://opendatacommunities.org/id/metropolitan-district-council/leeds,Leeds City Council,31/10/2018,Resources and Housing,Leeds Building Services,Supplies and Services,Operational Furniture And Equipment,203,01/10/2018,1810-00531,0.00,2320.00,R,Ajm Fixings & Power Tools Ltd,No
Http://opendatacommunities.org/id/metropolitan-district-council/leeds,Leeds City Council,31/10/2018,Resources and Housing,Leeds Building Services,Supplies and Services,Stores - Central And Other Depots,005,01/10/2018,1810-00532,0.00,275.04,R,Ajm Fixings & Power Tools Ltd,No
Http://opendatacommunities.org/id/metropolitan-district-council/leeds,Leeds City Council,31/10/2018,Resources and Housing,Leeds Building Services,Supplies and Services,Stores - Central And Other Depots,005,08/10/2018,1810-00533,0.00,1115.90,R,Ajm Fixings & Power Tools Ltd,No
Http://opendatacommunities.org/id/metropolitan-district-council/leeds,Leeds City Council,31/10/2018,Resources and Housing,Leeds Building Services,Supplies and Services,Operational Furniture And Equipment,203,12/10/2018,1810-00534,0.00,135.00,R,Ajm Fixings & Power Tools Ltd,No
Http://opendatacommunities.org/id/metropolitan-district-council/leeds,Leeds City Council,31/10/2018,Resources and Housing,Leeds Building Services,Supplies and Services,Operational Furniture And Equipment,203,19/10/2018,1810-00535,0.00,2350.00,R,Ajm Fixings & Power Tools Ltd,No
Http://opendatacommunities.org/id/metropolitan-district-council/leeds,Leeds City Council,31/10/2018,Resources and Housing,Leeds Building Services,Supplies and Services,Stores - Central And Other Depots,005,19/10/2018,1810-00536,0.00,945.20,R,Ajm Fixings & Power Tools Ltd,No
Http://opendatacommunities.org/id/metropolitan-district-council/leeds,Leeds City Council,31/10/2018,Resources and Housing,Leeds Building Services,Supplies and Services,Operational Materials,205,19/10/2018,1810-00537,0.00,163.20,R,Ajm Fixings & Power Tools Ltd,No
Http://opendatacommunities.org/id/metropolitan-district-council/leeds,Leeds City Council,31/10/2018,Resources and Housing,Leeds Building Services,Supplies and Services,Operational Furniture And Equipment,203,25/10/2018,1810-00538,0.00,1705.00,R,Ajm Fixings & Power Tools Ltd,No
Http://opendatacommunities.org/id/metropolitan-district-council/leeds,Leeds City Council,31/10/2018,Resources and Housing,Leeds Building Services,Supplies and Services,Operational Furniture And Equipment,203,25/10/2018,1810-00539,0.00,361.40,R,Ajm Fixings & Power Tools Ltd,No
Http://opendatacommunities.org/id/metropolitan-district-council/leeds,Leeds City Council,31/10/2018,Resources and Housing,Leeds Building Services,Supplies and Services,Operational Furniture And Equipment,203,26/10/2018,1810-00540,0.00,26.00,R,Ajm Fixings & Power Tools Ltd,No
Http://opendatacommunities.org/id/metropolitan-district-council/leeds,Leeds City Council,31/10/2018,Resources and Housing,Leeds Building Services,Supplies and Services,Operational Materials,205,26/10/2018,1810-00541,0.00,502.50,R,Ajm Fixings & Power Tools Ltd,No
Http://opendatacommunities.org/id/metropolitan-district-council/leeds,Leeds City Council,31/10/2018,Resources and Housing,Leeds Building Services,Supplies and Services,Stores - Central And Other Depots,005,26/10/2018,1810-00542,0.00,113.00,R,Ajm Fixings & Power Tools Ltd,No
Http://opendatacommunities.org/id/metropolitan-district-council/leeds,Leeds City Council,31/10/2018,Resources and Housing,Leeds Building Services,Supplies and Services,Operational Furniture And Equipment,203,26/10/2018,1810-00543,0.00,370.00,R,Ajm Fixings & Power Tools Ltd,No
Http://opendatacommunities.org/id/metropolitan-district-council/leeds,Leeds City Council,31/10/2018,Resources and Housing,Leeds Building Services,Supplies and Services,Operational Furniture And Equipment,203,26/10/2018,1810-00544,0.00,51.80,R,Ajm Fixings & Power Tools Ltd,No
Http://opendatacommunities.org/id/metropolitan-district-council/leeds,Leeds City Council,31/10/2018,Resources and Housing,Leeds Building Services,Supplies and Services,Operational Materials,205,01/10/2018,1810-00545,0.00,56.31,R,Akw Medicare Ltd,No
Http://opendatacommunities.org/id/metropolitan-district-council/leeds,Leeds City Council,31/10/2018,Resources and Housing,Strategic Housing Partnership & Support  ,Supplies and Services,Other Hired And Contracted Services,265,11/09/2018,1810-00546,0.00,9.18,R,Aladdin Market,Yes
Http://opendatacommunities.org/id/metropolitan-district-council/leeds,Leeds City Council,31/10/2018,Resources and Housing,Democratic Services  ,Premises,Grounds Maintenance Work,111,20/09/2018,1810-00547,0.00,25.00,R,Alan Brown Flowers,Yes
Http://opendatacommunities.org/id/metropolitan-district-council/leeds,Leeds City Council,31/10/2018,City Development,Libraries  Arts & Heritage,Supplies and Services,Other Hired And Contracted Services,265,31/10/2018,1810-00548,0.00,250.00,R,Alarm Pictures,No
Http://opendatacommunities.org/id/metropolitan-district-council/leeds,Leeds City Council,31/10/2018,City Development,Libraries  Arts & Heritage,Supplies and Services,Art Galleries Total Stores,003,10/10/2018,1810-00549,0.00,180.00,R,Alastair Laurence,No
Http://opendatacommunities.org/id/metropolitan-district-council/leeds,Leeds City Council,31/10/2018,Adults and Health,Services For Older People - 65 And Over,Third Party Payments,Residential Care Dementia,571,17/10/2018,1810-00550,0.00,1088.80,R,Albemarle,No
Http://opendatacommunities.org/id/metropolitan-district-council/leeds,Leeds City Council,31/10/2018,Resources and Housing,Commercial Services,Supplies and Services,Other Hired And Contracted Services,265,15/10/2018,1810-00551,0.00,130.00,R,Albert Farnell Ltd,No
Http://opendatacommunities.org/id/metropolitan-district-council/leeds,Leeds City Council,31/10/2018,Communities and Environment,Cleaner Neighbourhood Teams,Supplies and Services,Clothing & Uniforms,241,23/10/2018,1810-00552,0.00,174.30,R,Albert Haywood & Sons Ltd,No
Http://opendatacommunities.org/id/metropolitan-district-council/leeds,Leeds City Council,31/10/2018,Resources and Housing,Commercial Services,Transport,Vehicle Spares,345,31/10/2018,1810-00553,0.00,70.33,R,Albert Jagger Limited,No
Http://opendatacommunities.org/id/metropolitan-district-council/leeds,Leeds City Council,31/10/2018,Resources and Housing,Commercial Services,Transport,Vehicle Spares,345,31/10/2018,1810-00554,0.00,60.39,R,Albert Jagger Limited,No
Http://opendatacommunities.org/id/metropolitan-district-council/leeds,Leeds City Council As Accountable Body,31/10/2018,Social Services Pooled Budgets,Leeds Community Equip Store Pooled Budgt,Supplies and Services,Other Equipment,203,26/10/2018,1810-00555,0.00,1036.00,R,Albion Electric Stores Ltd,No
Http://opendatacommunities.org/id/metropolitan-district-council/leeds,Leeds City Council,31/10/2018,City Development,Libraries  Arts & Heritage,Income,Arts/Sports Facility Hire,920,25/10/2018,1810-00556,0.00,-3398.00,R,Alchemy Promotions Ltd (The Mjr Group),No
Http://opendatacommunities.org/id/metropolitan-district-council/leeds,Leeds City Council,31/10/2018,City Development,Libraries  Arts & Heritage,Income,Other cultural & rec fees & charges,924,25/10/2018,1810-00557,0.00,-961.00,R,Alchemy Promotions Ltd (The Mjr Group),No
Http://opendatacommunities.org/id/metropolitan-district-council/leeds,Leeds City Council,31/10/2018,City Development,Libraries  Arts & Heritage,Income,Admissions  Booking Fees & Ticket Sales,933,25/10/2018,1810-00558,0.00,6895.80,R,Alchemy Promotions Ltd (The Mjr Group),No
Http://opendatacommunities.org/id/metropolitan-district-council/leeds,Leeds City Council,31/10/2018,City Development,Libraries  Arts & Heritage,Income,Advertising,969,25/10/2018,1810-00559,0.00,-874.20,R,Alchemy Promotions Ltd (The Mjr Group),No
Http://opendatacommunities.org/id/metropolitan-district-council/leeds,Leeds City Council,31/10/2018,City Development,Libraries  Arts & Heritage,Income,Other Income,973,25/10/2018,1810-00560,0.00,-474.60,R,Alchemy Promotions Ltd (The Mjr Group),No
Http://opendatacommunities.org/id/metropolitan-district-council/leeds,Leeds City Council,31/10/2018,Communities and Environment,Communities,Supplies and Services,Other Hired And Contracted Services,265,09/10/2018,1810-00561,0.00,1075.00,R,Alcium Software Ltd,No
Http://opendatacommunities.org/id/metropolitan-district-council/leeds,Leeds City Council,31/10/2018,Children and Families,Social Care  ,Supplies and Services,Food & Drink,231,10/09/2018,1810-00562,0.00,48.63,R,Aldi,Yes
Http://opendatacommunities.org/id/metropolitan-district-council/leeds,Leeds City Council,31/10/2018,Children and Families,Social Care  ,Third Party Payments,Contact,548,11/09/2018,1810-00563,0.00,8.78,R,Aldi 49 779,Yes
Http://opendatacommunities.org/id/metropolitan-district-council/leeds,Leeds City Council,31/10/2018,Resources and Housing,Strategic Housing Partnership & Support  ,Supplies and Services,Food & Drink,231,12/09/2018,1810-00564,0.00,3.79,R,Aldi 5 779,Yes
Http://opendatacommunities.org/id/metropolitan-district-council/leeds,Leeds City Council,31/10/2018,Children and Families,Social Care  ,Transfer Payments,Leaving Care Allowances,634,04/09/2018,1810-00565,0.00,2.08,R,Aldi 71 779,Yes
Http://opendatacommunities.org/id/metropolitan-district-council/leeds,Leeds City Council,31/10/2018,Children and Families,Social Care  ,Transfer Payments,Leaving Care Allowances,634,17/09/2018,1810-00566,0.00,46.90,R,Aldi 71 779,Yes
Http://opendatacommunities.org/id/metropolitan-district-council/leeds,Leeds City Council,31/10/2018,Children and Families,Social Care  ,Transfer Payments,Leaving Care Allowances,634,17/09/2018,1810-00567,0.00,21.40,R,Aldi 71 779,Yes
Http://opendatacommunities.org/id/metropolitan-district-council/leeds,Leeds City Council,31/10/2018,Resources and Housing,Strategic Housing Partnership & Support  ,Supplies and Services,Other Hired And Contracted Services,265,19/09/2018,1810-00568,0.00,17.92,R,Aldi 71 779,Yes
Http://opendatacommunities.org/id/metropolitan-district-council/leeds,Leeds City Council,31/10/2018,Children and Families,Social Care  ,Supplies and Services,Operational Furniture And Equipment,203,20/09/2018,1810-00569,0.00,12.49,R,Aldi 78 779,Yes
Http://opendatacommunities.org/id/metropolitan-district-council/leeds,Leeds City Council,31/10/2018,Children and Families,Social Care  ,Supplies and Services,Food & Drink,231,17/09/2018,1810-00570,0.00,50.94,R,Aldi 85 779,Yes
Http://opendatacommunities.org/id/metropolitan-district-council/leeds,Leeds City Council,31/10/2018,Children and Families,Social Care  ,Supplies and Services,Food & Drink,231,18/09/2018,1810-00571,0.00,5.72,R,Aldi 85 779,Yes
Http://opendatacommunities.org/id/metropolitan-district-council/leeds,Leeds City Council,31/10/2018,Children and Families,Social Care  ,Premises,Cleaning Maintenance & Toiletries,127,31/08/2018,1810-00572,0.00,6.94,R,Aldi 88 779,Yes
Http://opendatacommunities.org/id/metropolitan-district-council/leeds,Leeds City Council,31/10/2018,Children and Families,Social Care  ,Supplies and Services,Food & Drink,231,31/08/2018,1810-00573,0.00,71.72,R,Aldi 88 779,Yes
Http://opendatacommunities.org/id/metropolitan-district-council/leeds,Leeds City Council,31/10/2018,Children and Families,Social Care  ,Supplies and Services,Food & Drink,231,18/09/2018,1810-00574,0.00,26.72,R,Aldi 88 779,Yes
Http://opendatacommunities.org/id/metropolitan-district-council/leeds,Leeds City Council,31/10/2018,City Development,Libraries  Arts & Heritage,Supplies and Services,Publication And Promotion,267,19/10/2018,1810-00575,0.00,40.00,R,Alena Panasenka,No
Http://opendatacommunities.org/id/metropolitan-district-council/leeds,Leeds City Council,31/10/2018,Communities and Environment,Customer Access,Supplies and Services,Other Hired And Contracted Services,265,03/10/2018,1810-00576,0.00,108.75,R,Alena Zueva,No
Http://opendatacommunities.org/id/metropolitan-district-council/leeds,Leeds City Council,31/10/2018,Communities and Environment,Waste Management,Supplies and Services,Publication And Promotion,267,17/10/2018,1810-00577,0.00,75.00,R,Alex Mcintosh,No
Http://opendatacommunities.org/id/metropolitan-district-council/leeds,Leeds City Council,31/10/2018,Children and Families,Social Care,Support Services,Legal Disbursements,411,08/10/2018,1810-00578,0.00,361.00,R,Alex Taylor,No
Http://opendatacommunities.org/id/metropolitan-district-council/leeds,Leeds City Council,31/10/2018,Resources and Housing,Commercial Services,Supplies and Services,Other Hired And Contracted Services,265,11/10/2018,1810-00579,0.00,250.00,R,Alex Wagg,No
Http://opendatacommunities.org/id/metropolitan-district-council/leeds,Leeds City Council,31/10/2018,Resources and Housing,Commercial Services,Supplies and Services,Other Hired And Contracted Services,265,11/10/2018,1810-00580,0.00,250.00,R,Alex Wagg,No
Http://opendatacommunities.org/id/metropolitan-district-council/leeds,Leeds City Council,31/10/2018,Resources and Housing,Commercial Services,Supplies and Services,Other Hired And Contracted Services,265,11/10/2018,1810-00581,0.00,80.00,R,Alex Wagg,No
Http://opendatacommunities.org/id/metropolitan-district-council/leeds,Leeds City Council,31/10/2018,Resources and Housing,Commercial Services,Supplies and Services,Other Hired And Contracted Services,265,11/10/2018,1810-00582,0.00,240.00,R,Alex Wagg,No
Http://opendatacommunities.org/id/metropolitan-district-council/leeds,Leeds City Council,31/10/2018,Resources and Housing,Commercial Services,Supplies and Services,Other Hired And Contracted Services,265,11/10/2018,1810-00583,0.00,40.00,R,Alex Wagg,No
Http://opendatacommunities.org/id/metropolitan-district-council/leeds,Leeds City Council,31/10/2018,Resources and Housing,Commercial Services,Supplies and Services,Other Hired And Contracted Services,265,11/10/2018,1810-00584,0.00,175.00,R,Alex Wagg,No
Http://opendatacommunities.org/id/metropolitan-district-council/leeds,Leeds City Council,31/10/2018,Resources and Housing,Commercial Services,Transport,Vehicle Spares,345,11/10/2018,1810-00585,0.00,190.00,R,Alex Wagg,No
Http://opendatacommunities.org/id/metropolitan-district-council/leeds,Leeds City Council,31/10/2018,Resources and Housing,Commercial Services,Supplies and Services,Other Hired And Contracted Services,265,11/10/2018,1810-00586,0.00,160.00,R,Alex Wagg,No
Http://opendatacommunities.org/id/metropolitan-district-council/leeds,Leeds City Council,31/10/2018,Resources and Housing,Commercial Services,Supplies and Services,Other Hired And Contracted Services,265,11/10/2018,1810-00587,0.00,100.00,R,Alex Wagg,No
Http://opendatacommunities.org/id/metropolitan-district-council/leeds,Leeds City Council,31/10/2018,Resources and Housing,Commercial Services,Transport,Vehicle Spares,345,11/10/2018,1810-00588,0.00,195.00,R,Alex Wagg,No
Http://opendatacommunities.org/id/metropolitan-district-council/leeds,Leeds City Council,31/10/2018,Resources and Housing,Commercial Services,Supplies and Services,Other Hired And Contracted Services,265,25/10/2018,1810-00589,0.00,80.00,R,Alex Wagg,No
Http://opendatacommunities.org/id/metropolitan-district-council/leeds,Leeds City Council,31/10/2018,Resources and Housing,Commercial Services,Supplies and Services,Other Hired And Contracted Services,265,25/10/2018,1810-00590,0.00,60.00,R,Alex Wagg,No
Http://opendatacommunities.org/id/metropolitan-district-council/leeds,Leeds City Council,31/10/2018,Resources and Housing,Commercial Services,Supplies and Services,Other Hired And Contracted Services,265,25/10/2018,1810-00591,0.00,80.00,R,Alex Wagg,No
Http://opendatacommunities.org/id/metropolitan-district-council/leeds,Leeds City Council,31/10/2018,Resources and Housing,Commercial Services,Supplies and Services,Other Hired And Contracted Services,265,25/10/2018,1810-00592,0.00,100.00,R,Alex Wagg,No
Http://opendatacommunities.org/id/metropolitan-district-council/leeds,Leeds City Council,31/10/2018,Adults and Health,Services For Older People - 65 And Over,Third Party Payments,Residential Care Dementia,571,17/10/2018,1810-00593,0.00,20280.68,R,Alexander Residential Home,No
Http://opendatacommunities.org/id/metropolitan-district-council/leeds,Leeds City Council,31/10/2018,Adults and Health,Services For Older People - 65 And Over,Third Party Payments,Residential,580,17/10/2018,1810-00594,0.00,27040.70,R,Alexander Residential Home,No
Http://opendatacommunities.org/id/metropolitan-district-council/leeds,Leeds City Council,31/10/2018,Communities and Environment,Customer Access,Supplies and Services,Other Hired And Contracted Services,265,03/10/2018,1810-00595,0.00,166.00,R,Alexandra Costenco,No
Http://opendatacommunities.org/id/metropolitan-district-council/leeds,Leeds City Council,31/10/2018,Adults and Health,Services For Older People - 65 And Over,Third Party Payments,Residential,580,17/10/2018,1810-00596,0.00,8573.36,R,Alexandra Court,No
Http://opendatacommunities.org/id/metropolitan-district-council/leeds,Leeds City Council,31/10/2018,City Development,Libraries  Arts & Heritage,Supplies and Services,Other Hired And Contracted Services,265,03/10/2018,1810-00597,0.00,120.00,R,Alexandra George,No
Http://opendatacommunities.org/id/metropolitan-district-council/leeds,Leeds City Council,31/10/2018,Children and Families,Social Care,Third Party Payments,Section 17,551,05/10/2018,1810-00598,0.00,23.00,R,REDACTED PERSONAL DATA,No
Http://opendatacommunities.org/id/metropolitan-district-council/leeds,Leeds City Council,31/10/2018,Children and Families,Social Care,Third Party Payments,Section 17,551,12/10/2018,1810-00599,0.00,23.00,R,REDACTED PERSONAL DATA,No
Http://opendatacommunities.org/id/metropolitan-district-council/leeds,Leeds City Council,31/10/2018,Children and Families,Social Care,Third Party Payments,Section 17,551,19/10/2018,1810-00600,0.00,23.00,R,REDACTED PERSONAL DATA,No
Http://opendatacommunities.org/id/metropolitan-district-council/leeds,Leeds City Council,31/10/2018,Children and Families,Social Care,Third Party Payments,Section 17,551,26/10/2018,1810-00601,0.00,23.00,R,REDACTED PERSONAL DATA,No
Http://opendatacommunities.org/id/metropolitan-district-council/leeds,Leeds City Council,31/10/2018,Resources and Housing,Strategic Housing Partnership & Support,Supplies and Services,Other Hired And Contracted Services,265,17/10/2018,1810-00602,0.00,225.00,R,REDACTED PERSONAL DATA,No
Http://opendatacommunities.org/id/metropolitan-district-council/leeds,Leeds City Council,31/10/2018,Resources and Housing,Strategic Housing Partnership & Support,Supplies and Services,Other Hired And Contracted Services,265,29/10/2018,1810-00603,0.00,375.00,R,REDACTED PERSONAL DATA,No
Http://opendatacommunities.org/id/metropolitan-district-council/leeds,Leeds City Council,31/10/2018,Resources and Housing,Leeds Building Services,Supplies and Services,Other Hired And Contracted Services,265,01/10/2018,1810-00604,0.00,4000.00,R,Alfred Bagnall & Sons (Leeds) Ltd,No
Http://opendatacommunities.org/id/metropolitan-district-council/leeds,Leeds City Council,31/10/2018,Resources and Housing,Leeds Building Services,Supplies and Services,Other Hired And Contracted Services,265,01/10/2018,1810-00605,0.00,10000.00,R,Alfred Bagnall & Sons (Leeds) Ltd,No
Http://opendatacommunities.org/id/metropolitan-district-council/leeds,Leeds City Council,31/10/2018,Resources and Housing,Leeds Building Services,Supplies and Services,Other Hired And Contracted Services,265,01/10/2018,1810-00606,0.00,200.00,R,Alfred Bagnall & Sons (Leeds) Ltd,No
Http://opendatacommunities.org/id/metropolitan-district-council/leeds,Leeds City Council,31/10/2018,Resources and Housing,Leeds Building Services,Supplies and Services,Other Hired And Contracted Services,265,01/10/2018,1810-00607,0.00,200.00,R,Alfred Bagnall & Sons (Leeds) Ltd,No
Http://opendatacommunities.org/id/metropolitan-district-council/leeds,Leeds City Council,31/10/2018,Resources and Housing,Leeds Building Services,Supplies and Services,Other Hired And Contracted Services,265,01/10/2018,1810-00608,0.00,200.00,R,Alfred Bagnall & Sons (Leeds) Ltd,No
Http://opendatacommunities.org/id/metropolitan-district-council/leeds,Leeds City Council,31/10/2018,Resources and Housing,Leeds Building Services,Supplies and Services,Other Hired And Contracted Services,265,01/10/2018,1810-00609,0.00,7150.00,R,Alfred Bagnall & Sons (Leeds) Ltd,No
Http://opendatacommunities.org/id/metropolitan-district-council/leeds,Leeds City Council,31/10/2018,Resources and Housing,Leeds Building Services,Supplies and Services,Other Hired And Contracted Services,265,01/10/2018,1810-00610,0.00,4600.00,R,Alfred Bagnall & Sons (Leeds) Ltd,No
Http://opendatacommunities.org/id/metropolitan-district-council/leeds,Leeds City Council,31/10/2018,Resources and Housing,Leeds Building Services,Supplies and Services,Other Hired And Contracted Services,265,01/10/2018,1810-00611,0.00,3670.00,R,Alfred Bagnall & Sons (Leeds) Ltd,No
Http://opendatacommunities.org/id/metropolitan-district-council/leeds,Leeds City Council,31/10/2018,Resources and Housing,Leeds Building Services,Supplies and Services,Other Hired And Contracted Services,265,01/10/2018,1810-00612,0.00,340.00,R,Alfred Bagnall & Sons (Leeds) Ltd,No
Http://opendatacommunities.org/id/metropolitan-district-council/leeds,Leeds City Council,31/10/2018,Resources and Housing,Leeds Building Services,Supplies and Services,Other Hired And Contracted Services,265,03/10/2018,1810-00613,0.00,200.00,R,Alfred Bagnall & Sons (Leeds) Ltd,No
Http://opendatacommunities.org/id/metropolitan-district-council/leeds,Leeds City Council,31/10/2018,Resources and Housing,Corporate Property Management,Capital,Construction,3,04/10/2018,1810-00614,0.00,9500.00,C,Alfred Bagnall & Sons (Leeds) Ltd,No
Http://opendatacommunities.org/id/metropolitan-district-council/leeds,Leeds City Council,31/10/2018,Resources and Housing,Corporate Property Management,Premises,Maintenance Of Buildings,101,04/10/2018,1810-00615,0.00,2400.00,R,Alfred Bagnall & Sons (Leeds) Ltd,No
Http://opendatacommunities.org/id/metropolitan-district-council/leeds,Leeds City Council,31/10/2018,Resources and Housing,Leeds Building Services,Supplies and Services,Other Hired And Contracted Services,265,09/10/2018,1810-00616,0.00,19645.67,R,Alfred Bagnall & Sons (Leeds) Ltd,No
Http://opendatacommunities.org/id/metropolitan-district-council/leeds,Leeds City Council,31/10/2018,Resources and Housing,Corporate Property Management,Capital,Construction,3,12/10/2018,1810-00617,0.00,5480.05,C,Alfred Bagnall & Sons (Leeds) Ltd,No
Http://opendatacommunities.org/id/metropolitan-district-council/leeds,Leeds City Council,31/10/2018,Resources and Housing,Leeds Building Services,Supplies and Services,Other Hired And Contracted Services,265,16/10/2018,1810-00618,0.00,5860.00,R,Alfred Bagnall & Sons (Leeds) Ltd,No
Http://opendatacommunities.org/id/metropolitan-district-council/leeds,Leeds City Council,31/10/2018,Resources and Housing,Leeds Building Services,Supplies and Services,Other Hired And Contracted Services,265,19/10/2018,1810-00619,0.00,4450.00,R,Alfred Bagnall & Sons (Leeds) Ltd,No
Http://opendatacommunities.org/id/metropolitan-district-council/leeds,Leeds City Council,31/10/2018,Resources and Housing,Leeds Building Services,Supplies and Services,Other Hired And Contracted Services,265,19/10/2018,1810-00620,0.00,1325.00,R,Alfred Bagnall & Sons (Leeds) Ltd,No
Http://opendatacommunities.org/id/metropolitan-district-council/leeds,Leeds City Council,31/10/2018,Resources and Housing,Leeds Building Services,Supplies and Services,Other Hired And Contracted Services,265,19/10/2018,1810-00621,0.00,5200.00,R,Alfred Bagnall & Sons (Leeds) Ltd,No
Http://opendatacommunities.org/id/metropolitan-district-council/leeds,Leeds City Council,31/10/2018,Resources and Housing,Leeds Building Services,Supplies and Services,Other Hired And Contracted Services,265,22/10/2018,1810-00622,0.00,200.00,R,Alfred Bagnall & Sons (Leeds) Ltd,No
Http://opendatacommunities.org/id/metropolitan-district-council/leeds,Leeds City Council,31/10/2018,Resources and Housing,Leeds Building Services,Supplies and Services,Other Hired And Contracted Services,265,23/10/2018,1810-00623,0.00,400.00,R,Alfred Bagnall & Sons (Leeds) Ltd,No
Http://opendatacommunities.org/id/metropolitan-district-council/leeds,Leeds City Council,31/10/2018,Resources and Housing,Leeds Building Services,Supplies and Services,Other Hired And Contracted Services,265,26/10/2018,1810-00624,0.00,1200.00,R,Alfred Bagnall & Sons (Leeds) Ltd,No
Http://opendatacommunities.org/id/metropolitan-district-council/leeds,Leeds City Council,31/10/2018,Resources and Housing,Leeds Building Services,Supplies and Services,Other Hired And Contracted Services,265,26/10/2018,1810-00625,0.00,1100.00,R,Alfred Bagnall & Sons (Leeds) Ltd,No
Http://opendatacommunities.org/id/metropolitan-district-council/leeds,Leeds City Council,31/10/2018,Resources and Housing,Leeds Building Services,Supplies and Services,Other Hired And Contracted Services,265,26/10/2018,1810-00626,0.00,900.00,R,Alfred Bagnall & Sons (Leeds) Ltd,No
Http://opendatacommunities.org/id/metropolitan-district-council/leeds,Leeds City Council,31/10/2018,Resources and Housing,Leeds Building Services,Supplies and Services,Other Hired And Contracted Services,265,26/10/2018,1810-00627,0.00,800.00,R,Alfred Bagnall & Sons (Leeds) Ltd,No
Http://opendatacommunities.org/id/metropolitan-district-council/leeds,Leeds City Council,31/10/2018,Resources and Housing,Leeds Building Services,Supplies and Services,Other Hired And Contracted Services,265,26/10/2018,1810-00628,0.00,900.00,R,Alfred Bagnall & Sons (Leeds) Ltd,No
Http://opendatacommunities.org/id/metropolitan-district-council/leeds,Leeds City Council,31/10/2018,Resources and Housing,Leeds Building Services,Supplies and Services,Other Hired And Contracted Services,265,26/10/2018,1810-00629,0.00,400.00,R,Alfred Bagnall & Sons (Leeds) Ltd,No
Http://opendatacommunities.org/id/metropolitan-district-council/leeds,Leeds City Council,31/10/2018,Resources and Housing,Leeds Building Services,Supplies and Services,Other Hired And Contracted Services,265,26/10/2018,1810-00630,0.00,400.00,R,Alfred Bagnall & Sons (Leeds) Ltd,No
Http://opendatacommunities.org/id/metropolitan-district-council/leeds,Leeds City Council,31/10/2018,Resources and Housing,Leeds Building Services,Supplies and Services,Other Hired And Contracted Services,265,26/10/2018,1810-00631,0.00,800.00,R,Alfred Bagnall & Sons (Leeds) Ltd,No
Http://opendatacommunities.org/id/metropolitan-district-council/leeds,Leeds City Council,31/10/2018,Resources and Housing,Leeds Building Services,Supplies and Services,Other Hired And Contracted Services,265,26/10/2018,1810-00632,0.00,800.00,R,Alfred Bagnall & Sons (Leeds) Ltd,No
Http://opendatacommunities.org/id/metropolitan-district-council/leeds,Leeds City Council,31/10/2018,Resources and Housing,Leeds Building Services,Supplies and Services,Other Hired And Contracted Services,265,26/10/2018,1810-00633,0.00,960.00,R,Alfred Bagnall & Sons (Leeds) Ltd,No
Http://opendatacommunities.org/id/metropolitan-district-council/leeds,Leeds City Council,31/10/2018,Resources and Housing,Leeds Building Services,Supplies and Services,Other Hired And Contracted Services,265,26/10/2018,1810-00634,0.00,960.00,R,Alfred Bagnall & Sons (Leeds) Ltd,No
Http://opendatacommunities.org/id/metropolitan-district-council/leeds,Leeds City Council,31/10/2018,Resources and Housing,Leeds Building Services,Supplies and Services,Other Hired And Contracted Services,265,31/10/2018,1810-00635,0.00,600.00,R,Alfred Bagnall & Sons (Leeds) Ltd,No
Http://opendatacommunities.org/id/metropolitan-district-council/leeds,Leeds City Council,31/10/2018,Resources and Housing,Leeds Building Services,Supplies and Services,Other Hired And Contracted Services,265,31/10/2018,1810-00636,0.00,600.00,R,Alfred Bagnall & Sons (Leeds) Ltd,No
Http://opendatacommunities.org/id/metropolitan-district-council/leeds,Leeds City Council,31/10/2018,Resources and Housing,Leeds Building Services,Supplies and Services,Other Hired And Contracted Services,265,31/10/2018,1810-00637,0.00,1200.00,R,Alfred Bagnall & Sons (Leeds) Ltd,No
Http://opendatacommunities.org/id/metropolitan-district-council/leeds,Leeds City Council,31/10/2018,Resources and Housing,Leeds Building Services,Supplies and Services,Other Hired And Contracted Services,265,31/10/2018,1810-00638,0.00,800.00,R,Alfred Bagnall & Sons (Leeds) Ltd,No
Http://opendatacommunities.org/id/metropolitan-district-council/leeds,Leeds City Council,31/10/2018,Insurance,Insurance,Supplies and Services,Insurance Claims,248,08/10/2018,1810-00639,0.00,504.00,R,REDACTED PERSONAL DATA,No
Http://opendatacommunities.org/id/metropolitan-district-council/leeds,Leeds City Council,31/10/2018,Communities and Environment,Customer Access,Supplies and Services,Other Hired And Contracted Services,265,03/10/2018,1810-00640,0.00,305.75,R,Ali Pourakaberian,No
Http://opendatacommunities.org/id/metropolitan-district-council/leeds,Leeds City Council,31/10/2018,Children and Families,Partnerships & Health,Employees,Training & Development,70,16/10/2018,1810-00641,0.00,1416.64,R,REDACTED PERSONAL DATA,No
Http://opendatacommunities.org/id/metropolitan-district-council/leeds,Leeds City Council,31/10/2018,City Development,Libraries  Arts & Heritage,Supplies and Services,Bought In Professional Services,277,12/10/2018,1810-00642,0.00,300.00,R,Alice Withers,No
Http://opendatacommunities.org/id/metropolitan-district-council/leeds,Leeds City Council,31/10/2018,Children and Families,Social Care,Transfer Payments,16 Plus Top Up Allowance,625,19/10/2018,1810-00643,0.00,20.00,R,REDACTED PERSONAL DATA,No
Http://opendatacommunities.org/id/metropolitan-district-council/leeds,Leeds City Council,31/10/2018,Children and Families,Social Care,Transfer Payments,16 Plus Top Up Allowance,625,26/10/2018,1810-00644,0.00,20.00,R,REDACTED PERSONAL DATA,No
Http://opendatacommunities.org/id/metropolitan-district-council/leeds,Leeds City Council,31/10/2018,Children and Families,Social Care,Third Party Payments,Services Rendered By Other Organisations,511,17/10/2018,1810-00645,0.00,267.75,R,REDACTED PERSONAL DATA,No
Http://opendatacommunities.org/id/metropolitan-district-council/leeds,Leeds City Council,31/10/2018,Children and Families,Social Care,Third Party Payments,Services Rendered By Other Organisations,511,17/10/2018,1810-00646,0.00,267.75,R,REDACTED PERSONAL DATA,No
Http://opendatacommunities.org/id/metropolitan-district-council/leeds,Leeds City Council,31/10/2018,Children and Families,Social Care,Third Party Payments,Placement Support,550,08/10/2018,1810-00647,0.00,89.00,R,REDACTED PERSONAL DATA,No
Http://opendatacommunities.org/id/metropolitan-district-council/leeds,Leeds City Council,31/10/2018,Resources and Housing,Leeds Building Services,Supplies and Services,Other Hired And Contracted Services,265,02/10/2018,1810-00648,0.00,195.00,R,All Clear Solutions Ltd,No
Http://opendatacommunities.org/id/metropolitan-district-council/leeds,Leeds City Council,31/10/2018,Resources and Housing,Leeds Building Services,Supplies and Services,Other Hired And Contracted Services,265,02/10/2018,1810-00649,0.00,195.00,R,All Clear Solutions Ltd,No
Http://opendatacommunities.org/id/metropolitan-district-council/leeds,Leeds City Council,31/10/2018,Resources and Housing,Leeds Building Services,Supplies and Services,Other Hired And Contracted Services,265,02/10/2018,1810-00650,0.00,195.00,R,All Clear Solutions Ltd,No
Http://opendatacommunities.org/id/metropolitan-district-council/leeds,Leeds City Council,31/10/2018,Resources and Housing,Leeds Building Services,Supplies and Services,Other Hired And Contracted Services,265,02/10/2018,1810-00651,0.00,195.00,R,All Clear Solutions Ltd,No
Http://opendatacommunities.org/id/metropolitan-district-council/leeds,Leeds City Council,31/10/2018,Resources and Housing,Leeds Building Services,Supplies and Services,Other Hired And Contracted Services,265,02/10/2018,1810-00652,0.00,195.00,R,All Clear Solutions Ltd,No
Http://opendatacommunities.org/id/metropolitan-district-council/leeds,Leeds City Council,31/10/2018,Resources and Housing,Leeds Building Services,Supplies and Services,Other Hired And Contracted Services,265,02/10/2018,1810-00653,0.00,195.00,R,All Clear Solutions Ltd,No
Http://opendatacommunities.org/id/metropolitan-district-council/leeds,Leeds City Council,31/10/2018,Resources and Housing,Leeds Building Services,Supplies and Services,Other Hired And Contracted Services,265,02/10/2018,1810-00654,0.00,195.00,R,All Clear Solutions Ltd,No
Http://opendatacommunities.org/id/metropolitan-district-council/leeds,Leeds City Council,31/10/2018,Resources and Housing,Leeds Building Services,Supplies and Services,Other Hired And Contracted Services,265,02/10/2018,1810-00655,0.00,195.00,R,All Clear Solutions Ltd,No
Http://opendatacommunities.org/id/metropolitan-district-council/leeds,Leeds City Council,31/10/2018,Resources and Housing,Leeds Building Services,Supplies and Services,Other Hired And Contracted Services,265,02/10/2018,1810-00656,0.00,195.00,R,All Clear Solutions Ltd,No
Http://opendatacommunities.org/id/metropolitan-district-council/leeds,Leeds City Council,31/10/2018,Resources and Housing,Leeds Building Services,Supplies and Services,Other Hired And Contracted Services,265,02/10/2018,1810-00657,0.00,195.00,R,All Clear Solutions Ltd,No
Http://opendatacommunities.org/id/metropolitan-district-council/leeds,Leeds City Council,31/10/2018,Resources and Housing,Leeds Building Services,Supplies and Services,Other Hired And Contracted Services,265,12/10/2018,1810-00658,0.00,195.00,R,All Clear Solutions Ltd,No
Http://opendatacommunities.org/id/metropolitan-district-council/leeds,Leeds City Council,31/10/2018,Resources and Housing,Leeds Building Services,Supplies and Services,Other Hired And Contracted Services,265,12/10/2018,1810-00659,0.00,195.00,R,All Clear Solutions Ltd,No
Http://opendatacommunities.org/id/metropolitan-district-council/leeds,Leeds City Council,31/10/2018,Resources and Housing,Leeds Building Services,Supplies and Services,Other Hired And Contracted Services,265,12/10/2018,1810-00660,0.00,195.00,R,All Clear Solutions Ltd,No
Http://opendatacommunities.org/id/metropolitan-district-council/leeds,Leeds City Council,31/10/2018,Resources and Housing,Leeds Building Services,Supplies and Services,Other Hired And Contracted Services,265,12/10/2018,1810-00661,0.00,195.00,R,All Clear Solutions Ltd,No
Http://opendatacommunities.org/id/metropolitan-district-council/leeds,Leeds City Council,31/10/2018,Resources and Housing,Leeds Building Services,Supplies and Services,Other Hired And Contracted Services,265,19/10/2018,1810-00662,0.00,195.00,R,All Clear Solutions Ltd,No
Http://opendatacommunities.org/id/metropolitan-district-council/leeds,Leeds City Council,31/10/2018,Resources and Housing,Leeds Building Services,Supplies and Services,Other Hired And Contracted Services,265,19/10/2018,1810-00663,0.00,195.00,R,All Clear Solutions Ltd,No
Http://opendatacommunities.org/id/metropolitan-district-council/leeds,Leeds City Council,31/10/2018,Resources and Housing,Leeds Building Services,Supplies and Services,Other Hired And Contracted Services,265,31/10/2018,1810-00664,0.00,195.00,R,All Clear Solutions Ltd,No
Http://opendatacommunities.org/id/metropolitan-district-council/leeds,Leeds City Council,31/10/2018,Resources and Housing,Leeds Building Services,Supplies and Services,Other Hired And Contracted Services,265,31/10/2018,1810-00665,0.00,195.00,R,All Clear Solutions Ltd,No
Http://opendatacommunities.org/id/metropolitan-district-council/leeds,Leeds City Council,31/10/2018,Resources and Housing,Leeds Building Services,Supplies and Services,Other Hired And Contracted Services,265,31/10/2018,1810-00666,0.00,195.00,R,All Clear Solutions Ltd,No
Http://opendatacommunities.org/id/metropolitan-district-council/leeds,Leeds City Council,31/10/2018,Resources and Housing,Leeds Building Services,Supplies and Services,Other Hired And Contracted Services,265,31/10/2018,1810-00667,0.00,195.00,R,All Clear Solutions Ltd,No
Http://opendatacommunities.org/id/metropolitan-district-council/leeds,Leeds City Council,31/10/2018,Resources and Housing,Leeds Building Services,Supplies and Services,Other Hired And Contracted Services,265,31/10/2018,1810-00668,0.00,195.00,R,All Clear Solutions Ltd,No
Http://opendatacommunities.org/id/metropolitan-district-council/leeds,Leeds City Council,31/10/2018,Resources and Housing,Leeds Building Services,Supplies and Services,Other Hired And Contracted Services,265,31/10/2018,1810-00669,0.00,195.00,R,All Clear Solutions Ltd,No
Http://opendatacommunities.org/id/metropolitan-district-council/leeds,Leeds City Council,31/10/2018,Resources and Housing,Leeds Building Services,Supplies and Services,Other Hired And Contracted Services,265,31/10/2018,1810-00670,0.00,195.00,R,All Clear Solutions Ltd,No
Http://opendatacommunities.org/id/metropolitan-district-council/leeds,Leeds City Council,31/10/2018,City Development,Libraries  Arts & Heritage,Supplies and Services,Non-Recurring Grants,227,31/10/2018,1810-00671,0.00,1000.00,R,All Hallows,No
Http://opendatacommunities.org/id/metropolitan-district-council/leeds,Leeds City Council,31/10/2018,Children and Families,Social Care,Third Party Payments,Services Rendered By Other Organisations,511,17/10/2018,1810-00672,0.00,1606.50,R,All Stars Childcare,No
Http://opendatacommunities.org/id/metropolitan-district-council/leeds,Leeds City Council,31/10/2018,Children and Families,Social Care,Third Party Payments,Services Rendered By Other Organisations,511,19/10/2018,1810-00673,0.00,9052.50,R,All Stars Childcare,No
Http://opendatacommunities.org/id/metropolitan-district-council/leeds,Leeds City Council As Accountable Body,31/10/2018,Social Services Pooled Budgets,Jcs For People With Learning Disabilitie,Third Party Payments,Sheltered Accommodation,569,17/10/2018,1810-00674,0.00,13578.36,R,Allerton Avenue,No
Http://opendatacommunities.org/id/metropolitan-district-council/leeds,Leeds City Council,31/10/2018,Children and Families,Social Care,Third Party Payments,Services Rendered By Voluntary Sector,505,19/10/2018,1810-00675,0.00,1421.10,R,Allerton Bywater Community Partnership,No
Http://opendatacommunities.org/id/metropolitan-district-council/leeds,Leeds City Council,31/10/2018,Adults and Health,Services For Older People - 65 And Over,Third Party Payments,Nursing Care Dementia,574,17/10/2018,1810-00676,0.00,2094.28,R,Allerton Park N H,No
Http://opendatacommunities.org/id/metropolitan-district-council/leeds,Leeds City Council,31/10/2018,Communities and Environment,Parks and Countryside,Supplies and Services,Operational Materials,205,31/10/2018,1810-00677,0.00,83.95,R,Allflex Uk Group Ltd,No
Http://opendatacommunities.org/id/metropolitan-district-council/leeds,Leeds City Council,31/10/2018,Communities and Environment,Parks and Countryside,Supplies and Services,Operational Materials,205,31/10/2018,1810-00678,0.00,3.50,R,Allflex Uk Group Ltd,No
Http://opendatacommunities.org/id/metropolitan-district-council/leeds,Leeds City Council,31/10/2018,Communities and Environment,Parks and Countryside,Supplies and Services,Operational Materials,205,31/10/2018,1810-00679,0.00,6.00,R,Allflex Uk Group Ltd,No
Http://opendatacommunities.org/id/metropolitan-district-council/leeds,Leeds City Council,31/10/2018,Resources and Housing,Finance,Supplies and Services,Bank Charges,263,01/10/2018,1810-00680,0.00,-178.86,R,Alliance & Leicester Commercial Bank,No
Http://opendatacommunities.org/id/metropolitan-district-council/leeds,Leeds City Council,31/10/2018,Resources and Housing,Finance,Supplies and Services,Bank Charges,263,04/10/2018,1810-00681,0.00,583.06,R,Alliance & Leicester Commercial Bank,No
Http://opendatacommunities.org/id/metropolitan-district-council/leeds,Leeds City Council,31/10/2018,Resources and Housing,Finance,Supplies and Services,Bank Charges,263,04/10/2018,1810-00682,0.00,100.00,R,Alliance & Leicester Commercial Bank,No
Http://opendatacommunities.org/id/metropolitan-district-council/leeds,Leeds City Council,31/10/2018,Resources and Housing,Commercial Services,Transport,Vehicle Spares,345,10/10/2018,1810-00683,0.00,98.00,R,Alliance Electronics Ltd,No
Http://opendatacommunities.org/id/metropolitan-district-council/leeds,Leeds City Council,31/10/2018,City Development,Recreation,Supplies and Services,Advertising,211,05/10/2018,1810-00684,0.00,220.00,R,Alliance Leisure Service Ltd,No
Http://opendatacommunities.org/id/metropolitan-district-council/leeds,Leeds City Council,31/10/2018,City Development,Recreation,Supplies and Services,Printing,215,12/10/2018,1810-00685,0.00,1073.00,R,Alliance Leisure Service Ltd,No
Http://opendatacommunities.org/id/metropolitan-district-council/leeds,Leeds City Council,31/10/2018,City Development,Highways,Supplies and Services,Other Hired And Contracted Services,265,17/10/2018,1810-00686,0.00,6152.40,R,Allied Exploration & Geotechnics Ltd,No
Http://opendatacommunities.org/id/metropolitan-district-council/leeds,Leeds City Council,31/10/2018,City Development,Highways,Supplies and Services,Other Hired And Contracted Services,265,22/10/2018,1810-00687,0.00,863.13,R,Allied Exploration & Geotechnics Ltd,No
Http://opendatacommunities.org/id/metropolitan-district-council/leeds,Leeds City Council,31/10/2018,City Development,Highways,Supplies and Services,Other Hired And Contracted Services,265,22/10/2018,1810-00688,0.00,685.00,R,Allied Exploration & Geotechnics Ltd,No
Http://opendatacommunities.org/id/metropolitan-district-council/leeds,Leeds City Council,31/10/2018,City Development,Highways,Supplies and Services,Other Hired And Contracted Services,265,24/10/2018,1810-00689,0.00,1634.00,R,Allied Exploration & Geotechnics Ltd,No
Http://opendatacommunities.org/id/metropolitan-district-council/leeds,Leeds City Council,31/10/2018,City Development,Highways,Supplies and Services,Other Hired And Contracted Services,265,30/10/2018,1810-00690,0.00,1190.00,R,Allied Exploration & Geotechnics Ltd,No
Http://opendatacommunities.org/id/metropolitan-district-council/leeds,Leeds City Council,31/10/2018,City Development,Highways,Supplies and Services,Other Hired And Contracted Services,265,30/10/2018,1810-00691,0.00,776.44,R,Allied Exploration & Geotechnics Ltd,No
Http://opendatacommunities.org/id/metropolitan-district-council/leeds,Leeds City Council,31/10/2018,Children and Families,Social Care,Third Party Payments,Services Rendered By Voluntary Sector,505,03/10/2018,1810-00692,0.00,598.50,R,Allied Healthcare,No
Http://opendatacommunities.org/id/metropolitan-district-council/leeds,Leeds City Council As Accountable Body,31/10/2018,Social Services Pooled Budgets,Jcs For People With Learning Disabilitie,Third Party Payments,Home Care,568,05/10/2018,1810-00693,0.00,155.68,R,Allied Healthcare,No
Http://opendatacommunities.org/id/metropolitan-district-council/leeds,Leeds City Council,31/10/2018,Children and Families,Social Care,Third Party Payments,Services Rendered By Voluntary Sector,505,09/10/2018,1810-00694,0.00,684.00,R,Allied Healthcare,No
Http://opendatacommunities.org/id/metropolitan-district-council/leeds,Leeds City Council As Accountable Body,31/10/2018,Social Services Pooled Budgets,Jcs For People With Learning Disabilitie,Third Party Payments,Home Care,568,16/10/2018,1810-00695,0.00,16481.31,R,Allied Healthcare,No
Http://opendatacommunities.org/id/metropolitan-district-council/leeds,Leeds City Council,31/10/2018,Adults and Health,Services For Older People - 65 And Over,Third Party Payments,Home Care,568,23/10/2018,1810-00696,0.00,239.75,R,Allied Healthcare,No
Http://opendatacommunities.org/id/metropolitan-district-council/leeds,Leeds City Council,31/10/2018,Adults and Health,Services For Older People - 65 And Over,Third Party Payments,Home Care,568,23/10/2018,1810-00697,0.00,1809.93,R,Allied Healthcare,No
Http://opendatacommunities.org/id/metropolitan-district-council/leeds,Leeds City Council,31/10/2018,Adults and Health,Services For Older People - 65 And Over,Third Party Payments,Home Care,568,23/10/2018,1810-00698,0.00,17454.62,R,Allied Healthcare,No
Http://opendatacommunities.org/id/metropolitan-district-council/leeds,Leeds City Council,31/10/2018,Adults and Health,Services For Older People Under 65 P/Dis,Third Party Payments,Home Care,568,23/10/2018,1810-00699,0.00,1098.11,R,Allied Healthcare,No
Http://opendatacommunities.org/id/metropolitan-district-council/leeds,Leeds City Council,31/10/2018,Adults and Health,Services For Older People - 65 And Over,Third Party Payments,Home Care,568,23/10/2018,1810-00700,0.00,8562.97,R,Allied Healthcare,No
Http://opendatacommunities.org/id/metropolitan-district-council/leeds,Leeds City Council,31/10/2018,Adults and Health,Services For Older People Under 65 P/Dis,Third Party Payments,Home Care,568,23/10/2018,1810-00701,0.00,1600.21,R,Allied Healthcare,No
Http://opendatacommunities.org/id/metropolitan-district-council/leeds,Leeds City Council,31/10/2018,Adults and Health,Services For Older People - 65 And Over,Third Party Payments,Home Care,568,23/10/2018,1810-00702,0.00,11731.52,R,Allied Healthcare,No
Http://opendatacommunities.org/id/metropolitan-district-council/leeds,Leeds City Council,31/10/2018,Adults and Health,Services For Older People Under 65 P/Dis,Third Party Payments,Home Care,568,23/10/2018,1810-00703,0.00,7396.32,R,Allied Healthcare,No
Http://opendatacommunities.org/id/metropolitan-district-council/leeds,Leeds City Council,31/10/2018,Adults and Health,Services For Older People - 65 And Over,Third Party Payments,Home Care,568,24/10/2018,1810-00704,0.00,16476.97,R,Allied Healthcare,No
Http://opendatacommunities.org/id/metropolitan-district-council/leeds,Leeds City Council As Accountable Body,31/10/2018,Social Services Pooled Budgets,Jcs For People With Learning Disabilitie,Third Party Payments,Home Care,568,26/10/2018,1810-00705,0.00,13151.25,R,Allied Healthcare,No
Http://opendatacommunities.org/id/metropolitan-district-council/leeds,Leeds City Council As Accountable Body,31/10/2018,Social Services Pooled Budgets,Jcs For People With Learning Disabilitie,Third Party Payments,Home Care,568,26/10/2018,1810-00706,0.00,15292.76,R,Allied Healthcare,No
Http://opendatacommunities.org/id/metropolitan-district-council/leeds,Leeds City Council,31/10/2018,Adults and Health,Services For Older People - 65 And Over,Third Party Payments,Home Care,568,26/10/2018,1810-00707,0.00,418.32,R,Allied Healthcare,No
Http://opendatacommunities.org/id/metropolitan-district-council/leeds,Leeds City Council,31/10/2018,Adults and Health,Services For Older People - 65 And Over,Third Party Payments,Home Care,568,26/10/2018,1810-00708,0.00,418.32,R,Allied Healthcare,No
Http://opendatacommunities.org/id/metropolitan-district-council/leeds,Leeds City Council,31/10/2018,Adults and Health,Services For Older People - 65 And Over,Third Party Payments,Home Care,568,26/10/2018,1810-00709,0.00,418.32,R,Allied Healthcare,No
Http://opendatacommunities.org/id/metropolitan-district-council/leeds,Leeds City Council,31/10/2018,Adults and Health,Services For Older People - 65 And Over,Third Party Payments,Home Care,568,26/10/2018,1810-00710,0.00,418.32,R,Allied Healthcare,No
Http://opendatacommunities.org/id/metropolitan-district-council/leeds,Leeds City Council,31/10/2018,Adults and Health,Services For Older People - 65 And Over,Third Party Payments,Home Care,568,26/10/2018,1810-00711,0.00,418.32,R,Allied Healthcare,No
Http://opendatacommunities.org/id/metropolitan-district-council/leeds,Leeds City Council,31/10/2018,Adults and Health,Services For Older People - 65 And Over,Third Party Payments,Home Care,568,26/10/2018,1810-00712,0.00,418.32,R,Allied Healthcare,No
Http://opendatacommunities.org/id/metropolitan-district-council/leeds,Leeds City Council,31/10/2018,Adults and Health,Services For Older People - 65 And Over,Third Party Payments,Home Care,568,26/10/2018,1810-00713,0.00,1254.96,R,Allied Healthcare,No
Http://opendatacommunities.org/id/metropolitan-district-council/leeds,Leeds City Council,31/10/2018,Adults and Health,Services For Older People - 65 And Over,Third Party Payments,Home Care,568,26/10/2018,1810-00714,0.00,1254.96,R,Allied Healthcare,No
Http://opendatacommunities.org/id/metropolitan-district-council/leeds,Leeds City Council,31/10/2018,Adults and Health,Services For Older People - 65 And Over,Third Party Payments,Home Care,568,26/10/2018,1810-00715,0.00,1254.96,R,Allied Healthcare,No
Http://opendatacommunities.org/id/metropolitan-district-council/leeds,Leeds City Council,31/10/2018,Adults and Health,Services For Older People - 65 And Over,Third Party Payments,Home Care,568,26/10/2018,1810-00716,0.00,1120.50,R,Allied Healthcare,No
Http://opendatacommunities.org/id/metropolitan-district-council/leeds,Leeds City Council,31/10/2018,Adults and Health,Services For Older People - 65 And Over,Third Party Payments,Home Care,568,26/10/2018,1810-00717,0.00,627.48,R,Allied Healthcare,No
Http://opendatacommunities.org/id/metropolitan-district-council/leeds,Leeds City Council,31/10/2018,Children and Families,Social Care,Third Party Payments,Services Rendered By Voluntary Sector,505,31/10/2018,1810-00718,0.00,684.00,R,Allied Healthcare,No
Http://opendatacommunities.org/id/metropolitan-district-council/leeds,Leeds City Council,31/10/2018,Children and Families,Social Care,Third Party Payments,Placement Support,550,24/10/2018,1810-00719,0.00,6195.00,R,Allied Vehicles Ltd,No
Http://opendatacommunities.org/id/metropolitan-district-council/leeds,Leeds City Council,31/10/2018,Children and Families,Social Care,Third Party Payments,Services Rendered By Other Organisations,511,19/10/2018,1810-00720,0.00,223.12,R,REDACTED PERSONAL DATA,No
Http://opendatacommunities.org/id/metropolitan-district-council/leeds,Leeds City Council,31/10/2018,Resources and Housing,Strategic Housing Partnership & Support  ,Supplies and Services,Other Hired And Contracted Services,265,06/09/2018,1810-00721,0.00,41.38,R,Allpay *robin Hood Energy,Yes
Http://opendatacommunities.org/id/metropolitan-district-council/leeds,Leeds City Council,31/10/2018,Resources and Housing,Strategic Housing Partnership & Support  ,Supplies and Services,Other Hired And Contracted Services,265,18/09/2018,1810-00722,0.00,195.08,R,Allpay *robin Hood Energy,Yes
Http://opendatacommunities.org/id/metropolitan-district-council/leeds,Leeds City Council,31/10/2018,Resources and Housing,Strategic Housing Partnership & Support  ,Supplies and Services,Other Hired And Contracted Services,265,18/09/2018,1810-00723,0.00,135.00,R,Allpay *robin Hood Energy,Yes
Http://opendatacommunities.org/id/metropolitan-district-council/leeds,Leeds City Council,31/10/2018,Resources and Housing,Strategic Housing Partnership & Support  ,Supplies and Services,Other Hired And Contracted Services,265,03/09/2018,1810-00724,0.00,397.90,R,Allpay *unity Housing Ass,Yes
Http://opendatacommunities.org/id/metropolitan-district-council/leeds,Leeds City Council,31/10/2018,Resources and Housing,Finance,Supplies and Services,Bank Charges,263,02/10/2018,1810-00725,0.00,5048.29,R,Allpay Limted,No
Http://opendatacommunities.org/id/metropolitan-district-council/leeds,Leeds City Council,31/10/2018,Resources and Housing,Finance,Supplies and Services,Bank Charges,263,02/10/2018,1810-00726,0.00,338.51,R,Allpay Limted,No
Http://opendatacommunities.org/id/metropolitan-district-council/leeds,Leeds City Council,31/10/2018,Resources and Housing,Finance,Supplies and Services,Bank Charges,263,02/10/2018,1810-00727,0.00,10322.78,R,Allpay Limted,No
Http://opendatacommunities.org/id/metropolitan-district-council/leeds,Leeds City Council,31/10/2018,Resources and Housing,Finance,Supplies and Services,Bank Charges,263,02/10/2018,1810-00728,0.00,2.78,R,Allpay Limted,No
Http://opendatacommunities.org/id/metropolitan-district-council/leeds,Leeds City Council,31/10/2018,Resources and Housing,Finance,Supplies and Services,Bank Charges,263,02/10/2018,1810-00729,0.00,2696.51,R,Allpay Limted,No
Http://opendatacommunities.org/id/metropolitan-district-council/leeds,Leeds City Council,31/10/2018,Resources and Housing,Finance,Supplies and Services,Bank Charges,263,02/10/2018,1810-00730,0.00,111.41,R,Allpay Limted,No
Http://opendatacommunities.org/id/metropolitan-district-council/leeds,Leeds City Council,31/10/2018,Strategic Landlord,Housing Management,Supplies and Services,Other Hired And Contracted Services,265,18/10/2018,1810-00731,0.00,0.87,R,Allpay Limted,No
Http://opendatacommunities.org/id/metropolitan-district-council/leeds,Leeds City Council,31/10/2018,Strategic Landlord,Housing Management,Supplies and Services,Other Hired And Contracted Services,265,18/10/2018,1810-00732,0.00,369.58,R,Allpay Limted,No
Http://opendatacommunities.org/id/metropolitan-district-council/leeds,Leeds City Council,31/10/2018,Strategic Landlord,Housing Management,Supplies and Services,Other Hired And Contracted Services,265,18/10/2018,1810-00733,0.00,8.90,R,Allpay Limted,No
Http://opendatacommunities.org/id/metropolitan-district-council/leeds,Leeds City Council,31/10/2018,Resources and Housing,Democratic Services,Transport,Fuel (Non LCC Supplies),321,08/10/2018,1810-00734,0.00,84.67,R,Allstar Business Solutions Ltd,No
Http://opendatacommunities.org/id/metropolitan-district-council/leeds,Leeds City Council,31/10/2018,Children and Families,Learning,Transport,Fuel (Non LCC Supplies),321,08/10/2018,1810-00735,0.00,1010.51,R,Allstar Business Solutions Ltd,No
Http://opendatacommunities.org/id/metropolitan-district-council/leeds,Leeds City Council,31/10/2018,Communities and Environment,Parks and Countryside,Transport,Fuel (Non LCC Supplies),321,08/10/2018,1810-00736,0.00,602.37,R,Allstar Business Solutions Ltd,No
Http://opendatacommunities.org/id/metropolitan-district-council/leeds,Leeds City Council,31/10/2018,City Development,Highways,Transport,Fuel (Non LCC Supplies),321,08/10/2018,1810-00737,0.00,241.13,R,Allstar Business Solutions Ltd,No
Http://opendatacommunities.org/id/metropolitan-district-council/leeds,Leeds City Council,31/10/2018,Resources and Housing,Leeds Building Services,Transport,Fuel (Non LCC Supplies),321,15/10/2018,1810-00738,0.00,23.74,R,Allstar Business Solutions Ltd,No
Http://opendatacommunities.org/id/metropolitan-district-council/leeds,Leeds City Council,31/10/2018,Resources and Housing,Leeds Building Services,Transport,Fuel (Non LCC Supplies),321,29/10/2018,1810-00739,0.00,25.94,R,Allstar Business Solutions Ltd,No
Http://opendatacommunities.org/id/metropolitan-district-council/leeds,Leeds City Council,31/10/2018,City Development,Recreation,Supplies and Services,Other Hired And Contracted Services,265,22/10/2018,1810-00740,0.00,310.50,R,Alpha Awards Ltd,No
Http://opendatacommunities.org/id/metropolitan-district-council/leeds,Leeds City Council,31/10/2018,City Development,Recreation,Supplies and Services,Other Hired And Contracted Services,265,22/10/2018,1810-00741,0.00,135.50,R,Alpha Awards Ltd,No
Http://opendatacommunities.org/id/metropolitan-district-council/leeds,Leeds City Council,31/10/2018,Adults and Health,Public Health,Supplies and Services,Publication And Promotion,267,08/10/2018,1810-00742,0.00,1697.00,R,Alpha Card Compact Media Ltd,No
Http://opendatacommunities.org/id/metropolitan-district-council/leeds,Leeds City Council,31/10/2018,Children and Families,Social Care,Third Party Payments,Rents (non supported),552,10/10/2018,1810-00743,0.00,732.50,R,Alpha Student Management,No
Http://opendatacommunities.org/id/metropolitan-district-council/leeds,Leeds City Council,31/10/2018,Children and Families,Social Care,Support Services,Legal Disbursements,411,05/10/2018,1810-00744,0.00,226.00,R,Alphabiolabs,No
Http://opendatacommunities.org/id/metropolitan-district-council/leeds,Leeds City Council,31/10/2018,Children and Families,Social Care,Support Services,Legal Disbursements,411,05/10/2018,1810-00745,0.00,178.34,R,Alphabiolabs,No
Http://opendatacommunities.org/id/metropolitan-district-council/leeds,Leeds City Council,31/10/2018,Children and Families,Social Care,Support Services,Legal Disbursements,411,05/10/2018,1810-00746,0.00,133.01,R,Alphabiolabs,No
Http://opendatacommunities.org/id/metropolitan-district-council/leeds,Leeds City Council,31/10/2018,Children and Families,Social Care,Support Services,Legal Disbursements,411,11/10/2018,1810-00747,0.00,264.67,R,Alphabiolabs,No
Http://opendatacommunities.org/id/metropolitan-district-council/leeds,Leeds City Council,31/10/2018,Children and Families,Social Care,Support Services,Legal Disbursements,411,12/10/2018,1810-00748,0.00,99.67,R,Alphabiolabs,No
Http://opendatacommunities.org/id/metropolitan-district-council/leeds,Leeds City Council,31/10/2018,Children and Families,Social Care,Support Services,Legal Disbursements,411,19/10/2018,1810-00749,0.00,113.80,R,Alphabiolabs,No
Http://opendatacommunities.org/id/metropolitan-district-council/leeds,Leeds City Council,31/10/2018,Children and Families,Social Care,Support Services,Legal Disbursements,411,19/10/2018,1810-00750,0.00,80.00,R,Alphabiolabs,No
Http://opendatacommunities.org/id/metropolitan-district-council/leeds,Leeds City Council,31/10/2018,Children and Families,Social Care,Support Services,Legal Disbursements,411,26/10/2018,1810-00751,0.00,90.00,R,Alphabiolabs,No
Http://opendatacommunities.org/id/metropolitan-district-council/leeds,Leeds City Council,31/10/2018,Children and Families,Social Care,Support Services,Legal Disbursements,411,31/10/2018,1810-00752,0.00,238.75,R,Alphabiolabs,No
Http://opendatacommunities.org/id/metropolitan-district-council/leeds,Leeds City Council,31/10/2018,Communities and Environment,Waste Management,Supplies and Services,Other Hired And Contracted Services,265,15/10/2018,1810-00753,0.00,269.00,R,Als Life Sciences Limited,No
Http://opendatacommunities.org/id/metropolitan-district-council/leeds,Leeds City Council,31/10/2018,Resources and Housing,Corporate Property Management,Premises,Maintenance Of Buildings,101,02/10/2018,1810-00754,0.00,206.00,R,Alternative Drainage Company Ltd,No
Http://opendatacommunities.org/id/metropolitan-district-council/leeds,Leeds City Council,31/10/2018,Communities and Environment,Customer Access,Supplies and Services,Other Hired And Contracted Services,265,03/10/2018,1810-00755,0.00,116.00,R,Amad Mezori,No
Http://opendatacommunities.org/id/metropolitan-district-council/leeds,Leeds City Council,31/10/2018,Resources and Housing,HRA Housing Leeds,Capital,Other Costs,7,19/10/2018,1810-00756,0.00,400.00,C,REDACTED PERSONAL DATA,No
Http://opendatacommunities.org/id/metropolitan-district-council/leeds,Leeds City Council,31/10/2018,Children and Families,Social Care,Third Party Payments,Services Rendered By Other Organisations,511,19/10/2018,1810-00757,0.00,334.69,R,REDACTED PERSONAL DATA,No
Http://opendatacommunities.org/id/metropolitan-district-council/leeds,Leeds City Council,31/10/2018,Children and Families,Social Care,Third Party Payments,Services Rendered By Other Organisations,511,17/10/2018,1810-00758,0.00,535.50,R,REDACTED PERSONAL DATA,No
Http://opendatacommunities.org/id/metropolitan-district-council/leeds,Leeds City Council,31/10/2018,Resources and Housing,Leeds Building Services,Supplies and Services,Operational Materials,205,01/10/2018,1810-00759,0.00,19.80,R,Amari Plastics Plc,No
Http://opendatacommunities.org/id/metropolitan-district-council/leeds,Leeds City Council,31/10/2018,Resources and Housing,Leeds Building Services,Supplies and Services,Operational Materials,205,01/10/2018,1810-00760,0.00,66.50,R,Amari Plastics Plc,No
Http://opendatacommunities.org/id/metropolitan-district-council/leeds,Leeds City Council,31/10/2018,Resources and Housing,Leeds Building Services,Supplies and Services,Operational Materials,205,01/10/2018,1810-00761,0.00,29.80,R,Amari Plastics Plc,No
Http://opendatacommunities.org/id/metropolitan-district-council/leeds,Leeds City Council,31/10/2018,Resources and Housing,Leeds Building Services,Supplies and Services,Operational Materials,205,01/10/2018,1810-00762,0.00,192.96,R,Amari Plastics Plc,No
Http://opendatacommunities.org/id/metropolitan-district-council/leeds,Leeds City Council,31/10/2018,Resources and Housing,Leeds Building Services,Supplies and Services,Operational Materials,205,01/10/2018,1810-00763,0.00,69.00,R,Amari Plastics Plc,No
Http://opendatacommunities.org/id/metropolitan-district-council/leeds,Leeds City Council,31/10/2018,Resources and Housing,Shared Services,Supplies and Services,Operational Materials,205,12/10/2018,1810-00764,0.00,374.83,R,Amari Plastics Plc,No
